Workbook

Sheet INÍCIO
B2: Simulador do IRS
B4: Ano dos rendimentos 2018
B6: IRS a entregar em 2019
B8: =IF(HOUR(NOW())<5,"Boa noite utilizador",IF(HOUR(NOW())<12,"Bom dia utilizador",IF(HOUR(NOW())<19,"Boa tarde utilizador",IF(HOUR(NOW())>=19,"Boa noite utilizador")))) -> Boa noite utilizador
B10: ='Modelo 3'!P105 ->  | K10: =TEXT(M10,"dddd,") -> domingo, | M10: =TODAY() -> 2019-05-26
B17: Para iniciar a simulação comece por | E17: ➤ | H17: - | I17: Declaração Mod. 3 - Rosto
B20: Se tem rendimentos destas categorias | E20: ='Anexo A'!B45 -> ➤ | H20: - | I20: Anexo A - Trabalho dependente e pensões
B23: Se tem rendimentos desta categoria | E23: ='Anexo B'!B92 -> ➤ | H23: - | I23: Anexo B - Rendimentos da categoria B - Regime Simplificado / Ato Isolado
B26: Se tem rendimentos desta categoria | E26: ='Anexo E'!B40 -> ➤ | H26: - | I26: Anexo E - Rendimentos de capitais
B29: Se tem rendimentos desta categoria | E29: ='Anexo F'!B36 -> ➤ | H29: - | I29: Anexo F - Rendimentos Prediais
B32: Se vendeu algum imóvel ou ações | E32: ='Anexo G'!B47 -> ➤ | H32: - | I32: Anexo G - Mais-valias e outros incrementos patrimoniais
B35: Se tem despesa no e-fatura/outras | E35: ='Anexo H'!B76 -> ➤ | H35: - | I35: Anexo H - Benefícios fiscais e deduções
B38: Se tem rendimentos desta categoria | E38: ='Anexo J'!B21 -> ➤ | H38: - | I38: Anexo J - Rendimentos obtidos no estrangeiro
B41: Em 2019, o prazo de entrega da declaração do IRS é de 1 de abril a 30 de junho
B42: ='Modelo 3'!P112 -> Está a decorrer a entrega do IRS de 01 de abril a 30 de junho
B45: AVISO : | D45: Não esquecer de ativar as macros (Ativar Edição). O simulador só funciona com o Microsoft Office Excel.
D46: O simulador abrange somente as questões mais frequentes.
C48: ✉ | D48: Francisco Mesquita
D49: fmkapelongo@gmail.com; | N49: Versão 10 . 2018
B51: ='Modelo 3'!P114 -> 
B53: PEDIDO:
B54: Quando comunicarem algum bug, mandem-me por favor em anexo o simulador preenchido com os valores que deram o erro detetado para o e-mail supracitado,
B55: este e-mail destina-se apenas para o reporte de erros.
B57: NOTA:
B58: Não presto quaisquer informação sobre serviços de assistência fiscal, contabilidade, ou outros. Lembro que as simulações feitas neste simulador não dispensam a consulta
B59: das publicações oficiais, Leis, normas regulamentares da AT.

Sheet Modelo 3
B4: QUADROS 4 e 5A | F4: QUADRO 8A | I4: QUADRO 8B - NÃO RESIDENTES
B5: ESTADO CIVIL DOS SUJEITOS PASSIVOS [Indique abaixo] | F5: RESIDÊNCIA FISCAL [Indique abaixo] | I5: =TEXT(B63,) -> 
B6: Casados, opção pela tributação separada | F6: Continente | I6: =TEXT(B62,) ->  | M6: Sim | N6: Não
B7: =TEXT(B71,) ->  | J7: =TEXT(B66,) -> 
B8: =TEXT(B72,) ->  | J8: =TEXT(B65,) ->  | M8: Sim | N8: Não
B9: =TEXT(B73,) ->  | J9: =TEXT(B67,) -> 
B10: Sociedade Conjugal - Ocorreu o óbito de um dos cônjuges em 2018 ? ➤ | F10: Não | G10: =TEXT(B69,) ->  | J10: =TEXT(B68,) -> 
D11: CONCELHO DA ÁREA DO DOMICÍLIO FISCAL
B12: Para apurar o Benefício Municipal ➤ | D12: Indique aqui o Concelho | F12: =F373 -> 0 | J12: =TEXT(B70,) -> 
B14: QUADROS 6B e 7A
B15: DEPENDENTES, AFILHADOS CIVIS, ASCENDENTES E COLATERAIS ATÉ AO 3º GRAU | G15: Dependentes, com ✚ de 3 anos de idade | H15: Dependentes, até 3 anos de idade | I15: Afilhados civis, com ✚ de 3 anos de idade | J15: Afilhados civis, até 3 anos de idade | K15: Ascendentes e colaterais até ao 3.º grau
B16: N.º de Dependentes e afilhados civis até 25 anos de idade, e ascendentes
B17: N.º de Dependentes e afilhados civis até 25 anos de idade, [Guarda conjunta, com residência alternada]
B18: QUADROS 3, 5A, 6B e 7A
B19: SUJEITOS PASSIVOS, DEPENDENTES, ASCENDENTES E COLATERAIS ATÉ AO 3º GRAU, DEFICIENTES | H19: Sujeito Passivo A | I19: Sujeito Passivo B | J19: Dependentes e Afilhados civis | K19: Dependentes em Guarda Conjunta
B20: Indique o Nº de deficientes, cujo grau de invalidez seja ≥ 60% e < 90 % | G20: ♿ →
B21: Indique o Nº de deficientes, cujo grau de invalidez seja igual ou superior a 90 % | G21: ♿ →
B22: Indique o Nº de deficientes das Forças Armadas, cujo grau de invalidez seja ≥ 60% e < 90%. | G22: ♿ →
B23: Indique o Nº de deficientes das Forças Armadas, cujo grau de invalidez seja igual ou superior a 90 % | G23: ♿ →
B24: Indique o Nº de ascendentes e colaterais até ao 3º Grau portadores de deficiência igual ou superior a 60%, que vivam em comunhão de habitação com os sujeitos passivos ♿ →
B34: INÍCIO
B36: RMMG 2010 | C36: 475 | D36: RMMG 2018 | E36: 580 | F36: IAS 2018 | G36: 428.9 | H36: Dedução específica → | J36: 4104 | K36: Taxas T. Autónoma → | M36: 0.05 | N36: =IF(F52=2,8%,10%) -> 0.1 | O36: 0.2 | P36: =IF(F52=2,22.4%,28%) -> 0.28 | Q36: Taxas N/ residentes → | S36: 0.25 | T36: 0.28
B38: Tributação Separada → | D38: =IF(C58=2,1,IF(C58=4,1,IF(C58=6,1,))) -> 1 | E38: Família Monoparental → | G38: =IF(H38=0,0,IF(C59=2,0,IF(C59=1,1,0))) -> 0 | H38: =SUM(G16+H16+I16+J16+G17+H17+I17+J17) -> 0 | I38: Tributação Conjunta → | K38: =IF(C58=1,2,IF(C58=3,2,IF(C58=5,2,))) -> 0
B40: Não residentes | D40: FALSE | E40: FALSE | F40: FALSE | G40: FALSE | H40: FALSE | I40: FALSE
D41: =IF(G41>=1,0,IF(D40=TRUE,1,)) -> 0 | E41: =IF(H41>=1,0,IF(D41>=1,0,IF(E40=TRUE,2,0))) -> 0 | F41: =IF(F52=5,0,IF(I41>=1,0,IF(D41>=1,0,IF(F40=TRUE,4,)))) -> 0 | G41: =IF(G40=TRUE,4,) -> 0 | H41: =IF(H40=TRUE,5,) -> 0 | I41: =IF(I40=TRUE,6,) -> 0
D43: =IF(F52<=3,0,AND(F52=4,D41>=1,"VERDADEIRO")) -> 0 | E43: =IF(F52=5,FALSE,IF(F52<=3,0,IF(F52=4,E41>=1,"VERDADEIRO"))) -> 0 | F43: =IF(F52=5,FALSE,IF(F52<=3,0,IF(F52=4,F41>=1,"VERDADEIRO"))) -> 0 | G43: FALSE | H43: FALSE | I43: FALSE
B46: Eatado civil | E46: Residência Fiscal | H46: Óbito Cônjuge
B47: Casados, opção pela tributação conjunta | C47: 1 | E47: Continente | F47: 1 | H47: Sim | I47: 1
B48: Casados, opção pela tributação separada | C48: 2 | E48: Região Autónoma dos Açores | F48: 2 | H48: Não | I48: 2
B49: Unidos de facto, opção pela tributação conjunta | C49: 3 | E49: Região Autónoma da Madeira | F49: 3 | I49: =VLOOKUP(F10,H47:I48,2,FALSE) -> 2
B50: Unidos de facto, opção pela tributação separada | C50: 4 | E50: País da Comunidade Europeia | F50: 4
B51: Viúvo(a), opção pela tributação conjunta | C51: 5 | E51: Outro País | F51: 5
B52: Viúvo(a), opção pela tributação separada | C52: 6 | F52: =VLOOKUP(F6,E47:F51,2,FALSE) -> 1
B53: Viúvo(a) | C53: 7
B54: Solteiro(a) | C54: 8
B55: Divorciado(a) | C55: 9
B56: Separado(a) judicialmente | C56: 10
B57: Separado(a) de facto | C57: 11
B58: Quociente conjugal | C58: =VLOOKUP(B6,B47:C57,2,FALSE) -> 2
B59: F. Monoparental | C59: =IF(C58<=6,2,IF(C58>=7,1)) -> 2
B61: =IF(F41=4,4,) -> 0 | C61: =IF(F52=4,4,) -> 0 | D61: =SUM(B61:C61) -> 0
B62: =IF(F52=4,"Se reside na União Europeia ou no Espaço Económico Europeu indique:",) -> 0 | D62: Taxa de Participação no IRS dos Municípios | H62: Desvalorização da Moeda | L62: Veja aqui a Tabela atividade do art.º 151.º do CIRS | P62: Rendimentos da cat. E
B63: =IF(F52=5,"Não residente Campo 04 ",IF(F52=4,"Residência em país da UE ou EEE Campo 06 ",)) -> 0 | E63: =VLOOKUP(D12,D64:E372,2,FALSE) -> 1 | I63: =VLOOKUP('Anexo G'!M7,H64:I113,2,FALSE) -> 1
B64: =IF(F52=4,"A simulação dos não residentes, pode conter alguns erros, para os corrigir, agradecia a quem já declarou em anos anteriores este tipo de rendimentos fizesse o obséquio de partilhar comigo os anexos enviados e demonstração de liquidação de IRS da AT",) -> 0 | D64: Indique aqui o Concelho | E64: 1 | H64: Ano | I64: 1 | L64: Veja aqui a Tabela atividade do art.º 151.º do CIRS | P64: ANEXO E - QUADRO 4A
B65: =IF(F52=4,"✓ 08 - Ou opta por um dos regimes abaixo indicados ? ▼",) -> 0 | D65: Abrantes | E65: 2 | F65: 0.005 | G65: =IF(E63=E65,F65,) -> 0 | H65: 1970 | I65: 2 | J65: 56.68 | K65: =IF(I63=I65,J65,) -> 0 | L65: 1000 Agentes técnicos de engenharia e arquitetura | O65: 2 | P65: Clique aqui para indicar o código dos rendimentos | R65: 1
B66: =IF(F52=4,"✓ O7 - Pretende a tributação pelo regime geral ? ➤",) -> 0 | D66: Águeda | E66: 3 | F66: 0.05 | G66: =IF(E63=E66,F66,) -> 0 | H66: 1971 | I66: 3 | J66: 53.95 | K66: =IF(I63=I66,J66,) -> 0 | L66: 1001 Arquitetos | O66: 3 | P66: E01 - Rendimentos do uso ou da concessão do uso de equipamento agrícola, industrial, comercial ou científico ou provenientes de contratos de cessão/utilização de direitos de propriedade intelectual, industrial ou de prestação de informações ou assistência técnica quando não auferidos pelo autor ou titular originário | R66: 2
B67: =IF(F52=4,"✓ O9 - Opta pelas taxas gerais do art.º 68.º do CIRS - Relativamente aos rendimentos não sujeitos a retenção liberatória - art.º 72.º, n.º 9, do CIRS? ➤",) -> 0 | D67: Aguiar da Beira | E67: 4 | F67: 0.05 | G67: =IF(E63=E67,F67,) -> 0 | H67: 1972 | I67: 4 | J67: 50.44 | K67: =IF(I63=I67,J67,) -> 0 | L67: 1002 Desenhadores | O67: 4 | P67: E10 - Rendimentos de lucros, reservas, adiantamentos por conta de lucros, de amortização de partes sociais e rendimentos auferidos na associação em participação e na associação à quota | R67: 3
B68: =IF(F52=4,"✓ 10 - Opta pelas regras dos residentes - art.º 17.º-A do CIRS ? ➤",) -> 0 | D68: Alandroal | E68: 5 | F68: 0 | G68: =IF(E63=E68,F68,) -> 0 | H68: 1973 | I68: 5 | J68: 45.85 | K68: =IF(I63=I68,J68,) -> 0 | L68: 1003 Engenheiros | O68: 5 | P68: E20 - Juros e outras formas de remuneração referidos no artigo 5º do CIRS, nomeadamente, juros de mútuos, depósitos, títulos de dívida pública, obrigações, suprimentos, adiantamentos de capital aos sócios ou por não levantamento de lucros, bem como o ganho de swaps de taxa de juros ou quaisquer rendimentos de aplicação de capitais | R68: 4
B69: =IF(D61=8,"Se optar por esta regra, veja o que diz o art.º 17.º - A do CIRS ➤",) -> 0 | D69: Albergaria-a-Velha | E69: 6 | F69: 0.0225 | G69: =IF(E63=E69,F69,) -> 0 | H69: 1974 | I69: 6 | J69: 35.17 | K69: =IF(I63=I69,J69,) -> 0 | L69: 1004 Engenheiros técnicos | O69: 6 | P69: E40 - Rendimentos dos baldios (nº4 do artigo 59º do EBF) | R69: 5
B70: =IF(F52>=4,"São considerados não residentes aqueles que tenham estado em território português por um período inferior a 183 dias, no ano a que dizem respeito os rendimentos ",) -> 0 | D70: Albufeira | E70: 7 | F70: 0.05 | G70: =IF(E63=E70,F70,) -> 0 | H70: 1975 | I70: 7 | J70: 30.4 | K70: =IF(I63=I70,J70,) -> 0 | L70: 1005 Geólogos | O70: 7
B71: =IF(I49=1,"Quando ocorre o óbito de um dos cônjuges, o que sobrevive deve proceder à entrega da Declaração de IRS, incluindo os rendimentos obtidos pelo falecido,",) -> 0 | D71: Alcácer do Sal | E71: 8 | F71: 0.01 | G71: =IF(E63=E71,F71,) -> 0 | H71: 1976 | I71: 8 | J71: 25.16 | K71: =IF(I63=I71,J71,) -> 0 | L71: 1006 Topógrafos | O71: 8 | P71: ANEXO E - QUADRO 4B
B72: =IF(I49=1,"em (ESTADO CIVIL DOS SUJEITOS PASSIVOS) deve selecionar viúvo(a), opção pela tributação conjunta ou pela tributação separada.",) -> 0 | D72: Alcanena | E72: 9 | F72: 0 | G72: =IF(E63=E72,F72,) -> 0 | H72: 1977 | I72: 9 | J72: 19.2 | K72: =IF(I63=I72,J72,) -> 0 | L72: 2010 Artistas de teatro, bailado, cinema, rádio e televisão | O72: 9 | P72: Clique aqui par indicar o código dos rendimentos | R72: 1
B73: =IF(I49=1,"NOTA: Se o cônjuge sobrevivo tiver rendimentos coloca estes em Sujeito Passivo A, se o falecido teve rendimentos coloca em Sujeito Passivo B.",) -> 0 | D73: Alcobaça | E73: 10 | F73: 0.0125 | G73: =IF(E63=E73,F73,) -> 0 | H73: 1978 | I73: 10 | J73: 15.11 | K73: =IF(I63=I73,J73,) -> 0 | L73: 2011 Artistas de circo | O73: 10 | P73: E01 - Rendimentos do uso ou da concessão do uso de equipamento agrícola, industrial, comercial ou científico ou provenientes de contratos de cessão/utilização de direitos de propriedade intelectual, industrial ou de prestação de informações ou assistência técnica quando não auferidos pelo autor ou titular originário | R73: 2
D74: Alcochete | E74: 11 | F74: 0 | G74: =IF(E63=E74,F74,) -> 0 | H74: 1979 | I74: 11 | J74: 11.92 | K74: =IF(I63=I74,J74,) -> 0 | L74: 2019 Cantores | O74: 11 | P74: E10 - Rendimentos de lucros, reservas, adiantamentos por conta de lucros, de amortização de partes sociais e rendimentos auferidos na associação em participação e na associação à quota | R74: 3
D75: Alcoutim | E75: 12 | F75: 0.05 | G75: =IF(E63=E75,F75,) -> 0 | H75: 1980 | I75: 12 | J75: 10.75 | K75: =IF(I63=I75,J75,) -> 0 | L75: 2012 Escultores | O75: 12 | P75: E20 - Juros e outras formas de remuneração referidos no artigo 5º do CIRS, nomeadamente, juros de mútuos, depósitos, títulos de dívida pública, obrigações, suprimentos, adiantamentos de capital aos sócios ou por não levantamento de lucros, bem como o ganho de swaps de taxa de juros ou quaisquer rendimentos de aplicação de capitais | R75: 4
D76: Alenquer | E76: 13 | F76: 0.002 | G76: =IF(E63=E76,F76,) -> 0 | H76: 1981 | I76: 13 | J76: 8.79 | K76: =IF(I63=I76,J76,) -> 0 | L76: 2013 Músicos | O76: 13 | P76: E30 - Rendimentos de unidades de participação em Fundos (mobiliário ou imobiliário) ou participações sociais em sociedades de investimento (mobiliário ou imobiliário) a que seja aplicável o artigo 22º do EBF (redacção em vigor até 30/06/2015) | R76: 5
D77: Alfândega da Fé | E77: 14 | F77: 0 | G77: =IF(E63=E77,F77,) -> 0 | H77: 1982 | I77: 14 | J77: 7.29 | K77: =IF(I63=I77,J77,) -> 0 | L77: 2014 Pintores | O77: 14 | P77: E31 - Rendimentos de unidades de participação em Fundos (mobiliário ou imobiliário) ou participações sociais em sociedades de investimento (mobiliário ou imobiliário) a que seja aplicável a subalínea i) da alínea a) do nº 1 do artigo 22º-A do EBF (redacção em vigor a partir de 01/07/2015) | R77: 6
D78: Alijó | E78: 15 | F78: 0 | G78: =IF(E63=E78,F78,) -> 0 | H78: 1983 | I78: 15 | J78: 5.84 | K78: =IF(I63=I78,J78,) -> 0 | L78: 2015 Outros artistas | O78: 15 | P78: E32 - Rendimentos das unidades de participação em fundos de capital de risco (nº 2 do artigo 23º do EBF), de investimento imobiliário em recursos florestais (nº 2 do artigo 24º do EBF) e em FII de reabilitação urbana (nº 2 do artigo 71º do EBF) | R78: 7
D79: Aljezur | E79: 16 | F79: 0.025 | G79: =IF(E63=E79,F79,) -> 0 | H79: 1984 | I79: 16 | J79: 4.53 | K79: =IF(I63=I79,J79,) -> 0 | L79: 3010 Toureiros | O79: 16 | P79: E40 - Rendimentos dos baldios (nº4 do artigo 59º do EBF) | R79: 8
D80: Aljustrel | E80: 17 | F80: 0 | G80: =IF(E63=E80,F80,) -> 0 | H80: 1985 | I80: 17 | J80: 3.79 | K80: =IF(I63=I80,J80,) -> 0 | L80: 3019 Outros artistas tauromáquicos | O80: 17
D81: Almada | E81: 18 | F81: 0 | G81: =IF(E63=E81,F81,) -> 0 | H81: 1986 | I81: 18 | J81: 3.43 | K81: =IF(I63=I81,J81,) -> 0 | L81: 4010 Atuários | O81: 18 | P81: 2019
D82: Almeida | E82: 19 | F82: 0.02 | G82: =IF(E63=E82,F82,) -> 0 | H82: 1987 | I82: 19 | J82: 3.14 | K82: =IF(I63=I82,J82,) -> 0 | L82: 4011 Auditores | O82: 19 | P82: Feriados | Q82: =TODAY() -> 2019-05-26
D83: Almeirim | E83: 20 | F83: 0 | G83: =IF(E63=E83,F83,) -> 0 | H83: 1988 | I83: 20 | J83: 2.82 | K83: =IF(I63=I83,J83,) -> 0 | L83: 4012 Consultores fiscais | O83: 20 | P83: 2019-01-01 | Q83: Feriado Nacional, Ano Novo
D84: Almodôver | E84: 21 | F84: 0 | G84: =IF(E63=E84,F84,) -> 0 | H84: 1989 | I84: 21 | J84: 2.54 | K84: =IF(I63=I84,J84,) -> 0 | L84: 4013 Contabilistas | O84: 21 | P84: 2019-01-06 | Q84: Dia de Reis
D85: Alpiarça | E85: 22 | F85: 0 | G85: =IF(E63=E85,F85,) -> 0 | H85: 1990 | I85: 22 | J85: 2.27 | K85: =IF(I63=I85,J85,) -> 0 | L85: 4014 Economistas | O85: 22 | P85: 2019-02-14 | Q85: Dia de S. Valentim (dia dos namorados)
D86: Alter do Chão | E86: 23 | F86: 0.025 | G86: =IF(E63=E86,F86,) -> 0 | H86: 1991 | I86: 23 | J86: 2.01 | K86: =IF(I63=I86,J86,) -> 0 | L86: 4015 Técnicos oficiais de contas | O86: 23 | P86: 2019-03-05 | Q86: Dia de Carnaval
D87: Alvaiázere | E87: 24 | F87: 0 | G87: =IF(E63=E87,F87,) -> 0 | H87: 1992 | I87: 24 | J87: 1.85 | K87: =IF(I63=I87,J87,) -> 0 | L87: 4016 Técnicos similares | O87: 24 | P87: 2019-03-08 | Q87: Dia Internacional da Mulher
D88: Alvito | E88: 25 | F88: 0 | G88: =IF(E63=E88,F88,) -> 0 | H88: 1993 | I88: 25 | J88: 1.71 | K88: =IF(I63=I88,J88,) -> 0 | L88: 5010 Enfermeiros | O88: 25 | P88: 2019-03-19 | Q88: Dia do Pai
D89: Amadora | E89: 26 | F89: 0.012 | G89: =IF(E63=E89,F89,) -> 0 | H89: 1994 | I89: 26 | J89: 1.63 | K89: =IF(I63=I89,J89,) -> 0 | L89: 5012 Fisioterapeutas | O89: 26 | P89: 2019-04-19 | Q89: Feriado Nacional, Sexta Feira Santa
D90: Amarante | E90: 27 | F90: 0 | G90: =IF(E63=E90,F90,) -> 0 | H90: 1995 | I90: 27 | J90: 1.57 | K90: =IF(I63=I90,J90,) -> 0 | L90: 5013 Nutricionistas | O90: 27 | P90: 2019-04-21 | Q90: Feriado Nacional, Páscoa
D91: Amares | E91: 28 | F91: 0 | G91: =IF(E63=E91,F91,) -> 0 | H91: 1996 | I91: 28 | J91: 1.53 | K91: =IF(I63=I91,J91,) -> 0 | L91: 5014 Parteiras | O91: 28 | P91: 2019-04-25 | Q91: Feriado Nacional, Dia da Liberdade
D92: Anadia | E92: 29 | F92: 0.01 | G92: =IF(E63=E92,F92,) -> 0 | H92: 1997 | I92: 29 | J92: 1.51 | K92: =IF(I63=I92,J92,) -> 0 | L92: 5015 Terapeutas da fala | O92: 29 | P92: 2019-05-01 | Q92: Feriado Nacional, Dia do Trabalhador
D93: Angra do Heroísmo | E93: 30 | F93: 0 | G93: =IF(E63=E93,F93,) -> 0 | H93: 1998 | I93: 30 | J93: 1.46 | K93: =IF(I63=I93,J93,) -> 0 | L93: 5016 . Terapeutas ocupacionais | O93: 30 | P93: 2019-05-05 | Q93: Dia da Mãe
D94: Ansião | E94: 31 | F94: 0 | G94: =IF(E63=E94,F94,) -> 0 | H94: 1999 | I94: 31 | J94: 1.44 | K94: =IF(I63=I94,J94,) -> 0 | L94: 5019 Outros técnicos paramédicos | O94: 31 | P94: 2019-06-01 | Q94: Dia Mundial da Criança
D95: Arcos de Valdevez | E95: 32 | F95: 0.01 | G95: =IF(E63=E95,F95,) -> 0 | H95: 2000 | I95: 32 | J95: 1.41 | K95: =IF(I63=I95,J95,) -> 0 | L95: 6010 Advogados | O95: 32 | P95: 2019-06-10 | Q95: Feriado Nacional, Dia de Portugal
D96: Arganil | E96: 33 | F96: 0.05 | G96: =IF(E63=E96,F96,) -> 0 | H96: 2001 | I96: 33 | J96: 1.32 | K96: =IF(I63=I96,J96,) -> 0 | L96: 6011 Jurisconsultos | O96: 33 | P96: 2019-06-20 | Q96: Feriado Nacional, Corpo de Deus
D97: Armamar | E97: 34 | F97: 0.05 | G97: =IF(E63=E97,F97,) -> 0 | H97: 2002 | I97: 34 | J97: 1.27 | K97: =IF(I63=I97,J97,) -> 0 | L97: 6012 Solicitadores | O97: 34 | P97: 2019-08-15 | Q97: Feriado Nacional, Assunção de Nossa Senhora
D98: Arouca | E98: 35 | F98: 0.05 | G98: =IF(E63=E98,F98,) -> 0 | H98: 2003 | I98: 35 | J98: 1.23 | K98: =IF(I63=I98,J98,) -> 0 | L98: 7010 Dentistas | O98: 35 | P98: 2019-10-05 | Q98: Feriado Nacional, Implantação da República
D99: Arraiolos | E99: 36 | F99: 0.05 | G99: =IF(E63=E99,F99,) -> 0 | H99: 2004 | I99: 36 | J99: 1.21 | K99: =IF(I63=I99,J99,) -> 0 | L99: 7011 Médicos analistas | O99: 36 | P99: 2019-11-01 | Q99: Feriado Nacional, Dia de Todos os Santos
D100: Arronches | E100: 37 | F100: 0.025 | G100: =IF(E63=E100,F100,) -> 0 | H100: 2005 | I100: 37 | J100: 1.19 | K100: =IF(I63=I100,J100,) -> 0 | L100: 7012 Médicos cirurgiões | O100: 37 | P100: 2019-11-27 | Q100: Feriado Munucipal da Guarda
D101: Arruda dos Vinhos | E101: 38 | F101: 0.01 | G101: =IF(E63=E101,F101,) -> 0 | H101: 2006 | I101: 38 | J101: 1.15 | K101: =IF(I63=I101,J101,) -> 0 | L101: 7013 Médicos de bordo em navios | O101: 38 | P101: 2019-12-01 | Q101: Feriado Nacional, Restauração da Independência
D102: Aveiro | E102: 39 | F102: 0 | G102: =IF(E63=E102,F102,) -> 0 | H102: 2007 | I102: 39 | J102: 1.13 | K102: =IF(I63=I102,J102,) -> 0 | L102: 7014 Médicos de clínica geral | O102: 39 | P102: 2019-12-08 | Q102: Feriado Nacional, Dia da Imaculada Conceição
D103: Avis | E103: 40 | F103: 0 | G103: =IF(E63=E103,F103,) -> 0 | H103: 2008 | I103: 40 | J103: 1.09 | K103: =IF(I63=I103,J103,) -> 0 | L103: 7015 Médicos dentistas | O103: 40 | P103: 2019-12-25 | Q103: Feriado Nacional, Natal
D104: Azambuja | E104: 41 | F104: 0 | G104: =IF(E63=E104,F104,) -> 0 | H104: 2009 | I104: 41 | J104: 1.11 | K104: =IF(I63=I104,J104,) -> 0 | L104: 7016 Médicos estomatologistas | O104: 41 | P104: =IF(Q82=P83,Q83,IF(Q82=P84,Q84,IF(Q82=P85,Q85,IF(Q82=P86,Q86,IF(Q82=P87,Q87,IF(Q82=P88,Q88,IF(Q82=P89,Q89,))))))&IF(Q82=P90,Q90,IF(Q82=P91,Q91,IF(Q82=P92,Q92,IF(Q82=P93,Q93,IF(Q82=P94,Q94,IF(Q82=P95,Q95,IF(Q82=P96,Q96,))))))&IF(Q82=P97,Q97,IF(Q82=P98,Q98,IF(Q82=P99,Q99,IF(Q82=P100,Q100,IF(Q82=P101,Q101,IF(Q82=P102,Q102,))))))&IF(Q82=P103,Q103,""))) -> 
D105: Baião | E105: 42 | F105: 0 | G105: =IF(E63=E105,F105,) -> 0 | H105: 2010 | I105: 42 | J105: 1.09 | K105: =IF(I63=I105,J105,) -> 0 | L105: 7017 Médicos fisiatras | O105: 42 | P105: =IF(P81=2019,P104,"") -> 
D106: Barcelos | E106: 43 | F106: 0 | G106: =IF(E63=E106,F106,) -> 0 | H106: 2011 | I106: 43 | J106: 1.05 | K106: =IF(I63=I106,J106,) -> 0 | L106: 7018 Médicos gastroenterologistas | O106: 43
D107: Barrancos | E107: 44 | F107: 0 | G107: =IF(E63=E107,F107,) -> 0 | H107: 2012 | I107: 44 | J107: 1.02 | K107: =IF(I63=I107,J107,) -> 0 | L107: 7019 Médicos oftalmologistas | O107: 44 | P107: Entrega de IRS
D108: Barreiro | E108: 45 | F108: 0 | G108: =IF(E63=E108,F108,) -> 0 | H108: 2013 | I108: 45 | J108: 1.02 | K108: =IF(I63=I108,J108,) -> 0 | L108: 7020 Médicos ortopedistas | O108: 45 | Q108: =YEAR(NOW()) -> 2019
D109: Batalha | E109: 46 | F109: 0 | G109: =IF(E63=E109,F109,) -> 0 | H109: 2014 | I109: 46 | J109: 1.02 | K109: =IF(I63=I109,J109,) -> 0 | L109: 7021 Médicos otorrinolaringologistas | O109: 46 | Q109: =MONTH(NOW()) -> 5
D110: Beja | E110: 47 | F110: 0 | G110: =IF(E63=E110,F110,) -> 0 | H110: 2015 | I110: 47 | J110: 1.02 | K110: =IF(I63=I110,J110,) -> 0 | L110: 7022 Médicos pediatras | O110: 47 | P110: =IF(Q109=4,"Está a decorrer a entrega do IRS de 01 de abril a 30 de junho",IF(Q109=5,"Está a decorrer a entrega do IRS de 01 de abril a 30 de junho",IF(Q109=6,"Está a decorrer a entrega do IRS de 01 de abril a 30 de junho",))) -> Está a decorrer a entrega do IRS de 01 de abril a 30 de junho
D111: Belmonte | E111: 48 | F111: 0.025 | G111: =IF(E63=E111,F111,) -> 0 | H111: 2016 | I111: 48 | J111: 1.01 | K111: =IF(I63=I111,J111,) -> 0 | L111: 7023 Médicos radiologistas | O111: 48 | P111: =IF(Q108=2019,P110,) -> Está a decorrer a entrega do IRS de 01 de abril a 30 de junho
D112: Benavente | E112: 49 | F112: 0 | G112: =IF(E63=E112,F112,) -> 0 | H112: 2017 | I112: 49 | J112: 1 | K112: =IF(I63=I112,J112,) -> 0 | L112: 7024 Médicos de outras especialidades | O112: 49 | P112: =IF(P111=0,"",P111) -> Está a decorrer a entrega do IRS de 01 de abril a 30 de junho
D113: Bombarral | E113: 50 | F113: 0.015 | G113: =IF(E63=E113,F113,) -> 0 | H113: 2018 | I113: 50 | J113: 1 | K113: =IF(I63=I113,J113,) -> 0 | L113: 8010 Explicadores | O113: 50 | P113: =IF(Q109=3,"DE 15 a 31 de março pode reclamar do cálculo do montante da dedução das despesas gerais e familiares e da dedução pela exigência de fatura, colocado no e-fatura pela AT",) -> 0
D114: Borba | E114: 51 | F114: 0.005 | G114: =IF(E63=E114,F114,) -> 0 | L114: 8011 Formadores | O114: 51 | P114: =IF(P113=0,"",P113) -> 
D115: Boticas | E115: 52 | F115: 0.05 | G115: =IF(E63=E115,F115,) -> 0 | L115: 8012 Professores | O115: 52
D116: Braga | E116: 53 | F116: 0.0075 | G116: =IF(E63=E116,F116,) -> 0 | L116: 9010 Revisores oficiais de contas | O116: 53
D117: Bragança | E117: 54 | F117: 0 | G117: =IF(E63=E117,F117,) -> 0 | L117: *9011 Notários | O117: 54
D118: Cabeceiras de Basto | E118: 55 | F118: 0.01 | G118: =IF(E63=E118,F118,) -> 0 | I118: =IF(K118="Tabela",0,K118) -> 0 | K118: =IF(I63=1,"0",MAX(K119:K121)) -> 0 | L118: 1010 Psicólogos | O118: 55
D119: Cadaval | E119: 56 | F119: 0.01 | G119: =IF(E63=E119,F119,) -> 0 | K119: =IF(I120=1,0,IF(I63=1,"0",SUM(K65:K113))) -> 0 | L119: 1011 Sociólogos | O119: 56
D120: Caldas da Rainha | E120: 57 | F120: 0.02 | G120: =IF(E63=E120,F120,) -> 0 | I120: =IF('Anexo G'!C45=2,1,IF('Anexo G'!C45=3,1,)) -> 0 | K120: =IF(I120=1,SUM(K84:K113,)) -> FALSE | L120: 1110 Analistas | O120: 57
D121: Calheta (Açores) | E121: 58 | F121: 0 | G121: =IF(E63=E121,F121,) -> 0 | K121: =SUM(K120) -> 0 | L121: 1210 Sacerdotes de qualquer religião | O121: 58
D122: Calheta (Madeira) | E122: 59 | F122: 0.02 | G122: =IF(E63=E122,F122,) -> 0 | I122: Até 1-1-89, Isento | L122: 1310 Administradores de bens | O122: 59
D123: Câmara de Lobos | E123: 60 | F123: 0.02 | G123: =IF(E63=E123,F123,) -> 0 | L123: 1311 Ajudantes familiares | O123: 60
D124: Caminha | E124: 61 | F124: 0.035 | G124: =IF(E63=E124,F124,) -> 0 | L124: 1312 Amas | O124: 61
D125: Campo Maior | E125: 62 | F125: 0 | G125: =IF(E63=E125,F125,) -> 0 | L125: 1313 Analistas de sistemas | O125: 62
D126: Cantanhede | E126: 63 | F126: 0 | G126: =IF(E63=E126,F126,) -> 0 | L126: 1314 Arqueólogos | O126: 63
D127: Carrazeda de Ansiães | E127: 64 | F127: 0.05 | G127: =IF(E63=E127,F127,) -> 0 | L127: 1315 Assistentes sociais | O127: 64
D128: Carregal do Sal | E128: 65 | F128: 0 | G128: =IF(E63=E128,F128,) -> 0 | L128: 1316 Astrólogos | O128: 65
D129: Cartaxo | E129: 66 | F129: 0 | G129: =IF(E63=E129,F129,) -> 0 | L129: 1317 Parapsicólogos | O129: 66
D130: Cascais | E130: 67 | F130: 0 | G130: =IF(E63=E130,F130,) -> 0 | L130: 1318 Biólogos | O130: 67
D131: Castanheira de Pêra | E131: 68 | F131: 0.025 | G131: =IF(E63=E131,F131,) -> 0 | L131: 1319 Comissionistas | O131: 68
D132: Castelo Branco | E132: 69 | F132: 0 | G132: =IF(E63=E132,F132,) -> 0 | L132: 1320 Consultores | O132: 69
D133: Castelo de Paiva | E133: 70 | F133: 0.01 | G133: =IF(E63=E133,F133,) -> 0 | L133: 1321 Dactilógrafos | O133: 70
D134: Castelo de Vide | E134: 71 | F134: 0.015 | G134: =IF(E63=E134,F134,) -> 0 | L134: 1322 Decoradores | O134: 71
D135: Castro Daire | E135: 72 | F135: 0.01 | G135: =IF(E63=E135,F135,) -> 0 | L135: 1323 Desportistas | O135: 72
D136: Castro Marim | E136: 73 | F136: 0.05 | G136: =IF(E63=E136,F136,) -> 0 | L136: 1324 Engomadores | O136: 73
D137: Castro Verde | E137: 74 | F137: 0 | G137: =IF(E63=E137,F137,) -> 0 | L137: 1325 Esteticistas, manicuras e pedicuras | O137: 74
D138: Celorico da Beira | E138: 75 | F138: 0.01 | G138: =IF(E63=E138,F138,) -> 0 | L138: 1326 Guias-intérpretes | O138: 75
D139: Celorico de Basto | E139: 76 | F139: 0 | G139: =IF(E63=E139,F139,) -> 0 | L139: 1327 Jornalistas e repórteres | O139: 76
D140: Chamusca | E140: 77 | F140: 0 | G140: =IF(E63=E140,F140,) -> 0 | L140: 1328 Louvados | O140: 77
D141: Chaves | E141: 78 | F141: 0 | G141: =IF(E63=E141,F141,) -> 0 | L141: 1329 Massagistas | O141: 78
D142: Cinfães | E142: 79 | F142: 0.02 | G142: =IF(E63=E142,F142,) -> 0 | L142: 1330 Mediadores imobiliários | O142: 79
D143: Coimbra | E143: 80 | F143: 0.005 | G143: =IF(E63=E143,F143,) -> 0 | L143: 1331 Peritos-avaliadores | O143: 80
D144: Condeixa-a-Nova | E144: 81 | F144: 0 | G144: =IF(E63=E144,F144,) -> 0 | L144: 1332 Programadores informáticos | O144: 81
D145: Constância | E145: 82 | F145: 0 | G145: =IF(E63=E145,F145,) -> 0 | L145: 1333 Publicitários | O145: 82
D146: Coruche | E146: 83 | F146: 0.02 | G146: =IF(E63=E146,F146,) -> 0 | L146: 1334 Tradutores. | O146: 83
D147: Corvo | E147: 84 | F147: 0 | G147: =IF(E63=E147,F147,) -> 0 | L147: 1335 Farmacêuticos | O147: 84
D148: Covilhã | E148: 85 | F148: 0 | G148: =IF(E63=E148,F148,) -> 0 | L148: 1336 Designers (aditada pela Lei n.º53-A/2006-29/12) | O148: 85
D149: Crato | E149: 86 | F149: 0 | G149: =IF(E63=E149,F149,) -> 0 | L149: 1410 Veterinários
D150: Cuba | E150: 87 | F150: 0 | G150: =IF(E63=E150,F150,) -> 0
D151: Elvas | E151: 88 | F151: 0 | G151: =IF(E63=E151,F151,) -> 0
D152: Entroncamento | E152: 89 | F152: 0 | G152: =IF(E63=E152,F152,) -> 0
D153: Espinho | E153: 90 | F153: 0.0025 | G153: =IF(E63=E153,F153,) -> 0
D154: Esposende | E154: 91 | F154: 0 | G154: =IF(E63=E154,F154,) -> 0
D155: Estarreja | E155: 92 | F155: 0.02 | G155: =IF(E63=E155,F155,) -> 0
D156: Estremoz | E156: 93 | F156: 0 | G156: =IF(E63=E156,F156,) -> 0
D157: Évora | E157: 94 | F157: 0 | G157: =IF(E63=E157,F157,) -> 0
D158: Fafe | E158: 95 | F158: 0.02 | G158: =IF(E63=E158,F158,) -> 0
D159: Faro | E159: 96 | F159: 0 | G159: =IF(E63=E159,F159,) -> 0
D160: Felgueiras | E160: 97 | F160: 0 | G160: =IF(E63=E160,F160,) -> 0
D161: Ferreira do Alentejo | E161: 98 | F161: 0 | G161: =IF(E63=E161,F161,) -> 0
D162: Ferreira do Zêzere | E162: 99 | F162: 0.025 | G162: =IF(E63=E162,F162,) -> 0
D163: Figueira da Foz | E163: 100 | F163: 0.01 | G163: =IF(E63=E163,F163,) -> 0
D164: Figueira de Castelo Rodrigo | E164: 101 | F164: 0.05 | G164: =IF(E63=E164,F164,) -> 0
D165: Figueiró dos Vinhos | E165: 102 | F165: 0.01 | G165: =IF(E63=E165,F165,) -> 0
D166: Fornos de Algodres | E166: 103 | F166: 0 | G166: =IF(E63=E166,F166,) -> 0
D167: Freixo de Espada à Cinta | E167: 104 | F167: 0 | G167: =IF(E63=E167,F167,) -> 0
D168: Fronteira | E168: 105 | F168: 0.03 | G168: =IF(E63=E168,F168,) -> 0
D169: Funchal | E169: 106 | F169: 0.015 | G169: =IF(E63=E169,F169,) -> 0
D170: Fundão | E170: 107 | F170: 0 | G170: =IF(E63=E170,F170,) -> 0
D171: Gavião | E171: 108 | F171: 0.05 | G171: =IF(E63=E171,F171,) -> 0
D172: Góis | E172: 109 | F172: 0.025 | G172: =IF(E63=E172,F172,) -> 0
D173: Golegã | E173: 110 | F173: 0 | G173: =IF(E63=E173,F173,) -> 0
D174: Gondomar | E174: 111 | F174: 0.005 | G174: =IF(E63=E174,F174,) -> 0
D175: Gouveia | E175: 112 | F175: 0.02 | G175: =IF(E63=E175,F175,) -> 0
D176: Grândola | E176: 113 | F176: 0 | G176: =IF(E63=E176,F176,) -> 0
D177: Guarda | E177: 114 | F177: 0 | G177: =IF(E63=E177,F177,) -> 0
D178: Guimarães | E178: 115 | F178: 0 | G178: =IF(E63=E178,F178,) -> 0
D179: Horta | E179: 116 | F179: 0.0025 | G179: =IF(E63=E179,F179,) -> 0
D180: Idanha-a-Nova | E180: 117 | F180: 0.025 | G180: =IF(E63=E180,F180,) -> 0
D181: Ílhavo | E181: 118 | F181: 0 | G181: =IF(E63=E181,F181,) -> 0
D182: Lagoa (Faro) | E182: 119 | F182: 0.02 | G182: =IF(E63=E182,F182,) -> 0
D183: Lagoa (Açores) | E183: 120 | F183: 0 | G183: =IF(E63=E183,F183,) -> 0
D184: Lagos | E184: 121 | F184: 0.005 | G184: =IF(E63=E184,F184,) -> 0
D185: Lajes das Flores | E185: 122 | F185: 0.01 | G185: =IF(E63=E185,F185,) -> 0
D186: Lajes do Pico | E186: 123 | F186: 0 | G186: =IF(E63=E186,F186,) -> 0
D187: Lamego | E187: 124 | F187: 0.01 | G187: =IF(E63=E187,F187,) -> 0
D188: Leiria | E188: 125 | F188: 0 | G188: =IF(E63=E188,F188,) -> 0
D189: Lisboa | E189: 126 | F189: 0.025 | G189: =IF(E63=E189,F189,) -> 0
D190: Loulé | E190: 127 | F190: 0.05 | G190: =IF(E63=E190,F190,) -> 0
D191: Loures | E191: 128 | F191: 0 | G191: =IF(E63=E191,F191,) -> 0
D192: Lourinhã | E192: 129 | F192: 0.0125 | G192: =IF(E63=E192,F192,) -> 0
D193: Lousã | E193: 130 | F193: 0.01 | G193: =IF(E63=E193,F193,) -> 0
D194: Lousada | E194: 131 | F194: 0.01 | G194: =IF(E63=E194,F194,) -> 0
D195: Mação | E195: 132 | F195: 0.01 | G195: =IF(E63=E195,F195,) -> 0
D196: Macedo de Cavaleiros | E196: 133 | F196: 0.04 | G196: =IF(E63=E196,F196,) -> 0
D197: Machico | E197: 134 | F197: 0.01 | G197: =IF(E63=E197,F197,) -> 0
D198: Madalena | E198: 135 | F198: 0 | G198: =IF(E63=E198,F198,) -> 0
D199: Mafra | E199: 136 | F199: 0.0025 | G199: =IF(E63=E199,F199,) -> 0
D200: Maia | E200: 137 | F200: 0 | G200: =IF(E63=E200,F200,) -> 0
D201: Mangualde | E201: 138 | F201: 0.01 | G201: =IF(E63=E201,F201,) -> 0
D202: Manteigas | E202: 139 | F202: 0.05 | G202: =IF(E63=E202,F202,) -> 0
D203: Marco de Canaveses | E203: 140 | F203: 0.01 | G203: =IF(E63=E203,F203,) -> 0
D204: Marinha Grande | E204: 141 | F204: 0 | G204: =IF(E63=E204,F204,) -> 0
D205: Marvão | E205: 142 | F205: 0.025 | G205: =IF(E63=E205,F205,) -> 0
D206: Matosinhos | E206: 143 | F206: 0 | G206: =IF(E63=E206,F206,) -> 0
D207: Mealhada | E207: 144 | F207: 0.03 | G207: =IF(E63=E207,F207,) -> 0
D208: Mêda | E208: 145 | F208: 0 | G208: =IF(E63=E208,F208,) -> 0
D209: Melgaço | E209: 146 | F209: 0 | G209: =IF(E63=E209,F209,) -> 0
D210: Mértola | E210: 147 | F210: 0 | G210: =IF(E63=E210,F210,) -> 0
D211: Mesão Frio | E211: 148 | F211: 0 | G211: =IF(E63=E211,F211,) -> 0
D212: Mira | E212: 149 | F212: 0 | G212: =IF(E63=E212,F212,) -> 0
D213: Miranda do Corvo | E213: 150 | F213: 0 | G213: =IF(E63=E213,F213,) -> 0
D214: Miranda do Douro | E214: 151 | F214: 0 | G214: =IF(E63=E214,F214,) -> 0
D215: Mirandela | E215: 152 | F215: 0.01 | G215: =IF(E63=E215,F215,) -> 0
D216: Mogadouro | E216: 153 | F216: 0.025 | G216: =IF(E63=E216,F216,) -> 0
D217: Moimenta da Beira | E217: 154 | F217: 0 | G217: =IF(E63=E217,F217,) -> 0
D218: Moita | E218: 155 | F218: 0 | G218: =IF(E63=E218,F218,) -> 0
D219: Monção | E219: 156 | F219: 0.02 | G219: =IF(E63=E219,F219,) -> 0
D220: Monchique | E220: 157 | F220: 0.025 | G220: =IF(E63=E220,F220,) -> 0
... 154 more rows

Sheet Anexo A
B4: QUADRO 4A
B5: RENDIMENTOS, RETENÇÕES, CONTRIBUIÇÕES OBRIGATÓRIAS, QUOTIZAÇÕES SINDICAIS | O5: =TEXT(B43,) ->  | R5: ☞ | S5: Não deficiente | U5: Não deficiente | W5: Não deficiente | Y5: Não deficiente
B6: TRABALHO DEPENDENTE - [Artigo 2.º do Código do IRS] | N6: Código | O6: Sujeito Passivo A | Q6: Sujeito Passivo B | S6: Dependente 1 | U6: Dependente 2 | W6: Dependente 3 | Y6: Dependente 4
B7: Trabalho dependente – Rendimento bruto | N7: 401
B8: Gratificações não atribuídas pela entidade patronal | N8: 402
B9: Subsídios pagos pelas associações humanitárias de Bombeiros [Atividade voluntária] | N9: 408
B10: Indemnizações pagas pelo trabalhador ao patrão | N10: 421
B11: Quotizações para ordens profissionais | N11: 422
B12: Despesas de valorização profissional de juízes | N12: 423
B13: Prémios de seguros profissões desgaste rápido | N13: 424
B14: Quotizações sindicais [Valor Pago]
B15: Retenções na fonte de IRS
B16: Contribuições para a segurança social incluindo a CPAS ✚ Subsistemas de saúde [ADSE, ADME, ADMA, ADMFA, SAMS, SAD/GNR, SAD/PSP]
B17: Rendimentos de anos anteriores [Incluídos no Código 401 do Anexo A] | N17: Quadro 5
B18: Indique o N.º de anos
B20: RENDIMENTOS, RETENÇÕES, CONTRIBUIÇÕES OBRIGATÓRIAS, QUOTIZAÇÕES SINDICAIS | O20: =TEXT(B44,) ->  | R20: ☞ | S20: Não deficiente | U20: Não deficiente | W20: Não deficiente | Y20: Não deficiente
B21: PENSÕES - [Artigos 11.º e 53.º do Código do IRS] | N21: Código | O21: Sujeito Passivo A | Q21: Sujeito Passivo B | S21: Dependente 1 | U21: Dependente 2 | W21: Dependente 3 | Y21: Dependente 4
B22: Pensões [Com exceção das Pensões de Sobrevivência e Alimentos] | N22: 403
B23: Pensões de sobrevivência | N23: 404
B24: Pensões de alimentos [Insira nesta linha as pensões de alimentos recebidas] | N24: 405
B25: Os sujeitos passivos optam pelo englobamento das pensões de alimentos ? | L25: Indique ali a | N25: ☞ | O25: Opção | Q25: =O25 -> Opção | S25: =O25 -> Opção | U25: =O25 -> Opção | W25: =O25 -> Opção | Y25: =O25 -> Opção
B26: Rendas temporárias e vitalícias | N26: 406
B27: Quotizações sindicais [Valor Pago]
B28: Retenções na fonte de IRS
B29: Contribuições para a segurança social incluindo a CPAS ✚ Subsistemas de saúde [ADSE, ADME, ADMA, ADMFA, SAMS, SAD/GNR, SAD/PSP]
B30: Rendimentos de anos anteriores [Incluídos no Código 403 do Anexo A] | N30: Quadro 5
B31: Indique o N.º de anos
B36: INÍCIO
B38: Dep. 1 deficiente Cat. A | E38: Dep. 2 deficiente Cat. A | H38: Dep. 3 deficiente Cat. A | K38: Dep. 4 deficiente Cat. A | N38: Dep. 1 deficiente Cat. H | Q38: Dep. 2 deficiente Cat. H | T38: Dep. 3 deficiente Cat. H | W38: Dep. 4 deficiente Cat. H | Z38: Pensões de alimentos Opção englobamento
B39: Não deficiente | C39: 2 | E39: Não deficiente | F39: 2 | H39: Não deficiente | I39: 2 | K39: Não deficiente | L39: 2 | N39: Não deficiente | O39: 2 | Q39: Não deficiente | R39: 2 | T39: Não deficiente | U39: 2 | W39: Não deficiente | X39: 2 | Z39: Opção | AA39: 1
B40: Deficiente ≥ 60% | C40: 3 | E40: Deficiente ≥ 60% | F40: 3 | H40: Deficiente ≥ 60% | I40: 3 | K40: Deficiente ≥ 60% | L40: 3 | N40: Deficiente ≥ 60% | O40: 3 | Q40: Deficiente ≥ 60% | R40: 3 | T40: Deficiente ≥ 60% | U40: 3 | W40: Deficiente ≥ 60% | X40: 3 | Z40: Sim | AA40: 2
C41: =VLOOKUP(S5,B39:C40,2,FALSE) -> 2 | F41: =VLOOKUP(U5,E39:F40,2,FALSE) -> 2 | I41: =VLOOKUP(W5,H39:I40,2,FALSE) -> 2 | L41: =VLOOKUP(Y5,K39:L40,2,FALSE) -> 2 | O41: =VLOOKUP(S20,N39:O40,2,FALSE) -> 2 | R41: =VLOOKUP(U20,Q39:R40,2,FALSE) -> 2 | U41: =VLOOKUP(W20,T39:U40,2,FALSE) -> 2 | X41: =VLOOKUP(Y20,W39:X40,2,FALSE) -> 2 | Z41: Não | AA41: 3
AA42: =VLOOKUP(O25,Z39:AA41,2,FALSE) -> 1
B43: =IF(L43=2,"Indique ali qual dos dependentes é deficiente ≥ 60% ? ",) -> 0 | J43: =IF('Modelo 3'!J20+'Modelo 3'!J21+'Modelo 3'!J22+'Modelo 3'!J23+'Modelo 3'!K20+'Modelo 3'!K21+'Modelo 3'!K22+'Modelo 3'!K23>=1,1,) -> 0 | K43: =IF(S7+U7+W7+Y7>=1,1,) -> 0 | L43: =SUM(J43:K43) -> 0
B44: =IF(L44=2,"Indique ali qual dos dependentes é deficiente ≥ 60% ?",) -> 0 | J44: =J43 -> 0 | K44: =IF(S22+S23+S24+S26+U22+U23+U24+U26+W22+W23+W24+W26+Y22+Y23+Y24+Y26>=1,1,) -> 0 | L44: =SUM(J44:K44) -> 0
B45: =IF(B55+B178+B188+B198+B209+N135+N136=0,"➤",IF(B55+B178+B188+B198+B209+N135+N136>=1,"Tem",)) -> ➤
B46: CATEGORIA A | R46: ='Modelo 3'!D38 -> 1 | S46: ='Modelo 3'!F52 -> 1
B47: Art.º 2.º do CIRS - Rendimentos da Cat. A
B48: T. Separada → | D48: =IF(R48=1,D51,0) -> 0 | F48: =IF(R48=1,F51,0) -> 0 | H48: =IF(R48=1,H51/2,0) -> 0 | J48: =IF(R48=1,J51/2,0) -> 0 | L48: =IF(R48=1,L51/2,0) -> 0 | N48: =IF(R48=1,N51/2,0) -> 0 | R48: =R46 -> 1 | S48: =IF(S50=TRUE,4,IF(S51=TRUE,4,IF(S52=TRUE,1,S46))) -> 1 | T48: =SUM('Anexo J'!L7) -> 0
B49: Rendimento Bruto → | D49: =(O7+D59+T48)-D154 -> 0 | F49: =(Q7+F59+T49)-F154 -> 0 | H49: =(S7+H59)-H154 -> 0 | J49: =(U7+J59)-J154 -> 0 | L49: =W7-L154 -> 0 | N49: =Y7-N154 -> 0 | T49: =SUM('Anexo J'!N7) -> 0
D50: Sujeito Passivo A | F50: Sujeito Passivo B | H50: Dependente 1 | J50: Dependente 2 | L50: Dependente 3 | N50: Dependente 4 | S50: ='Modelo 3'!D43 -> 0
B51: SOMA TOTAL→ | D51: =D49 -> 0 | F51: =F49 -> 0 | H51: =H49 -> 0 | J51: =J49 -> 0 | L51: =L49 -> 0 | N51: =N49 -> 0 | S51: ='Modelo 3'!E43 -> 0
B52: Continente (RB) | D52: SOMA | F52: =SUM(D51:O51) -> 0 | H52: =IF(S48=1,F52,) -> 0 | K52: T. Separada | S52: ='Modelo 3'!F43 -> 0
B53: Açores | D53: SOMA | F53: =IF(F52<0,0,F52) -> 0 | H53: =IF(S48=2,F53,) -> 0 | J53: SP A→ | K53: =IF(S48>=4,0,SUM(D48+H48+J48+L48+N48)) -> 0
B54: Madeira | D54: SOMA | F54: =IF(F52<0,0,F52) -> 0 | H54: =IF(S48=3,F54,) -> 0 | J54: SP B→ | K54: =IF(S48>=4,0,SUM(F48+H48+J48+L48+N48)) -> 0
B55: =IF(F52<0,0,SUM(H52+H53+H54)) -> 0 | D55: ← Rendimento Bruto
B56: Cat. B - Opção pelos rendimentos da Cat. A
D57: =IF('Anexo B'!C81=2,4,IF('Anexo B'!O81=2,4,)) -> 0 | F57: =IF('Anexo B'!F81=2,4,IF('Anexo B'!R81=2,4,)) -> 0 | H57: =IF('Anexo B'!I81=2,4,IF('Anexo B'!U81=2,4,)) -> 0 | J57: =IF('Anexo B'!L81=2,4,IF('Anexo B'!X81=2,4,)) -> 0
B58: Campos 403,404,408 | D58: Sujeito Passivo A | F58: Sujeito Passivo B | H58: Dependente 1 | J58: Dependente 2
B59: Rendimento Bruto → | D59: =IF(D57=4,M59,0) -> 0 | F59: =IF(F57=4,N59,0) -> 0 | H59: =IF(H57=4,O59,0) -> 0 | J59: =IF(J57=4,P59,0) -> 0 | M59: =SUM('Anexo B'!Z16) -> 0 | N59: =SUM('Anexo B'!AA16) -> 0 | O59: =SUM('Anexo B'!AB16) -> 0 | P59: =SUM('Anexo B'!AC16) -> 0
B61: Art.º 25.º do CIRS - Dedução específica da categoria A + Segurança Social | R61: ='Modelo 3'!J36 -> 4104
B62: T. Separada → | D62: =IF(R62=1,D66,0) -> 0 | F62: =IF(R62=1,F66,0) -> 0 | H62: =IF(R62=1,H66/2,0) -> 0 | J62: =IF(R62=1,J66/2,0) -> 0 | L62: =IF(R62=1,L66/2,0) -> 0 | N62: =IF(R62=1,N66/2,0) -> 0 | P62: =IF(O16<=R61,R61,IF(O16>R61,O16,)) -> 4104 | Q62: =IF(D57<=3,0,IF(D57=4,SUM('Anexo B'!P36+'Anexo B'!P55))) -> 0 | R62: =R46 -> 1 | S62: =IF(S64=TRUE,4,IF(S65=TRUE,4,IF(S66=TRUE,1,S46))) -> 1 | T62: =SUM('Anexo J'!L8) -> 0
B63: Rendimento Bruto → | D63: =D49 -> 0 | F63: =F49 -> 0 | H63: =H49 -> 0 | J63: =J49 -> 0 | L63: =L49 -> 0 | N63: =N49 -> 0 | P63: =IF(Q16<=R61,R61,IF(Q16>R61,Q16,)) -> 4104 | Q63: =IF(F57<=3,0,IF(F57=4,SUM('Anexo B'!R36+'Anexo B'!R55))) -> 0 | T63: =SUM('Anexo J'!N8) -> 0
B64: Limites → | D64: =IF(O16+T62+Q62<P62,P62,O16+T62+Q62) -> 4104 | F64: =IF(Q16+T63+Q63<P63,P63,Q16+T63+Q63) -> 4104 | H64: =IF(S16+Q64<P64,P64,S16+Q64) -> 4104 | J64: =IF(U16+Q65<P65,P65,U16+Q65) -> 4104 | L64: =IF(W29<P66,P66,W29) -> 4104 | N64: =IF(Y16<P67,P67,Y16) -> 4104 | P64: =IF(S16<=R61,R61,IF(S16>R61,S16,)) -> 4104 | Q64: =IF(H57<=3,0,IF(H57=4,SUM('Anexo B'!T36))) -> 0 | S64: ='Modelo 3'!D43 -> 0
D65: Sujeito Passivo A | F65: Sujeito Passivo B | H65: Dependente 1 | J65: Dependente 2 | L65: Dependente 3 | N65: Dependente 4 | P65: =IF(U16<=R61,R61,IF(U16>R61,U16,)) -> 4104 | Q65: =IF(J57<=3,0,IF(J57=4,SUM('Anexo B'!V36))) -> 0 | S65: ='Modelo 3'!E43 -> 0
B66: SOMA TOTAL→ | D66: =IF(D63<D64,D63,D64) -> 0 | F66: =IF(F63<F64,F63,F64) -> 0 | H66: =IF(H63<H64,H63,H64) -> 0 | J66: =IF(J63<J64,J63,J64) -> 0 | L66: =IF(L63<L64,L63,L64) -> 0 | N66: =IF(N63<N64,N63,N64) -> 0 | P66: =IF(W16<=R61,R61,IF(W16>R61,W16,)) -> 4104 | S66: ='Modelo 3'!F43 -> 0
B67: Continente (DE) | D67: SOMA | F67: =SUM(D66:O66) -> 0 | H67: =IF(S62=1,F67,) -> 0 | K67: T. Separada | P67: =IF(Y16<=R61,R61,IF(Y16>R61,Y16,)) -> 4104
B68: Açores | D68: SOMA | F68: =IF(F67<0,0,F67) -> 0 | H68: =IF(S62=2,F68,) -> 0 | J68: SP A→ | K68: =IF(S62>=4,0,SUM(D62+H62+J62+L62+N62)) -> 0
B69: Madeira | D69: SOMA | F69: =IF(F67<0,0,F67) -> 0 | H69: =IF(S62=3,F69,) -> 0 | J69: SP B→ | K69: =IF(S62>=4,0,SUM(F62+H62+J62+L62+N62)) -> 0
B70: =IF(F67<0,0,SUM(H67+H68+H69)) -> 0 | D70: ← Dedução Específica
B72: Art.º 25.º do CIRS - Quotizações para ordens profissionais | R72: 4275 | S72: =R61 -> 4104
B73: T. Separada → | D73: =IF(R73=1,D77,0) -> 0 | F73: =IF(R73=1,F77,0) -> 0 | H73: =IF(R73=1,H77/2,0) -> 0 | J73: =IF(R73=1,J77/2,0) -> 0 | L73: =IF(R73=1,L77/2,0) -> 0 | N73: =IF(R73=1,N77/2,0) -> 0 | P73: =IF(Q73>=1,0,IF(D66>S72,0,R72-S72)) -> 171 | Q73: =SUM(+'Anexo B'!I124+'Anexo B'!I144+'Anexo B'!I180+'Anexo E'!I49+'Anexo F'!I45+'Anexo G'!I63+'Anexo G'!I87) -> 0 | R73: =R46 -> 1 | S73: =IF(S74=TRUE,4,IF(S75=TRUE,4,IF(S76=TRUE,1,S46))) -> 1
B74: Rendimento Bruto → | D74: =IF('Anexo A'!O7>=1,O11+'Anexo B'!P37,) -> 0 | F74: =IF(Q7>=1,Q11+'Anexo B'!R37,) -> 0 | H74: =IF(S7>=1,S11+'Anexo B'!T37,) -> 0 | J74: =IF(U7>=1,U11+'Anexo B'!V37,) -> 0 | L74: =IF(W7>=1,W11,) -> 0 | N74: =IF(Y7>=1,Y11,) -> 0 | P74: =IF(Q74>=1,0,IF(F66>S72,0,R72-S72)) -> 171 | Q74: =SUM('Anexo B'!I125+'Anexo B'!I145+'Anexo E'!I50+'Anexo F'!I46+'Anexo G'!I64+'Anexo G'!I88) -> 0 | S74: ='Modelo 3'!D43 -> 0
B75: Limites → | D75: =IF(D74>=1,P73,0) -> 0 | F75: =IF(F74>=1,P74,0) -> 0 | H75: =IF(H74>=1,P75,0) -> 0 | J75: =IF(J74>=1,P76,0) -> 0 | L75: =IF(L74>=1,P77,0) -> 0 | N75: =IF(N74>=1,P78,0) -> 0 | P75: =IF(Q75>=1,0,IF(H66>S72,0,R72-S72)) -> 171 | Q75: ='Anexo B'!V118+'Anexo B'!J136 -> 0 | S75: ='Modelo 3'!E43 -> 0
D76: Sujeito Passivo A | F76: Sujeito Passivo B | H76: Dependente 1 | J76: Dependente 2 | L76: Dependente 3 | N76: Dependente 4 | P76: =IF(Q76>=1,0,IF(J66>S72,0,R72-S72)) -> 171 | Q76: =SUM('Anexo B'!AC118+'Anexo B'!L136) -> 0 | S76: ='Modelo 3'!F43 -> 0
B77: SOMA TOTAL→ | D77: =IF(D74<D75,D74,D75) -> 0 | F77: =IF(F74<F75,F74,F75) -> 0 | H77: =IF(H74<H75,H74,H75) -> 0 | J77: =IF(J74<J75,J74,J75) -> 0 | L77: =IF(L74<L75,L74,L75) -> 0 | N77: =IF(N74<N75,N74,N75) -> 0 | P77: =IF(L66>S72,0,R72-S72) -> 171
B78: Continente (DE) | D78: SOMA | F78: =SUM(D77:O77) -> 0 | H78: =IF(S73=1,F78,) -> 0 | K78: T. Separada | P78: =IF(N66>S72,0,R72-S72) -> 171
B79: Açores | D79: SOMA | F79: =IF(F78<0,0,F78) -> 0 | H79: =IF(S73=2,F79,) -> 0 | J79: SP A→ | K79: =IF(S73>=4,0,SUM(D73+H73+J73+L73+N73)) -> 0
B80: Madeira | D80: SOMA | F80: =IF(F78<0,0,F78) -> 0 | H80: =IF(S73=3,F80,) -> 0 | J80: SP B→ | K80: =IF(S73>=4,0,SUM(F73+H73+J73+L73+N73)) -> 0
B81: =IF(F78<0,0,SUM(H78+H79+H80)) -> 0 | D81: ← Dedução Específica
B83: Art.º 25.º do CIRS - Quotizações Sindicais Cat. A | R83: =R46 -> 1 | S83: =IF(S84=TRUE,4,IF(S85=TRUE,4,IF(S86=TRUE,1,S46))) -> 1
B84: T. Separada → | D84: =IF(R83=1,D89,0) -> 0 | F84: =IF(R83=1,F89,0) -> 0 | H84: =IF(R83=1,H89/2,0) -> 0 | J84: =IF(R83=1,J89/2,0) -> 0 | L84: =IF(R83=1,L89/2,0) -> 0 | N84: =IF(R83=1,N89/2,0) -> 0 | S84: ='Modelo 3'!D43 -> 0
B85: Quot. Sindicais → | D85: =O14+'Anexo B'!P38 -> 0 | F85: =Q14+'Anexo B'!R38 -> 0 | H85: =S14+'Anexo B'!T38 -> 0 | J85: =U14+'Anexo B'!V38 -> 0 | L85: =W14 -> 0 | N85: =Y14 -> 0 | S85: ='Modelo 3'!E43 -> 0
B86: Rendimento Bruto → | D86: =D49 -> 0 | F86: =F49 -> 0 | H86: =H49 -> 0 | J86: =J49 -> 0 | L86: =L49 -> 0 | N86: =N49 -> 0 | S86: ='Modelo 3'!F43 -> 0
B87: Taxa → | D87: 0.01 | F87: 1.5 | H87: =R61 -> 4104
D88: Sujeito Passivo A | F88: Sujeito Passivo B | H88: Dependente 1 | J88: Dependente 2 | L88: Dependente 3 | N88: Dependente 4
B89: SOMA TOTAL→ | D89: =IF(D85>D86*D87,(D86*D87)*F87,D85*F87) -> 0 | F89: =IF(F85>F86*D87,(F86*D87)*F87,F85*F87) -> 0 | H89: =IF(H85>H86*D87,(H86*D87)*F87,H85*F87) -> 0 | J89: =IF(J85>J86*D87,(J86*D87)*F87,J85*F87) -> 0 | L89: =IF(L85>L86*D87,(L86*D87)*F87,L85*F87) -> 0 | N89: =IF(N85>N86*D87,(N86*D87)*F87,N85*F87) -> 0
B90: Continente (DE) | D90: SOMA | F90: =SUM(D89:O89) -> 0 | H90: =IF(S83=1,F90,) -> 0 | K90: T. Separada
B91: Açores | D91: SOMA | F91: =IF(F90<0,0,F90) -> 0 | H91: =IF(S83=2,F91,) -> 0 | J91: SP A→ | K91: =IF(S83>=4,0,SUM(D84+H84+J84+L84+N84)) -> 0
B92: Madeira | D92: SOMA | F92: =IF(F90<0,0,F90) -> 0 | H92: =IF(S83=3,F92,) -> 0 | J92: SP B→ | K92: =IF(S83>=4,0,SUM(F84+H84+J84+L84+N84)) -> 0
B93: =IF(F90<0,0,SUM(H90+H91+H92)) -> 0 | D93: ← Dedução Específica
B95: Art.º 25.º do CIRS - Indemnizações pagas pelo trabalhador ao patrão | R95: =R46 -> 1 | S95: =IF(S96=TRUE,4,IF(S97=TRUE,4,IF(S98=TRUE,1,S46))) -> 1
B96: T. Separada → | D96: =IF(R95=1,D99,0) -> 0 | F96: =IF(R95=1,F99,0) -> 0 | H96: =IF(R95=1,H99/2,0) -> 0 | J96: =IF(R95=1,J99/2,0) -> 0 | L96: =IF(R95=1,L99/2,0) -> 0 | N96: =IF(R95=1,N99/2,0) -> 0 | S96: ='Modelo 3'!D43 -> 0
B97: Rendimento Bruto → | D97: =O10 -> 0 | F97: =Q10 -> 0 | H97: =S10 -> 0 | J97: =U10 -> 0 | L97: =W10 -> 0 | N97: =Y10 -> 0 | S97: ='Modelo 3'!E43 -> 0
D98: Sujeito Passivo A | F98: Sujeito Passivo B | H98: Dependente 1 | J98: Dependente 2 | L98: Dependente 3 | N98: Dependente 4 | S98: ='Modelo 3'!F43 -> 0
B99: SOMA TOTAL→ | D99: =D97 -> 0 | F99: =F97 -> 0 | H99: =H97 -> 0 | J99: =J97 -> 0 | L99: =L97 -> 0 | N99: =N97 -> 0
B100: Continente (DE) | D100: SOMA | F100: =SUM(D99:O99) -> 0 | H100: =IF(S95=1,F100,) -> 0 | K100: T. Separada
B101: Açores | D101: SOMA | F101: =IF(F100<0,0,F100) -> 0 | H101: =IF(S95=2,F101,) -> 0 | J101: SP A→ | K101: =IF(S95>=4,0,SUM(D96+H96+J96+L96+N96)) -> 0
B102: Madeira | D102: SOMA | F102: =IF(F100<0,0,F100) -> 0 | H102: =IF(S95=3,F102,) -> 0 | J102: SP B→ | K102: =IF(S95>=4,0,SUM(F96+H96+J96+L96+N96)) -> 0
B103: =IF(F100<0,0,SUM(H100+H101+H102)) -> 0 | D103: ← Dedução Específica
B105: Art.º 27.º e 32.º-A do CIRS - Prémios de seguros no âmbito de profissões de desgaste rápido | R105: =R46 -> 1 | S105: =IF(S106=TRUE,4,IF(S107=TRUE,4,IF(S108=TRUE,1,S46))) -> 1
B106: T. Separada → | D106: =IF(R105=1,D110,) -> 0 | F106: =IF(R105=1,F110,) -> 0 | H106: =IF(R105=1,H110/2,0) -> 0 | J106: =IF(R105=1,J110/2,0) -> 0 | L106: =IF(R105=1,L110/2,0) -> 0 | N106: =IF(R105=1,N110/2,0) -> 0 | S106: ='Modelo 3'!D43 -> 0
B107: Rendimento Bruto → | D107: =O13 -> 0 | F107: =Q13 -> 0 | H107: =S13 -> 0 | J107: =U13 -> 0 | L107: =W13 -> 0 | N107: =Y13 -> 0 | S107: ='Modelo 3'!E43 -> 0
B108: Limites → | D108: 5 | F108: ='Modelo 3'!G36 -> 428.9 | H108: =D108*F108 -> 2144.5 | S108: ='Modelo 3'!F43 -> 0
D109: Sujeito Passivo A | F109: Sujeito Passivo B | H109: Dependente 1 | J109: Dependente 2 | L109: Dependente 3 | N109: Dependente 4
B110: SOMA TOTAL→ | D110: =IF(D107<H108,D107,IF(D107>=H108,H108,)) -> 0 | F110: =IF(F107<H108,F107,IF(F107>=H108,H108,)) -> 0 | H110: =IF(H107<H108,H107,IF(H107>=H108,H108,)) -> 0 | J110: =IF(J107<H108,J107,IF(J107>=H108,H108,)) -> 0 | L110: =IF(L107<H108,L107,IF(L107>=H108,H108,)) -> 0 | N110: =IF(N107<H108,N107,IF(N107>=H108,H108,)) -> 0
B111: Continente (DE) | D111: SOMA | F111: =SUM(D110:O110) -> 0 | H111: =IF(S105=1,F111,) -> 0 | K111: T. Separada
B112: Açores | D112: SOMA | F112: =IF(F111<0,0,F111) -> 0 | H112: =IF(S105=2,F112,) -> 0 | J112: SP A→ | K112: =IF(S105>=4,0,SUM(D106+H106+J106+L106+N106)) -> 0
B113: Madeira | D113: SOMA | F113: =IF(F111<0,0,F111) -> 0 | H113: =IF(S105=3,F113,) -> 0 | J113: SP B→ | K113: =IF(S105>=4,0,SUM(F106+H106+J106+L106+N106)) -> 0
B114: =IF(F111<0,0,SUM(H111+H112+H113)) -> 0 | D114: ← Dedução Específica
B116: Lei n.º 21/85, art.º 17 al. i), Despesas de valorização profissional de juízes | R116: =R46 -> 1 | S116: =IF(S117=TRUE,4,IF(S118=TRUE,4,IF(S119=TRUE,1,S46))) -> 1
B117: T. Separada → | D117: =IF(R116=1,D121,0) -> 0 | F117: =IF(R116=1,F121,0) -> 0 | H117: =IF(R116=1,H121/2,0) -> 0 | J117: =IF(R116=1,J121/2,0) -> 0 | L117: =IF(R116=1,L121/2,0) -> 0 | N117: =IF(R116=1,N121/2,0) -> 0 | S117: ='Modelo 3'!D43 -> 0
B118: Rendimento Bruto → | D118: =O12 -> 0 | F118: =Q12 -> 0 | H118: =S12 -> 0 | J118: =U12 -> 0 | L118: =W12 -> 0 | N118: =Y12 -> 0 | S118: ='Modelo 3'!E43 -> 0
B119: Limites → | D119: 249.4 | F119: 1 | S119: ='Modelo 3'!F43 -> 0
D120: Sujeito Passivo A | F120: Sujeito Passivo B | H120: Dependente 1 | J120: Dependente 2 | L120: Dependente 3 | N120: Dependente 4
B121: SOMA TOTAL→ | D121: =IF(D118*F119<D119,D118*F119,D119) -> 0 | F121: =IF(F118*F119<D119,F118*F119,D119) -> 0 | H121: =IF(H118*F119<D119,H118*F119,D119) -> 0 | J121: =IF(J118*F119<D119,J118*F119,D119) -> 0 | L121: =IF(L118*F119<D119,L118*F119,D119) -> 0 | N121: =IF(N118*F119<D119,N118*F119,D119) -> 0
B122: Continente (DE) | D122: SOMA | F122: =SUM(D121:O121) -> 0 | H122: =IF(S116=1,F122,) -> 0 | K122: T. Separada
B123: Açores | D123: SOMA | F123: =IF(F122<0,0,F122) -> 0 | H123: =IF(S116=2,F123,) -> 0 | J123: SP A→ | K123: =IF(S116>=4,0,SUM(D117+H117+J117+L117+N117)) -> 0
B124: Madeira | D124: SOMA | F124: =IF(F123<0,0,F123) -> 0 | H124: =IF(S116=3,F124,) -> 0 | J124: SP B→ | K124: =IF(S116>=4,0,SUM(F117+H117+J117+L117+N117)) -> 0
B125: =IF(F122<0,0,SUM(H122+H123+H124)) -> 0 | D125: ← Dedução Específica
B127: Art.º 2.º do CIRS - Gratificações não atribuídas pela entidade patronal | R127: =R46 -> 1 | S127: =IF(S128=TRUE,4,IF(S129=TRUE,4,IF(S130=TRUE,1,S46))) -> 1
B128: T. Separada → | D128: =IF(R127=1,D133,0) -> 0 | F128: =IF(R127=1,F133,0) -> 0 | H128: =IF(R127=1,H133/2,0) -> 0 | J128: =IF(R127=1,J133/2,0) -> 0 | L128: =IF(R127=1,L133/2,0) -> 0 | N128: =IF(R127=1,N133/2,0) -> 0 | S128: ='Modelo 3'!D43 -> 0
B129: Grati. Bombeiros → | D129: =IF(O9>F131,F131*E131,IF(O9<=F131,O9*E131,)) -> 0 | F129: =IF(Q9>F131,F131*E131,IF(Q9<=F131,Q9*E131,)) -> 0 | H129: =IF(S9>F131,F131*E131,IF(S9<=F131,S9*E131,)) -> 0 | J129: =IF(U9>F131,F131*E131,IF(U9<=F131,U9*E131,)) -> 0 | L129: =IF(W9>F131,F131*E131,IF(W9<=F131,W9*E131,)) -> 0 | N129: =IF(Y9>F131,F131*E131,IF(Y9<=F131,Y9*E131,)) -> 0 | S129: ='Modelo 3'!E43 -> 0
B130: Rendimento Bruto → | D130: =O8*E131 -> 0 | F130: =Q8*E131 -> 0 | H130: =(S8*E131) -> 0 | J130: =(U8*E131) -> 0 | L130: =(W8*E131) -> 0 | N130: =(Y8*E131) -> 0 | S130: ='Modelo 3'!F43 -> 0
B131: Taxa → | E131: ='Modelo 3'!N36 -> 0.1 | F131: ='Modelo 3'!G36*3 -> 1286.7 | O131: ='Modelo 3'!S36 -> 0.25
D132: Sujeito Passivo A | F132: Sujeito Passivo B | H132: Dependente 1 | J132: Dependente 2 | L132: Dependente 3 | N132: Dependente 4
B133: SOMA TOTAL→ | D133: =SUM(D129:E130) -> 0 | F133: =SUM(F129:G130) -> 0 | H133: =SUM(H129:I130) -> 0 | J133: =SUM(J129:K130) -> 0 | L133: =SUM(L129:M130) -> 0 | N133: =SUM(N129:O130) -> 0
B134: Continente (TA) | D134: SOMA | F134: =SUM(D133:O133) -> 0 | H134: =IF(S127=1,F134,) -> 0 | K134: T. Separada | N134: Não residentes
B135: Açores | D135: SOMA | F135: =IF(F134<0,0,F134) -> 0 | H135: =IF(S127=2,F135,) -> 0 | J135: SP A→ | K135: =IF(S127>=4,0,SUM(D128+H128+J128+L128+N128)) -> 0 | M135: SP A→ | N135: =IF(S127>=4,R135,) -> 0 | P135: =SUM(S7+U7+W7+Y7/2)+O7 -> 0 | R135: =IF(S127>=4,P135*O131,) -> 0
B136: Madeira | D136: SOMA | F136: =IF(F134<0,0,F134) -> 0 | H136: =IF(S127=3,F136,) -> 0 | J136: SP B→ | K136: =IF(S127>=4,0,SUM(F128+H128+J128+L128+N128)) -> 0 | M136: SP B→ | N136: =IF(S127>=4,R136,) -> 0 | P136: =SUM(S7+U7+W7+Y7/2)+Q7 -> 0 | R136: =IF(S127>=4,P136*O131,) -> 0
B137: =IF(F134<0,0,SUM(H134+H135+H136)) -> 0 | D137: ← Tributação Autónoma
B139: Retenção na fonte de IRS da categoria A | R139: =R46 -> 1 | S139: =IF(S140=TRUE,4,IF(S141=TRUE,4,IF(S142=TRUE,1,S46))) -> 1
B140: T. Separada → | D140: =IF(R139=1,D143,0) -> 0 | F140: =IF(R139=1,F143,0) -> 0 | H140: =IF(R139=1,H143/2,0) -> 0 | J140: =IF(R139=1,J143/2,0) -> 0 | L140: =IF(R139=1,L143/2,0) -> 0 | N140: =IF(R139=1,N143/2,0) -> 0 | S140: ='Modelo 3'!D43 -> 0
B141: Rendimento Bruto → | D141: =O15 -> 0 | F141: =Q15 -> 0 | H141: =S15 -> 0 | J141: =U15 -> 0 | L141: =W15 -> 0 | N141: =Y15 -> 0 | S141: ='Modelo 3'!E43 -> 0
D142: Sujeito Passivo A | F142: Sujeito Passivo B | H142: Dependente 1 | J142: Dependente 2 | L142: Dependente 3 | N142: Dependente 4 | S142: ='Modelo 3'!F43 -> 0
B143: SOMA TOTAL→ | D143: =D141 -> 0 | F143: =F141 -> 0 | H143: =H141 -> 0 | J143: =J141 -> 0 | L143: =L141 -> 0 | N143: =N141 -> 0
B144: Continente (RF) | D144: SOMA | F144: =SUM(D143:O143) -> 0 | H144: =IF(S139=1,F144,) -> 0 | K144: T. Separada | N144: Não residentes
B145: Açores | D145: SOMA | F145: =IF(F144<0,0,F144) -> 0 | H145: =IF(S139=2,F145,) -> 0 | J145: SP A→ | K145: =IF(S139>=4,0,SUM(D140+H140+J140+L140+N140)) -> 0 | M145: SP A→ | N145: =IF(S127>=4,P145,) -> 0 | P145: =SUM(D140+H140+J140+L140+N140) -> 0
B146: Madeira | D146: SOMA | F146: =IF(F144<0,0,F144) -> 0 | H146: =IF(S139=3,F146,) -> 0 | J146: SP B→ | K146: =IF(S139>=4,0,SUM(F140+H140+J140+L140+N140)) -> 0 | M146: SP B→ | N146: =IF(S127>=4,P146,) -> 0 | P146: =SUM(F140+H140+J140+L140+N140) -> 0
B147: =IF(F144<0,0,SUM(H144+H145+H146)) -> 0 | D147: ← Retenção na Fonte
B149: Art.º 56.º - A do CIRS - Sujeitos passivos com deficiência categoria A
B150: Rendimento Bruto → | D150: =SUM(O7+'Anexo B'!Z16+T150) -> 0 | F150: =SUM(Q7+'Anexo B'!AA16+T151) -> 0 | H150: =SUM(S7+'Anexo B'!AB16) -> 0 | J150: =SUM(U7+'Anexo B'!AC16) -> 0 | L150: =SUM(W7) -> 0 | N150: =SUM(Y7) -> 0 | P150: ='Modelo 3'!J20+'Modelo 3'!J21+'Modelo 3'!J22+'Modelo 3'!J23+'Modelo 3'!K20+'Modelo 3'!K21+'Modelo 3'!K22+'Modelo 3'!K23 -> 0 | T150: ='Anexo J'!L7 -> 0
B151: Taxa → | D151: 0.15 | E151: ='Modelo 3'!H20+'Modelo 3'!H21+'Modelo 3'!H22+'Modelo 3'!H23 -> 0 | G151: ='Modelo 3'!I20+'Modelo 3'!I21+'Modelo 3'!I22+'Modelo 3'!I23 -> 0 | I151: =IF(C41=2,0,IF(C41=3,SUM(P150))) -> 0 | K151: =IF(F41=2,0,IF(F41=3,SUM(P150))) -> 0 | M151: =IF(I41=2,0,IF(I41=3,SUM(P150))) -> 0 | O151: =IF(L41=2,0,IF(L41=3,SUM(P150))) -> 0 | T151: ='Anexo J'!N7 -> 0
B152: Limites → | D152: 2500
D153: Sujeito Passivo A | F153: Sujeito Passivo B | H153: Dependente 1 | J153: Dependente 2 | L153: Dependente 3 | N153: Dependente 4
B154: SOMA TOTAL → | D154: =IF(E151=0,0,IF(D155>D152,D152,D150*D151)) -> 0 | F154: =IF(G151=0,0,IF(F155>D152,D152,F150*D151)) -> 0 | H154: =IF(I151=0,0,IF(H155>D152,D152,H150*D151)) -> 0 | J154: =IF(K151=0,0,IF(J155>D152,D152,J150*D151)) -> 0 | L154: =IF(M151=0,0,IF(L155>D152,D152,L150*D151)) -> 0 | N154: =IF(O151=0,0,IF(N155>D152,D152,N150*D151)) -> 0
D155: =D150*D151 -> 0 | F155: =F150*D151 -> 0 | H155: =H150*D151 -> 0 | J155: =J150*D151 -> 0 | L155: =L150*D151 -> 0 | N155: =N150*D151 -> 0
B157: Art.º 74.º do CIRS - Rendimentos produzidos em anos anteriores Cat. A | M157: =Artigos!F51 -> 0
B158: T. Separada → | D158: =IF(X158=1,D160,0) -> 0 | F158: =IF(X158=1,J160+L160,0) -> 0 | H158: =IF(X158=1,D161,0) -> 0 | J158: =IF(X158=1,J161+L161,0) -> 0 | M158: =Artigos!F69 -> 0 | X158: =R46 -> 1 | Y158: =IF(Z162=TRUE,4,IF(Z163=TRUE,4,IF(Z164=TRUE,1,S46))) -> 1
B159: Nº de Anos → | E159: =O18+1 -> 1 | G159: =Q18+1 -> 1 | N159: Rendimento Bruto | P159: Dedução Específica | R159: Rendimento Coletável | T159: Rendi. Anos Anteriores | V159: TAXA | W159: Parcela a Abater | Y159: =D160*H160 -> 0
B160: Sujeito Passivo A → | D160: =IF(N160<1,0,(T160*R160)/N160*(E159-1)/E159) -> 0 | F160: =(R160-D160+0) -> 0 | H160: =(F160*V160)-W160 -> 0 | J160: =IF(X158=1,0,IF(N160<1,0,IF(R160<1,0,(H160*D160)/F160))) -> 0 | L160: =IF(Y159<=0,0,IF(X158=0,0,Y159/M157)) -> 0 | N160: =IF(Y158=4,0,D49) -> 0 | P160: =D66+D77+D89+D99+D110+D121 -> 0 | R160: =IF(Y158=4,0,IF(N160>P160,N160-P160,0)) -> 0 | T160: =O17 -> 0 | V160: =IF(X158=0,Artigos!B32,IF(X158=1,Artigos!B50,0)) -> 0 | W160: =IF(X158=0,Artigos!B33,IF(X158=1,Artigos!B51,0)) -> 0 | Y160: =D161*H161 -> 0
B161: Sujeito Passivo B → | D161: =IF(N161<1,0,(T161*R161)/N161*(G159-1)/G159) -> 0 | F161: =(R161-D161+0) -> 0 | H161: =(F161*V161)-W161 -> 0 | J161: =IF(X158=1,0,IF(N161<1,0,IF(R161<1,0,(H161*D161)/F161))) -> 0 | L161: =IF(Y160<=0,0,IF(X158=0,0,Y160/M158)) -> 0 | N161: =IF(Y158=4,0,F49) -> 0 | P161: =F66+F77+F89+F99+F110+F121 -> 0 | R161: =IF(Y158=4,0,IF(N161>P161,N161-P161,0)) -> 0 | T161: =Q17 -> 0 | V161: =IF(X158=0,Artigos!B68,IF(X158=1,Artigos!B68,0)) -> 0 | W161: =IF(X158=0,Artigos!B69,IF(X158=1,Artigos!B69,0)) -> 0
B162: SOMA TOTAL → | D162: =SUM(D160:E161) -> 0 | L162: =SUM(J160:M161) -> 0 | Z162: ='Modelo 3'!D43 -> 0
B163: Continente | D163: SOMA | E163: =SUM(D162) -> 0 | G163: =IF(Y158=1,E163,) -> 0 | I163: =SUM(L162) -> 0 | K163: =IF(Y158=1,I163,) -> 0 | N163: T. Separado | Q163: T. Separado | Z163: ='Modelo 3'!E43 -> 0
B164: Açores | D164: SOMA | E164: =IF(E163<0,0,E163) -> 0 | G164: =IF(Y158=2,E164,) -> 0 | I164: =IF(I163<0,0,I163) -> 0 | K164: =IF(Y158=2,I164,) -> 0 | M164: SP A→ | N164: =SUM(D158) -> 0 | P164: SP B→ | Q164: =SUM(H158) -> 0 | S164: ← Quociente dos rendimentos de anos anteriores | Z164: ='Modelo 3'!F43 -> 0
B165: Madeira | D165: SOMA | E165: =IF(E163<0,0,E163) -> 0 | G165: =IF(Y158=3,E165,) -> 0 | I165: =IF(I163<0,0,I163) -> 0 | K165: =IF(Y158=3,I165,) -> 0 | M165: SP A→ | N165: =SUM(F158) -> 0 | P165: SP B→ | Q165: =SUM(J158) -> 0 | S165: ← Imposto correspondente a rendimentos de anos anteriores
B166: =IF(E163<0,0,SUM(G163:H165)) -> 0 | D166: ← Quociente dos rendimentos de anos anteriores
B167: =IF(I163<0,0,SUM(K163:L165)) -> 0 | D167: ← Imposto correspondente a rendimentos de anos anteriores
B169: CATEGORIA H
B170: Art.º 11.º do CIRS - Rendimentos da categoria H + Pensões de sobrevivência | R170: =R46 -> 1 | S170: =IF(S171=TRUE,4,IF(S172=TRUE,4,IF(S173=TRUE,1,S46))) -> 1
B171: T. Separada → | D171: =IF(R170=1,D174,0) -> 0 | F171: =IF(R170=1,F174,0) -> 0 | H171: =IF(R170=1,H174/2,0) -> 0 | J171: =IF(R170=1,J174/2,0) -> 0 | L171: =IF(R170=1,L174/2,0) -> 0 | N171: =IF(R170=1,N174/2,0) -> 0 | S171: ='Modelo 3'!D43 -> 0
B172: Rendimento Bruto → | D172: =(O22+O23+'Anexo J'!L13)-D249 -> 0 | F172: =(Q22+Q23+'Anexo J'!N13)-F249 -> 0 | H172: =(S22+S23)-H249 -> 0 | J172: =(U22+U23)-J249 -> 0 | L172: =(W22+W23)-L249 -> 0 | N172: =(Y22+Y23)-N249 -> 0 | S172: ='Modelo 3'!E43 -> 0
D173: Sujeito Passivo A | F173: Sujeito Passivo B | H173: Dependente 1 | J173: Dependente 2 | L173: Dependente 3 | N173: Dependente 4 | S173: ='Modelo 3'!F43 -> 0
B174: SOMA TOTAL→ | D174: =D172 -> 0 | F174: =F172 -> 0 | H174: =H172 -> 0 | J174: =J172 -> 0 | L174: =L172 -> 0 | N174: =N172 -> 0
B175: Continente (RB) | D175: SOMA | E175: =SUM(D174:O174) -> 0 | G175: =IF(S170=1,E175,) -> 0 | J175: T. Separado
B176: Açores | D176: SOMA | E176: =IF(E175<0,0,E175) -> 0 | G176: =IF(S170=2,E176,) -> 0 | I176: SP A→ | J176: =IF(S170>=4,0,SUM(D171+H171+J171+L171+N171)) -> 0
B177: Madeira | D177: SOMA | E177: =IF(E175<0,0,E175) -> 0 | G177: =IF(S170=3,E177,) -> 0 | I177: SP B→ | J177: =IF(S170>=4,0,SUM(F171+H171+J171+L171+N171)) -> 0
B178: =IF(E175<0,0,SUM(G175+G176+G177)) -> 0 | D178: ← Rendimento Bruto
B180: Art.º 11.º do CIRS - Pensões de alimentos (Quem recebe) | P180: =IF(AA42<=2,0,IF(AA42=3,AA42,)) -> 0 | R180: =R46 -> 1 | S180: =IF(S181=TRUE,4,IF(S182=TRUE,4,IF(S183=TRUE,1,S46))) -> 1
B181: T. Separada → | D181: =IF(R180=1,D184,0) -> 0 | F181: =IF(R180=1,F184,0) -> 0 | H181: =IF(R180=1,H184/2,0) -> 0 | J181: =IF(R180=1,J184/2,0) -> 0 | L181: =IF(R180=1,L184/2,0) -> 0 | N181: =IF(R180=1,N184/2,0) -> 0 | S181: ='Modelo 3'!D43 -> 0
B182: Rendimento Bruto → | D182: =O24 -> 0 | F182: =Q24 -> 0 | H182: =S24 -> 0 | J182: =U24 -> 0 | L182: =W24 -> 0 | N182: =Y24 -> 0 | S182: ='Modelo 3'!E43 -> 0
D183: Sujeito Passivo A | F183: Sujeito Passivo B | H183: Dependente 1 | J183: Dependente 2 | L183: Dependente 3 | N183: Dependente 4 | S183: ='Modelo 3'!F43 -> 0
B184: SOMA TOTAL→ | D184: =IF(P180=3,0,IF(P180<=2,D182)) -> 0 | F184: =IF(P180=3,0,IF(P180<=2,F182)) -> 0 | H184: =IF(P180=3,0,IF(P180<=2,H182)) -> 0 | J184: =IF(P180=3,0,IF(P180<=2,J182)) -> 0 | L184: =IF(P180=3,0,IF(P180<=2,L182)) -> 0 | N184: =IF(P180=3,0,IF(P180<=2,N182)) -> 0
B185: Continente (RB) | D185: SOMA | E185: =SUM(D184:O184) -> 0 | G185: =IF(S180=1,E185,) -> 0 | J185: T. Separado
B186: Açores | D186: SOMA | E186: =IF(E185<0,0,E185) -> 0 | G186: =IF(S180=2,E186,) -> 0 | I186: SP A→ | J186: =IF(S180>=4,0,SUM(D181+H181+J181+L181+N181)) -> 0
B187: Madeira | D187: SOMA | E187: =IF(E185<0,0,E185) -> 0 | G187: =IF(S180=3,E187,) -> 0 | I187: SP B→ | J187: =IF(S180>=4,0,SUM(F181+H181+J181+L181+N181)) -> 0
B188: =IF(E185<0,0,SUM(G185+G186+G187)) -> 0 | D188: ← Rendimento Bruto
B190: Art.º 54.º do CIRS - Rendas temporárias e vitalícias. | R190: =R46 -> 1 | S190: =IF(S191=TRUE,4,IF(S192=TRUE,4,IF(S193=TRUE,1,S46))) -> 1
B191: T. Separada → | D191: =IF(R190=1,D194,0) -> 0 | F191: =IF(R190=1,F194,0) -> 0 | H191: =IF(R190=1,H194/2,0) -> 0 | J191: =IF(R190=1,J194/2,0) -> 0 | L191: =IF(R190=1,L194/2,0) -> 0 | N191: =IF(R190=1,N194/2,0) -> 0 | S191: ='Modelo 3'!D43 -> 0
B192: Rendimento Bruto → | D192: =O26 -> 0 | F192: =Q26 -> 0 | H192: =S26 -> 0 | J192: =U26 -> 0 | L192: =W26 -> 0 | N192: =Y26 -> 0 | S192: ='Modelo 3'!E43 -> 0
D193: Sujeito Passivo A | F193: Sujeito Passivo B | H193: Dependente 1 | J193: Dependente 2 | L193: Dependente 3 | N193: Dependente 4 | S193: ='Modelo 3'!F43 -> 0
B194: SOMA TOTAL→ | D194: =D192 -> 0 | F194: =F192 -> 0 | H194: =H192 -> 0 | J194: =J192 -> 0 | L194: =L192 -> 0 | N194: =N192 -> 0
B195: Continente (RB) | D195: SOMA | E195: =SUM(D194:O194) -> 0 | G195: =IF(S190=1,E195,) -> 0 | J195: T. Separado
B196: Açores | D196: SOMA | E196: =IF(E195<0,0,E195) -> 0 | G196: =IF(S190=2,E196,) -> 0 | I196: SP A→ | J196: =IF(S190>=4,0,SUM(D191+H191+J191+L191+N191)) -> 0
B197: Madeira | D197: SOMA | E197: =IF(E195<0,0,E195) -> 0 | G197: =IF(S190=3,E197,) -> 0 | I197: SP B→ | J197: =IF(S190>=4,0,SUM(F191+H191+J191+L191+N191)) -> 0
B198: =IF(E195<0,0,SUM(G195+G196+G197)) -> 0 | D198: ← Rendimento Bruto
B200: Art.º 11.º do CIRS - Pensões de alimentos Opção pela tributação autónoma (Quem recebe) | N200: =IF(P200<=2,0,'Modelo 3'!O36) -> 0 | O200: ='Modelo 3'!S36 -> 0.25 | P200: =IF(AA42=3,AA42,) -> 0 | Q200: ='Modelo 3'!J36 -> 4104 | R200: =R46 -> 1 | S200: =IF(T200=TRUE,4,IF(T201=TRUE,4,IF(T202=TRUE,1,S46))) -> 1 | T200: ='Modelo 3'!D43 -> 0
B201: T. Separada → | D201: =IF(R200=1,D205,0) -> 0 | F201: =IF(R200=1,F205,0) -> 0 | H201: =IF(R200=1,H205/2,0) -> 0 | J201: =IF(R200=1,J205/2,0) -> 0 | L201: =IF(R200=1,L205/2,0) -> 0 | N201: =IF(R200=1,N205/2,0) -> 0 | P201: =IF(O22+O23>=1,1,) -> 0 | Q201: =IF(P201=1,0,N200*(D202-D203)) -> 0 | R201: =IF(V211>=1,(O24-V211)*N200,) -> 0 | S201: =IF('Modelo 3'!E52=2,(Q201)*N200,) -> 0 | T201: ='Modelo 3'!E43 -> 0
B202: Rendimento Bruto → | D202: =IF(Q211>=1,O24-V211,IF(Q211=0,O24,0)) -> 0 | F202: =IF(Q212>=1,Q24-V212,IF(Q212=0,Q24,0)) -> 0 | H202: =IF(Q213>=1,S24-V213,IF(Q213=0,S24,0)) -> 0 | J202: =IF(Q214>=1,U24-V214,IF(Q214=0,U24,0)) -> 0 | L202: =IF(Q215>=1,W24-V215,IF(Q215=0,W24,0)) -> 0 | N202: =IF(Q216>=1,Y24-V216,IF(Q216=0,Y24,0)) -> 0 | P202: =IF(Q22+Q23>=1,1,) -> 0 | Q202: =IF(P202=1,0,N200*(F202-F203)) -> 0 | R202: =IF(V212>=1,(Q24-V212)*N200,) -> 0 | S202: =IF('Modelo 3'!E52=2,(Q202)*N200,) -> 0 | T202: ='Modelo 3'!F43 -> 0
B203: Limites → | D203: =IF(R211>=1,U211,IF(D202<D214,D202,D214))*0 -> 0 | F203: =IF(R212>=1,U212,IF(F202<F214,F202,F214))*0 -> 0 | H203: =IF(R213>=1,U213,IF(H202<H214,H202,H214))*0 -> 0 | J203: =IF(R214>=1,U214,IF(J202<J214,J202,J214))*0 -> 0 | L203: =IF(R215>=1,U215,IF(L202<L214,L202,L214))*0 -> 0 | N203: =IF(R216>=1,U216,IF(N202<N214,N202,N214))*0 -> 0 | P203: =IF(S22+S23>=1,1,) -> 0 | Q203: =IF(P203=1,0,N200*(H202-H203)) -> 0 | R203: =IF(V213>=1,(S24-V213)*N200,) -> 0 | S203: =IF('Modelo 3'!E52=2,(Q203)*N200,) -> 0
D204: Sujeito Passivo A | F204: Sujeito Passivo B | H204: Dependente 1 | J204: Dependente 2 | L204: Dependente 3 | N204: Dependente 4 | P204: =IF(U22+U23>=1,1,) -> 0 | Q204: =IF(P204=1,0,N200*(J202-J203)) -> 0 | R204: =IF(V214>=1,(U24-V214)*N200,) -> 0 | S204: =IF('Modelo 3'!E52=2,(Q204)*N200,) -> 0
B205: SOMA TOTAL→ | D205: =SUM(Q201:R201)-S201 -> 0 | F205: =SUM(Q202:R202)-S202 -> 0 | H205: =SUM(Q203:R203)-S203 -> 0 | J205: =SUM(Q204:R204)-S204 -> 0 | L205: =SUM(Q205:R205)-S205 -> 0 | N205: =SUM(Q206:R206)-S206 -> 0 | P205: =IF(W22+W23>=1,1,) -> 0 | Q205: =IF(P205=1,0,N200*(L202-L203)) -> 0 | R205: =IF(V215>=1,(W24-V215)*N200,) -> 0 | S205: =IF('Modelo 3'!E52=2,(Q205)*N200,) -> 0
B206: Continente (RB) | D206: SOMA | E206: =SUM(D205:O205) -> 0 | G206: =IF(S200=1,E206,) -> 0 | J206: T. Separado | M206: Não residentes | P206: =IF(Y22+Y23>=1,1,) -> 0 | Q206: =IF(P206=1,0,N200*(N202-N203)) -> 0 | R206: =IF(V216>=1,(Y24-V216)*N200,) -> 0 | S206: =IF('Modelo 3'!E52=2,(Q206)*N200,) -> 0
B207: Açores | D207: SOMA | E207: =IF(E206<0,0,E206) -> 0 | G207: =IF(S190=2,E207,) -> 0 | I207: SP A→ | J207: =IF(S200>=4,0,SUM(D201+H201+J201+L201+N201)) -> 0 | L207: SP A→ | M207: =IF(S200>=4,P207,) -> 0 | O207: =SUM(O22+O23+O24+O26)+Q207 -> 0 | P207: =O207*O200 -> 0 | Q207: =SUM(S22+S23+S24+S26+U22+U23+U24+U26+W22+W23+W24+W26+Y22+Y23+Y24+Y26)/2 -> 0
B208: Madeira | D208: SOMA | E208: =IF(E206<0,0,E206) -> 0 | G208: =IF(S200=3,E208,) -> 0 | I208: SP B→ | J208: =IF(S200>=4,0,SUM(F201+H201+J201+L201+N201)) -> 0 | L208: SP B→ | M208: =IF(S200>=4,P208,) -> 0 | O208: =SUM(Q22+Q23+Q24+Q26)+Q207 -> 0 | P208: =O208*O200 -> 0
B209: =IF(E206<0,0,SUM(G206+G207+G208)) -> 0 | D209: ← Tributação Autónoma
B211: Art.º 53.º do CIRS - Deduções específicas Categoria H - Pensões + Segurança Social | N211: =R46 -> 1 | O211: =IF(W211=TRUE,4,IF(W212=TRUE,4,IF(W213=TRUE,1,S46))) -> 1 | P211: =IF( AA42=3,O22+O23,) -> 0 | Q211: =IF(P211=0,0,IF(AA42=3,O24,)) -> 0 | R211: =P211+Q211 -> 0 | S211: =IFERROR(P211/R211,0) -> 0 | T211: =IFERROR(Q211/R211,0) -> 0 | U211: =D214*S211 -> 0 | V211: =D214*T211 -> 0 | W211: ='Modelo 3'!D43 -> 0
B212: T. Separada → | D212: =IF(N211=1,D216,0) -> 0 | F212: =IF(N211=1,F216,0) -> 0 | H212: =IF(N211=1,H216/2,0) -> 0 | J212: =IF(N211=1,J216/2,0) -> 0 | L212: =IF(N211=1,L216/2,0) -> 0 | N212: =IF(N211=1,N216/2,0) -> 0 | P212: =IF( AA42=3,Q22+Q23,) -> 0 | Q212: =IF(P212=0,0,IF(AA42=3,Q24,)) -> 0 | R212: =P212+Q212 -> 0 | S212: =IFERROR(P212/R212,0) -> 0 | T212: =IFERROR(Q212/R212,0) -> 0 | U212: =F214*S212 -> 0 | V212: =F214*T212 -> 0 | W212: ='Modelo 3'!E43 -> 0
B213: Rendimento Bruto → | D213: =IF(P211+Q211>=1,0,D172+D184) -> 0 | F213: =IF(P212+Q212>=1,0,F172+F184) -> 0 | H213: =IF(P213+Q213>=1,0,H172+H184) -> 0 | J213: =IF(P214+Q214>=1,0,J172+J184) -> 0 | L213: =IF(P215+Q215>=1,0,L172+L184) -> 0 | N213: =IF(P216+Q216>=1,0,N172+N184) -> 0 | P213: =IF( AA42=3,S22+S23,) -> 0 | Q213: =IF(P213=0,0,IF(AA42=3,S24,)) -> 0 | R213: 0 | S213: =IFERROR(P213/R213,0) -> 0 | T213: 0 | U213: =H214*S213 -> 0 | V213: =H214*T213 -> 0 | W213: ='Modelo 3'!F43 -> 0
B214: Limites → | D214: =IF(O29>=Q200,O29,Q200) -> 4104 | F214: =IF(Q29>=Q200,Q29,Q200) -> 4104 | H214: =IF(Q29>=Q200,Q29,Q200) -> 4104 | J214: =IF(Q29>=Q200,Q29,Q200) -> 4104 | L214: =IF(Q29>=Q200,Q29,Q200) -> 4104 | N214: =IF(Q29>=Q200,Q29,Q200) -> 4104 | P214: =IF( AA42=3,U22+U23,) -> 0 | Q214: =IF(P214=0,0,IF(AA42=3,U24,)) -> 0 | R214: 0 | S214: 0 | T214: 0 | U214: =J214*S214 -> 0 | V214: =J214*T214 -> 0
D215: Sujeito Passivo A | F215: Sujeito Passivo B | H215: Dependente 1 | J215: Dependente 2 | L215: Dependente 3 | N215: Dependente 4 | P215: =IF( AA42=3,W22+W23,) -> 0 | Q215: =IF(P215=0,0,IF(AA42=3,W24,)) -> 0 | R215: 0 | S215: 0 | T215: 0 | U215: =L214*S215 -> 0 | V215: =L214*T215 -> 0
B216: SOMA TOTAL→ | D216: =IF(R211>=1,U211,IF(D213<D214,D213,D214)) -> 0 | F216: =IF(R212>=1,U212,IF(F213<F214,F213,F214)) -> 0 | H216: =IF(R213>=1,U213,IF(H213<H214,H213,H214)) -> 0 | J216: =IF(R214>=1,U214,IF(J213<J214,J213,J214)) -> 0 | L216: =IF(R215>=1,U215,IF(L213<L214,L213,L214)) -> 0 | N216: =IF(R216>=1,U216,IF(N213<N214,N213,N214)) -> 0 | P216: =IF( AA42=3,Y22+Y23,) -> 0 | Q216: =IF(P216=0,0,IF(AA42=3,Y24,)) -> 0 | R216: 0 | S216: 0 | T216: 0 | U216: =N214*S216 -> 0 | V216: =N214*T216 -> 0
B217: Continente (DE) | D217: SOMA | E217: =SUM(D216:O216) -> 0 | G217: =IF(O211=1,E217,) -> 0 | J217: T. Separado | P217: Pensões de alimentos | S217: Dedução Proporcional
B218: Açores | D218: SOMA | E218: =IF(E217<0,0,E217) -> 0 | G218: =IF(O211=2,E218,) -> 0 | I218: SP A→ | J218: =IF(O211>=5,0,SUM(D212+H212+J212+L212)) -> 0
B219: Madeira | D219: SOMA | E219: =IF(E217<0,0,E217) -> 0 | G219: =IF(O211=3,E219,) -> 0 | I219: SP B→ | J219: =IF(O211>=5,0,SUM(F212+H212+J212+L212)) -> 0
B220: =IF(E217<0,0,SUM(G217+G218+G219)) -> 0 | D220: ← Dedução Específica
B222: Art.º 25.º do CIRS - Quotizações Sindicais Cat. H | R222: =R46 -> 1 | S222: =IF(S223=TRUE,4,IF(S224=TRUE,4,IF(S225=TRUE,1,S46))) -> 1
B223: T. Separada → | D223: =IF(R222=1,D228,0) -> 0 | F223: =IF(R222=1,F228,0) -> 0 | H223: =IF(R222=1,H228/2,0) -> 0 | J223: =IF(R222=1,J228/2,0) -> 0 | L223: =IF(R222=1,L228/2,0) -> 0 | N223: =IF(R222=1,N228/2,0) -> 0 | S223: ='Modelo 3'!D43 -> 0
B224: Quot. Sindicais → | D224: =O27 -> 0 | F224: =Q27 -> 0 | H224: =S27 -> 0 | J224: =U27 -> 0 | L224: =W27 -> 0 | N224: =Y27 -> 0 | S224: ='Modelo 3'!E43 -> 0
B225: Rendimento Bruto → | D225: =D172+D184 -> 0 | F225: =F172+F184 -> 0 | H225: =H172+H184 -> 0 | J225: =J172+J184 -> 0 | L225: =L172+L184 -> 0 | N225: =N172+N184 -> 0 | S225: ='Modelo 3'!F43 -> 0
... 35 more rows

Sheet Anexo B
B4: QUADRO 4A
B5: RENDIMENTOS PROFISSIONAIS, COMERCIAIS E INDUSTRIAIS | P5: =TEXT(B89,) -> 
B6: RENDIMENTOS EMPRESARIAIS E PROFISSIONAIS - [Artigos 3.º, 4.º e 31.º do CIRS] (Regime Simplificado) | O6: Campo | P6: Sujeito Passivo A | R6: Sujeito Passivo B | T6: Dependente 1 | V6: Dependente 2
B7: Início de atividade: Os sujeitos passivos estão abrangidos pelo n.º 10 do art.º 31.º do CIRS ? | O7: ☞ | P7: Indique aqui | R7: Indique aqui | T7: Indique aqui | V7: Indique aqui
B8: A totalidade dos rendimentos auferidos resulta de serviços prestados a uma única entidade ? | O8: ☞ | P8: Indique aqui | R8: Indique aqui | T8: Indique aqui | V8: Indique aqui
B9: Em caso afirmativo, opta pela tributação segundo as regras estabelecidas para a categoria A ? | O9: ☞ | P9: Indique aqui | R9: Indique aqui | T9: Indique aqui | V9: Indique aqui | Y9: Coeficientes
B10: Vendas de mercadorias e produtos | O10: Ato isolado 401 | Y10: =L101 -> 0.15
O11: 401 | Y11: 0.15
B12: Prestações de serviços de atividades hoteleiras e similares, restauração e bebidas | O12: Ato isolado 415/416 | Y12: 0.15
O13: 415/416 | Y13: 0.15
B14: Exploração de estabelecimentos de alojamento local [Modalidade de moradia ou apartamento] | K14: POSSUI ESTABELECIMENTO ESTÁVEL? ➤ | N14: Indique aqui | O14: 417 | Y14: 0.35
B15: Rendimento das atividades profissionais especificamente previstas na Tabela do art.º 151.º do CIRS | K15: Veja aqui a Tabela atividade do art.º 151.º do CIRS | O15: Ato isolado 403 | Y15: 0.75 | Z15: =C81+O81 -> 2 | AA15: =F81+R81 -> 2 | AB15: =I81+U81 -> 2 | AC15: =L81+X81 -> 2 | AD15: ← Opção pela categoria A
O16: 403 | X16: b) | Y16: 0.75 | Z16: =IF(Z15=4,P16+P18+P21,) -> 0 | AA16: =IF(AA15=4,R16+R18+R21,) -> 0 | AB16: =IF(AB15=4,T16+T18+T21,) -> 0 | AC16: =IF(AC15=4,V16+V18+V21,) -> 0
B17: Rendimentos de prestações de serviços não previstos nos campos anteriores [inserir nestas linhas o código 1519 - outros prestadores de serviços] | O17: Ato isolado 404 | Y17: 0.35
O18: 404 | X18: c) | Y18: 0.35
B19: Propriedade intelectual, estes rendimentos estão abrangidos pelo art.º 58.º do EBF ? | O19: ☞ | P19: Indique aqui | R19: Indique aqui | T19: Indique aqui | V19: Indique aqui
B20: =TEXT(B91,) -> Propriedade intelectual (não abrangida pelo art.º 58.º do EBF), industrial ou de prestação de informações | O20: =IF(B90=1,"405",IF(B90=2,"406")) -> 405 | Y20: =L110 -> 0.95
B21: Rendimentos de atividades financeiras [Códigos CAE iniciados por 64, 65 ou 66] | O21: 408 | Y21: 0.75
B22: Serviços prestados por sócios a sociedades de profissionais do Regime de Transparência Fiscal | O22: 409 | Y22: 1
B23: Resultado positivo de rendimentos prediais | O23: 410 | Y23: 0.95
B24: Rendimentos de capitais imputáveis a atividade geradora de rendimentos da Categoria B | O24: 411 | Y24: 0.95
B25: Subsídios à exploração | O25: 412 | X25: f) | Y25: 0.1
B26: Outros subsídios | O26: 413 | Y26: 0.3
B27: Rendimentos da Categoria B não incluídos nos campos anteriores | O27: 414 | Y27: 0.1
B28: Retenções na fonte de IRS
B29: Pagamentos por conta
B30: Rendimentos de anos anteriores [Incluídos no Quadro 4 do Anexo B] | O30: Quadro 4
B31: Indique o N.º de anos
B32: Perdas a reportar do exercício de 2017 a deduzir ao rendimento de 2018 [Veja a Demonstração de Liquidação de IRS do exercício de 2017, enviada pela AT]
B34: QUADRO 7A
B35: ENCARGOS - NATUREZA | O35: Campo | P35: Sujeito Passivo A | R35: Sujeito Passivo B | T35: Dependente 1 | V35: Dependente 2
B36: Contribuições obrigatórias para regimes de proteção social - n.º 2 do art.º 25.º do CIRS [Se optou pelas regras da categoria A, insira nesta linha as contribuições] | O36: 701
B37: Quotizações para ordens profissionais - n.º 4 do art.º 25.º do CIRS [Se optou pelas regras da categoria A, insira nesta linha as quotizações para ordens profissionais] | O37: 703
B38: Quotizações sindicais [Se optou pelas regras da categoria A, insira nesta linha as quotizações sindicais] | O38: 707
B40: QUADRO 4B
B41: RENDIMENTOS AGRÍCOLAS, SILVÍCOLAS E PECUÁRIOS | O41: Campo | P41: Sujeito Passivo A | R41: Sujeito Passivo B | U41: Coeficientes
B42: Vendas de produtos com exceção das incluídas no campo 457 | O42: Ato isolado 451 | U42: 0.15
O43: 451 | U43: 0.15
B44: Prestações de serviços | O44: Ato isolado 452 | U44: 0.35
O45: 452 | T45: b) | U45: =J174 -> 0.35
B46: Subsídios à exploração | O46: 455 | T46: f) | U46: =J175 -> 0.1
B47: Outros subsídios | O47: 456 | U47: 0.3
B48: Rendimentos de atividades agrícolas, não incluídos nos campos anteriores | O48: 458 | U48: 0.1
B49: Retenções na fonte de IRS
B50: Pagamentos por conta
B51: Perdas a reportar do exercício de 2017 a deduzir ao rendimento de 2018 [Veja a Demonstração de Liquidação de IRS do exercício de 2017, enviada pela AT]
B53: QUADRO 7A
B54: ENCARGOS - NATUREZA | O54: Campo | P54: Sujeito Passivo A | R54: Sujeito Passivo B
B55: Contribuições obrigatórias para regimes de proteção social [Referentes a rendimentos agrícolas, silvícolas e pecuários] | O55: 702
B56: Quotizações para ordens profissionais [Referentes a rendimentos agrícolas, silvícolas e pecuários] | O56: 704
B57: Quotizações sindicais [Referentes a rendimentos agrícolas, silvícolas e pecuários] | O57: 708
B59: QUADRO 17A e 17C
B60: DESPESAS E ENCARGOS PREVISTOS NO N.º 2 E NAS ALÍNEAS a), b), c), e) E f) DO N.º 13 DO ART.º 31.º DO CIRS
B61: NATUREZA | O61: Campo | P61: Sujeito Passivo A | R61: Sujeito Passivo B | T61: Dependente 1 | V61: Dependente 2
B62: Contribuições obrigatórias para regimes de proteção social - alínea a) do n.º 13 do artigo 31.º do CIRS [Conexas com a tabela das atividades do art.º 151.º do CIRS] | O62: 17001
B63: Contribuições obrigatórias para regimes de proteção social - alínea a) do n.º 13 do artigo 31.º do CIRS [Conexas com a atividade de Alojamento Local] | O63: 17001
B64: Quotizações para ordens profissionais - alínea e) do n.º 13 do artigo 31.º do CIRS [Conexas com a tabela das atividades do art.º 151.º do CIRS] | O64: 17054
B65: Insira nesta linha, as despesas suportadas por faturas, conexas com a atividade da tabela de atividades do art.º 151.º do CIRS e Alojamento Local ➤ | O65: 17051 A 17054 | X65: =TEXT(B93,) ->  | AF65: =M93 -> 
B69: INICIO
H71: Início de atividade SP A | K71: Início de atividade SP B | N71: Início de atividade Dep. 1 | Q71: Início de atividade Dep. 2 | T71: Estabelecimento estável
H72: Indique aqui | I72: 1 | K72: Indique aqui | L72: 1 | N72: Indique aqui | O72: 1 | Q72: Indique aqui | R72: 1 | T72: Indique aqui | U72: 1
H73: SIM - 1.º ano. (50%) | I73: 2 | K73: SIM - 1.º ano. (50%) | L73: 2 | N73: SIM - 1.º ano. (50%) | O73: 2 | Q73: SIM - 1.º ano. (50%) | R73: 2 | T73: Sim | U73: 2
H74: SIM - 2.º ano. (25%) | I74: 3 | K74: SIM - 2.º ano. (25%) | L74: 3 | N74: SIM - 2.º ano. (25%) | O74: 3 | Q74: SIM - 2.º ano. (25%) | R74: 3 | T74: Não | U74: 3
I75: =VLOOKUP(P7,H72:I74,2,FALSE) -> 1 | L75: =VLOOKUP(R7,K72:L74,2,FALSE) -> 1 | O75: =VLOOKUP(T7,N72:O74,2,FALSE) -> 1 | R75: =VLOOKUP(V7,Q72:R74,2,FALSE) -> 1 | U75: =VLOOKUP(N14,T72:U74,2,FALSE) -> 1
B77: Prestação de serviço a uma única entidade SP A | E77: Prestação de serviço a uma única entidade SP B | H77: Prestação de serviço a uma única entidade Dep. 1 | K77: Prestação de serviço a uma única entidade Dep. 2 | N77: Regras categoria A SP A | Q77: Regras categoria A SP B | T77: Regras categoria A Dep.1 | W77: Regras categoria A Dep.2
B78: Indique aqui | C78: 1 | E78: Indique aqui | F78: 1 | H78: Indique aqui | I78: 1 | K78: Indique aqui | L78: 1 | N78: Indique aqui | O78: 1 | Q78: Indique aqui | R78: 1 | T78: Indique aqui | U78: 1 | W78: Indique aqui | X78: 1
B79: Sim | C79: 2 | E79: Sim | F79: 2 | H79: Sim | I79: 2 | K79: Sim | L79: 2 | N79: Sim | O79: 2 | Q79: Sim | R79: 2 | T79: Sim | U79: 2 | W79: Sim | X79: 2
B80: Não | C80: 3 | E80: Não | F80: 3 | H80: Não | I80: 3 | K80: Não | L80: 3 | N80: Não | O80: 3 | Q80: Não | R80: 3 | T80: Não | U80: 3 | W80: Não | X80: 3
C81: =VLOOKUP(P8,B78:C80,2,FALSE) -> 1 | F81: =VLOOKUP(R8,E78:F80,2,FALSE) -> 1 | I81: =VLOOKUP(T8,H78:I80,2,FALSE) -> 1 | L81: =VLOOKUP(V8,K78:L80,2,FALSE) -> 1 | O81: =VLOOKUP(P9,N78:O80,2,FALSE) -> 1 | R81: =VLOOKUP(R9,Q78:R80,2,FALSE) -> 1 | U81: =VLOOKUP(T9,T78:U80,2,FALSE) -> 1 | X81: =VLOOKUP(V9,W78:X80,2,FALSE) -> 1
N82: =IF(C81=2,2,) -> 0 | O82: =IF(O81=2,2,) -> 0 | Q82: =IF(F81=2,2,) -> 0 | R82: =IF(R81=2,2,) -> 0 | T82: =IF(I81=2,2,) -> 0 | U82: =IF(U81=2,2,) -> 0 | W82: =IF(L81=2,2,) -> 0 | X82: =IF(X81=2,2,) -> 0
B83: Propriedade intelectual art.º 58.º EBF SP A | E83: Propriedade intelectual art.º 58.º EBF SPB | H83: Propriedade intelectual art.º 58.º EBF Dep.1 | K83: Propriedade intelectual art.º 58.º EBF Dep.2 | O83: =SUM(N82:O82) -> 0 | R83: =SUM(Q82:R82) -> 0 | U83: =SUM(T82:U82) -> 0 | X83: =SUM(W82:X82) -> 0
B84: Indique aqui | C84: 1 | E84: Indique aqui | F84: 1 | H84: Indique aqui | I84: 1 | K84: Indique aqui | L84: 1
B85: Não | C85: 1 | E85: Não | F85: 1 | H85: Não | I85: 1 | K85: Não | L85: 1
B86: Sim | C86: 2 | E86: Sim | F86: 2 | H86: Sim | I86: 2 | K86: Sim | L86: 2
C87: =VLOOKUP(P19,B84:C86,2,FALSE) -> 1 | F87: =VLOOKUP(R19,E84:F86,2,FALSE) -> 1 | I87: =VLOOKUP(T19,H84:I86,2,FALSE) -> 1 | L87: =VLOOKUP(V19,K84:L86,2,FALSE) -> 1
B90: =IF(C87+F87<=2,1,IF(C87+F87>=2,2,)) -> 1
B91: =IF(B90=1,"Propriedade intelectual (não abrangida pelo art.º 58.º do EBF), industrial ou de prestação de informações",IF(B90=2,"Propriedade intelectual (rendimentos abrangidos pelo art.º 58.º do EBF - parte não isenta)",)) -> Propriedade intelectual (não abrangida pelo art.º 58.º do EBF), industrial ou de prestação de informações
B92: =IF(B126+B146+B182+Q160+Q161=0,"➤",IF(B126+B146+B182+Q160+Q161>=1,"Tem",)) -> ➤
B93: =IF(L93>=0.001,"← Para não ter agravamento, terá de justificar nesta linha despesas/encargos no valor de: ➤",) -> 0 | L93: =F138+H138+J138+L138 -> 0 | M93: =IF(L93=0,"",L93) -> 
B94: CATEGORIA B
B95: Artigos 3.º, 4.º e 31.º do CIRS - Rendimentos Profissionais, Comerciais e Industriais (Regime Simplificado)
B96: T. Separada → | F96: =IF(W123=1,H118,0) -> 0 | M96: =IF(W123=1,O118,0) -> 0 | T96: =IF(W123=1,V118/2,0) -> 0 | AA96: =IF(W123=1,AC118/2,0) -> 0
B97: Isenção ato isolado → | D97: =IF(F98>=1,0,'Modelo 3'!G36*E97) -> 1715.6 | E97: 4 | G97: Limites → | H97: 0.15 | I97: 2500 | O97: =IF(M98>=1,0,'Modelo 3'!G36*E97) -> 1715.6 | V97: =IF(F98+M98+T98>=1,0,'Modelo 3'!G36*E97) -> 1715.6 | AC97: =IF(F98+M98+AA98>=1,0,'Modelo 3'!G36*E97) -> 1715.6
B98: Soma Cat. A+H → | F98: ='Anexo A'!O7+'Anexo A'!O22+'Anexo A'!O23 -> 0 | M98: ='Anexo A'!Q7+'Anexo A'!Q22+'Anexo A'!Q23 -> 0 | T98: ='Anexo A'!S7+'Anexo A'!S22+'Anexo A'!S23 -> 0 | AA98: ='Anexo A'!U7+'Anexo A'!U22+'Anexo A'!U23 -> 0
F99: Sujeito Passivo A | H99: Rendimento dos dedeficientes ↓ | J99: ='Modelo 3'!H20+'Modelo 3'!H21+'Modelo 3'!H22+'Modelo 3'!H23 -> 0 | M99: Sujeito Passivo B | O99: Rendimento dos dedeficientes ↓ | Q99: ='Modelo 3'!I20+'Modelo 3'!I21+'Modelo 3'!I22+'Modelo 3'!I23 -> 0 | T99: Dependente 1 | V99: Rendimento dos dedeficientes ↓ | X99: ='Modelo 3'!J20+'Modelo 3'!J21+'Modelo 3'!J22+'Modelo 3'!J23+'Modelo 3'!K20+'Modelo 3'!K21+'Modelo 3'!K22+'Modelo 3'!K23 -> 0 | AA99: Dependente 2 | AC99: Rendimento dos dedeficientes ↓ | AE99: ='Modelo 3'!J20+'Modelo 3'!J21+'Modelo 3'!J22+'Modelo 3'!J23+'Modelo 3'!K20+'Modelo 3'!K21+'Modelo 3'!K22+'Modelo 3'!K23 -> 0
D100: Campo | F100: Rendimento Bruto ↓ | H100: ≥ 2500 | I100: < 2500 | J100: SP A | K100: N/Defi. | L100: Taxa | M100: Rendimento Bruto ↓ | O100: ≥ 2500 | P100: < 2500 | Q100: SP A | R100: N/Defi. | S100: Taxa | T100: Rendimento Bruto ↓ | V100: ≥ 2500 | W100: < 2500 | X100: Dep. 1 | Y100: N/Defi. | Z100: Taxa | AA100: Rendimento Bruto ↓ | AC100: ≥ 2500 | AD100: < 2500 | AE100: Dep. 2 | AF100: N/Defi. | AG100: Taxa
D101: Ato isolado 401 | F101: =IF(G101=0,0,IF(J99=0,0,(G101/G118)*I97)) -> 0 | G101: =IF(D97=0,P10,IF(P10<=D97,0,P10)) -> 0 | H101: =IF(J99=0,0,IF(J118>=I97,(G101-F101)*L101,0)) -> 0 | I101: =IF(J99=0,0,IF(J118<I97,(G101-J101)*L101,0)) -> 0 | J101: =IF(J99=0,0,G101*H97) -> 0 | K101: =IF(J99>=1,0,IF(J99=0,(G101*L101))) -> 0 | L101: 0.15 | M101: =IF(N101=0,0,IF(Q99=0,0,(N101/N118)*I97)) -> 0 | N101: =IF(O97=0,R10,IF(R10<=O97,0,R10)) -> 0 | O101: =IF(Q99=0,0,IF(Q118>=I97,(N101-M101)*S101,0)) -> 0 | P101: =IF(Q99=0,0,IF(Q118<I97,(N101-Q101)*S101,0)) -> 0 | Q101: =IF(Q99=0,0,N101*H97) -> 0 | R101: =IF(Q99>=1,0,IF(Q99=0,(N101*S101))) -> 0 | S101: =L101 -> 0.15 | T101: =IF(U101=0,0,IF(X99=0,0,(U101/U118)*I97)) -> 0 | U101: =IF(V97=0,T10,IF(T10<=V97,0,T10)) -> 0 | V101: =IF(X99=0,0,IF(X118>=I97,(U101-T101)*Z101,0)) -> 0 | W101: =IF(X99=0,0,IF(X118<I97,(U101-X101)*Z101,0)) -> 0 | X101: =IF(X99=0,0,U101*H97) -> 0 | Y101: =IF(X99>=1,0,IF(X99=0,(U101*Z101))) -> 0 | Z101: =S101 -> 0.15 | AA101: =IF(AB101=0,0,IF(AE99=0,0,(AB101/AB118)*I97)) -> 0 | AB101: =IF(AC97=0,V10,IF(V10<=AC97,0,V10)) -> 0 | AC101: =IF(AE99=0,0,IF(AE118>=I97,(AB101-AA101)*AG101,0)) -> 0 | AD101: =IF(AE99=0,0,IF(AE118<I97,(AB101-AE101)*AG101,0)) -> 0 | AE101: =IF(AE99=0,0,AB101*H97) -> 0 | AF101: =IF(AE99>=1,0,IF(AE99=0,(AB101*AG101))) -> 0 | AG101: =Z101 -> 0.15
D102: Campo 401 | F102: =IF(G102=0,0,IF(J99=0,0,(G102/G118)*I97)) -> 0 | G102: =P11 -> 0 | H102: =IF(J99=0,0,IF(J118>=I97,(G102-F102)*S102,0)) -> 0 | I102: =IF(J99=0,0,IF(J118<I97,(G102-J102)*L102,0)) -> 0 | J102: =IF(J99=0,0,G102*H97) -> 0 | K102: =IF(J99>=1,0,IF(J99=0,(G102*L102))) -> 0 | L102: 0.15 | M102: =IF(N102=0,0,IF(Q99=0,0,(N102/N118)*I97)) -> 0 | N102: =R11 -> 0 | O102: =IF(Q99=0,0,IF(Q118>=I97,(N102-M102)*S102,0)) -> 0 | P102: =IF(Q99=0,0,IF(Q118<I97,(N102-Q102)*S102,0)) -> 0 | Q102: =IF(Q99=0,0,N102*H97) -> 0 | R102: =IF(Q99>=1,0,IF(Q99=0,(N102*S102))) -> 0 | S102: =L102 -> 0.15 | T102: =IF(U102=0,0,IF(X99=0,0,(U102/U118)*I97)) -> 0 | U102: =T11 -> 0 | V102: =IF(X99=0,0,IF(X118>=I97,(U102-T102)*Z102,0)) -> 0 | W102: =IF(X99=0,0,IF(X118<I97,(U102-X102)*Z102,0)) -> 0 | X102: =IF(X99=0,0,U102*H97) -> 0 | Y102: =IF(X99>=1,0,IF(X99=0,(U102*Z102))) -> 0 | Z102: =S102 -> 0.15 | AA102: =IF(AB102=0,0,IF(AE99=0,0,(AB102/AB118)*I97)) -> 0 | AB102: =V11 -> 0 | AC102: =IF(AE99=0,0,IF(AE118>=I97,(AB102-AA102)*AG102,0)) -> 0 | AD102: =IF(AE99=0,0,IF(AE118<I97,(AB102-AE102)*AG102,0)) -> 0 | AE102: =IF(AE99=0,0,AB102*H97) -> 0 | AF102: =IF(AE99>=1,0,IF(AE99=0,(AB102*AG102))) -> 0 | AG102: =Z102 -> 0.15
D103: Ato isolado 415, 416 | F103: =IF(G103=0,0,IF(J99=0,0,(G103/G118)*I97)) -> 0 | G103: =IF(D97=0,P12,IF(P12<=D97,0,P12)) -> 0 | H103: =IF(J99=0,0,IF(J118>=I97,(G103-F103)*S103,0)) -> 0 | I103: =IF(J99=0,0,IF(J118<I97,(G103-J103)*L103,0)) -> 0 | J103: =IF(J99=0,0,G103*H97) -> 0 | K103: =IF(J99>=1,0,IF(J99=0,(G103*L103))) -> 0 | L103: 0.15 | M103: =IF(N103=0,0,IF(Q99=0,0,(N103/N118)*I97)) -> 0 | N103: =IF(O97=0,R12,IF(R12<=O97,0,R12)) -> 0 | O103: =IF(Q99=0,0,IF(Q118>=I97,(N103-M103)*S103,0)) -> 0 | P103: =IF(Q99=0,0,IF(Q118<I97,(N103-Q103)*S103,0)) -> 0 | Q103: =IF(Q99=0,0,N103*H97) -> 0 | R103: =IF(Q99>=1,0,IF(Q99=0,(N103*S103))) -> 0 | S103: 0.15 | T103: =IF(U103=0,0,IF(X99=0,0,(U103/U118)*I97)) -> 0 | U103: =IF(V97=0,T12,IF(T12<=V97,0,T12)) -> 0 | V103: =IF(X99=0,0,IF(X118>=I97,(U103-T103)*Z103,0)) -> 0 | W103: =IF(X99=0,0,IF(X118<I97,(U103-X103)*Z103,0)) -> 0 | X103: =IF(X99=0,0,U103*H97) -> 0 | Y103: =IF(X99>=1,0,IF(X99=0,(U103*Z103))) -> 0 | Z103: 0.15 | AA103: =IF(AB103=0,0,IF(AE99=0,0,(AB103/AB118)*I97)) -> 0 | AB103: =IF(AC97=0,V12,IF(V12<=AC97,0,V12)) -> 0 | AC103: =IF(AE99=0,0,IF(AE118>=I97,(AB103-AA103)*AG103,0)) -> 0 | AD103: =IF(AE99=0,0,IF(AE118<I97,(AB103-AE103)*AG103,0)) -> 0 | AE103: =IF(AE99=0,0,AB103*H97) -> 0 | AF103: =IF(AE99>=1,0,IF(AE99=0,(AB103*AG103))) -> 0 | AG103: 0.15
D104: Campos 415 e 416 | F104: =IF(G104=0,0,IF(J99=0,0,(G104/G118)*I97)) -> 0 | G104: =P13 -> 0 | H104: =IF(J99=0,0,IF(J118>=I97,(G104-F104)*S104,0)) -> 0 | I104: =IF(J99=0,0,IF(J118<I97,(G104-J104)*L104,0)) -> 0 | J104: =IF(J99=0,0,G104*H97) -> 0 | K104: =IF(J99>=1,0,IF(J99=0,(G104*L104))) -> 0 | L104: 0.15 | M104: =IF(N104=0,0,IF(Q99=0,0,(N104/N118)*I97)) -> 0 | N104: =R13 -> 0 | O104: =IF(Q99=0,0,IF(Q118>=I97,(N104-M104)*S104,0)) -> 0 | P104: =IF(Q99=0,0,IF(Q118<I97,(N104-Q104)*S104,0)) -> 0 | Q104: =IF(Q99=0,0,N104*H97) -> 0 | R104: =IF(Q99>=1,0,IF(Q99=0,(N104*S104))) -> 0 | S104: 0.15 | T104: =IF(U104=0,0,IF(X99=0,0,(U104/U118)*I97)) -> 0 | U104: =T13 -> 0 | V104: =IF(X99=0,0,IF(X118>=I97,(U104-T104)*Z104,0)) -> 0 | W104: =IF(X99=0,0,IF(X118<I97,(U104-X104)*Z104,0)) -> 0 | X104: =IF(X99=0,0,U104*H97) -> 0 | Y104: =IF(X99>=1,0,IF(X99=0,(U104*Z104))) -> 0 | Z104: 0.15 | AA104: =IF(AB104=0,0,IF(AE99=0,0,(AB104/AB118)*I97)) -> 0 | AB104: =V13 -> 0 | AC104: =IF(AE99=0,0,IF(AE118>=I97,(AB104-AA104)*AG104,0)) -> 0 | AD104: =IF(AE99=0,0,IF(AE118<I97,(AB104-AE104)*AG104,0)) -> 0 | AE104: =IF(AE99=0,0,AB104*H97) -> 0 | AF104: =IF(AE99>=1,0,IF(AE99=0,(AB104*AG104))) -> 0 | AG104: 0.15
D105: Campo 417 | F105: =IF(G105=0,0,IF(J99=0,0,(G105/G118)*I97)) -> 0 | G105: =IF(F135>D131,0,IF(R131=1,R130,)) -> 0 | H105: =IF(J99=0,0,IF(J118>=I97,(G105-F105)*S105,0)) -> 0 | I105: =IF(J99=0,0,IF(J118<I97,(G105-J105)*L105,0)) -> 0 | J105: =IF(J99=0,0,G105*H97) -> 0 | K105: =IF(J99>=1,0,IF(J99=0,(G105*L105))) -> 0 | L105: 0.35 | M105: =IF(N105=0,0,IF(Q99=0,0,(N105/N118)*I97)) -> 0 | N105: =IF(H135>D131,0,IF(R133=1,R132,)) -> 0 | O105: =IF(Q99=0,0,IF(Q118>=I97,(N105-M105)*S105,0)) -> 0 | P105: =IF(Q99=0,0,IF(Q118<I97,(N105-Q105)*S105,0)) -> 0 | Q105: =IF(Q99=0,0,N105*H97) -> 0 | R105: =IF(Q99>=1,0,IF(Q99=0,(N105*S105))) -> 0 | S105: 0.35 | T105: =IF(U105=0,0,IF(X99=0,0,(U105/U118)*I97)) -> 0 | U105: =IF(J135>D131,0,IF(R135=1,R134,)) -> 0 | V105: =IF(X99=0,0,IF(X118>=I97,(U105-T105)*Z105,0)) -> 0 | W105: =IF(X99=0,0,IF(X118<I97,(U105-X105)*Z105,0)) -> 0 | X105: =IF(X99=0,0,U105*H97) -> 0 | Y105: =IF(X99>=1,0,IF(X99=0,(U105*Z105))) -> 0 | Z105: 0.35 | AA105: =IF(AB105=0,0,IF(AE99=0,0,(AB105/AB118)*I97)) -> 0 | AB105: =IF(L135>D131,0,IF(R137=1,R136,)) -> 0 | AC105: =IF(AE99=0,0,IF(AE118>=I97,(AB105-AA105)*AG105,0)) -> 0 | AD105: =IF(AE99=0,0,IF(AE118<I97,(AB105-AE105)*AG105,0)) -> 0 | AE105: =IF(AE99=0,0,AB105*H97) -> 0 | AF105: =IF(AE99>=1,0,IF(AE99=0,(AB105*AG105))) -> 0 | AG105: 0.35
D106: Ato isolado 403 | F106: =IF(G106=0,0,IF(J99=0,0,(G106/G118)*I97)) -> 0 | G106: =IF(D97=0,P15,IF(P15<=D97,0,P15)) -> 0 | H106: =IF(J99=0,0,IF(J118>=I97,(G106-F106)*S106,0)) -> 0 | I106: =IF(J99=0,0,IF(J118<I97,(G106-J106)*L106,0)) -> 0 | J106: =IF(J99=0,0,G106*H97) -> 0 | K106: =IF(J99>=1,0,IF(J99=0,(G106*L106))) -> 0 | L106: 0.75 | M106: =IF(N106=0,0,IF(Q99=0,0,(N106/N118)*I97)) -> 0 | N106: =IF(O97=0,R15,IF(R15<=O97,0,R15)) -> 0 | O106: =IF(Q99=0,0,IF(Q118>=I97,(N106-M106)*S106,0)) -> 0 | P106: =IF(Q99=0,0,IF(Q118<I97,(N106-Q106)*S106,0)) -> 0 | Q106: =IF(Q99=0,0,N106*H97) -> 0 | R106: =IF(Q99>=1,0,IF(Q99=0,(N106*S106))) -> 0 | S106: =L106 -> 0.75 | T106: =IF(U106=0,0,IF(X99=0,0,(U106/U118)*I97)) -> 0 | U106: =IF(V97=0,T15,IF(T15<=V97,0,T15)) -> 0 | V106: =IF(X99=0,0,IF(X118>=I97,(U106-T106)*Z106,0)) -> 0 | W106: =IF(X99=0,0,IF(X118<I97,(U106-X106)*Z106,0)) -> 0 | X106: =IF(X99=0,0,U106*H97) -> 0 | Y106: =IF(X99>=1,0,IF(X99=0,(U106*Z106))) -> 0 | Z106: 0.75 | AA106: =IF(AB106=0,0,IF(AE99=0,0,(AB106/AB118)*I97)) -> 0 | AB106: =IF(AC97=0,V15,IF(V15<=AC97,0,V15)) -> 0 | AC106: =IF(AE99=0,0,IF(AE118>=I97,(AB106-AA106)*AG106,0)) -> 0 | AD106: =IF(AE99=0,0,IF(AE118<I97,(AB106-AE106)*AG106,0)) -> 0 | AE106: =IF(AE99=0,0,AB106*H97) -> 0 | AF106: =IF(AE99>=1,0,IF(AE99=0,(AB106*AG106))) -> 0 | AG106: 0.75
B107: b) | D107: Campo 403 | F107: =IF(G107=0,0,IF(J99=0,0,(G107/G118)*I97)) -> 0 | G107: =IF(F135>D131,0,IF(O83=4,0,IF(Q131=1,Q130,))) -> 0 | H107: =IF(J99=0,0,IF(J118>=I97,(G107-F107)*S107,0)) -> 0 | I107: =IF(J99=0,0,IF(J118<I97,(G107-J107)*L107,0)) -> 0 | J107: =IF(J99=0,0,G107*H97) -> 0 | K107: =IF(J99>=1,0,IF(J99=0,(G107*L107))) -> 0 | L107: =IF(F98>=1,75%,IF(I75=2,37.5%,IF(I75=3,56.25%,75%))) -> 0.75 | M107: =IF(N107=0,0,IF(Q99=0,0,(N107/N118)*I97)) -> 0 | N107: =IF(H135>D131,0,IF(R83=4,0,IF(Q133=1,Q132,))) -> 0 | O107: =IF(Q99=0,0,IF(Q118>=I97,(N107-M107)*S107,0)) -> 0 | P107: =IF(Q99=0,0,IF(Q118<I97,(N107-Q107)*S107,0)) -> 0 | Q107: =IF(Q99=0,0,N107*H97) -> 0 | R107: =IF(Q99>=1,0,IF(Q99=0,(N107*S107))) -> 0 | S107: =IF(M98>=1,75%,IF(L75=2,37.5%,IF(L75=3,56.25%,75%))) -> 0.75 | T107: =IF(U107=0,0,IF(X99=0,0,(U107/U118)*I97)) -> 0 | U107: =IF(J135>D131,0,IF(U83=4,0,IF(Q135=1,Q134,))) -> 0 | V107: =IF(X99=0,0,IF(X118>=I97,(U107-T107)*Z107,0)) -> 0 | W107: =IF(X99=0,0,IF(X118<I97,(U107-X107)*Z107,0)) -> 0 | X107: =IF(X99=0,0,U107*H97) -> 0 | Y107: =IF(X99>=1,0,IF(X99=0,(U107*Z107))) -> 0 | Z107: =IF(T98>=1,75%,IF(O75=2,37.5%,IF(O75=3,56.25%,75%))) -> 0.75 | AA107: =IF(AB107=0,0,IF(AE99=0,0,(AB107/AB118)*I97)) -> 0 | AB107: =IF(L135>D131,0,IF(X83=4,0,IF(Q137=1,Q136,))) -> 0 | AC107: =IF(AE99=0,0,IF(AE118>=I97,(AB107-AA107)*AG107,0)) -> 0 | AD107: =IF(AE99=0,0,IF(AE118<I97,(AB107-AE107)*AG107,0)) -> 0 | AE107: =IF(AE99=0,0,AB107*H97) -> 0 | AF107: =IF(AE99>=1,0,IF(AE99=0,(AB107*AG107))) -> 0 | AG107: =IF(AA98>=1,75%,IF(R75=2,37.5%,IF(R75=3,56.25%,75%))) -> 0.75
D108: Ato isolado 404 | F108: =IF(G108=0,0,IF(J99=0,0,(G108/G118)*I97)) -> 0 | G108: =IF(D97=0,P17,IF(P17<=D97,0,P17)) -> 0 | H108: =IF(J99=0,0,IF(J118>=I97,(G108-F108)*S108,0)) -> 0 | I108: =IF(J99=0,0,IF(J118<I97,(G108-J108)*L108,0)) -> 0 | J108: =IF(J99=0,0,G108*H97) -> 0 | K108: =IF(J99>=1,0,IF(J99=0,(G108*L108))) -> 0 | L108: 0.35 | M108: =IF(N108=0,0,IF(Q99=0,0,(N108/N118)*I97)) -> 0 | N108: =IF(O97=0,R17,IF(R17<=O97,0,R17)) -> 0 | O108: =IF(Q99=0,0,IF(Q118>=I97,(N108-M108)*S108,0)) -> 0 | P108: =IF(Q99=0,0,IF(Q118<I97,(N108-Q108)*S108,0)) -> 0 | Q108: =IF(Q99=0,0,N108*H97) -> 0 | R108: =IF(Q99>=1,0,IF(Q99=0,(N108*S108))) -> 0 | S108: =L108 -> 0.35 | T108: =IF(U108=0,0,IF(X99=0,0,(U108/U118)*I97)) -> 0 | U108: =IF(V97=0,T17,IF(T17<=V97,0,T17)) -> 0 | V108: =IF(X99=0,0,IF(X118>=I97,(U108-T108)*Z108,0)) -> 0 | W108: =IF(X99=0,0,IF(X118<I97,(U108-X108)*Z108,0)) -> 0 | X108: =IF(X99=0,0,U108*H97) -> 0 | Y108: =IF(X99>=1,0,IF(X99=0,(U108*Z108))) -> 0 | Z108: =S108 -> 0.35 | AA108: =IF(AB108=0,0,IF(AE99=0,0,(AB108/AB118)*I97)) -> 0 | AB108: =IF(AC97=0,V17,IF(V17<=AC97,0,V17)) -> 0 | AC108: =IF(AE99=0,0,IF(AE118>=I97,(AB108-AA108)*AG108,0)) -> 0 | AD108: =IF(AE99=0,0,IF(AE118<I97,(AB108-AE108)*AG108,0)) -> 0 | AE108: =IF(AE99=0,0,AB108*H97) -> 0 | AF108: =IF(AE99>=1,0,IF(AE99=0,(AB108*AG108))) -> 0 | AG108: =Z108 -> 0.35
B109: c) | D109: Campo 404 | F109: =IF(G109=0,0,IF(J99=0,0,(G109/G118)*I97)) -> 0 | G109: =IF(O83=4,0,P18) -> 0 | H109: =IF(J99=0,0,IF(J118>=I97,(G109-F109)*S109,0)) -> 0 | I109: =IF(J99=0,0,IF(J118<I97,(G109-J109)*L109,0)) -> 0 | J109: =IF(J99=0,0,G109*H97) -> 0 | K109: =IF(J99>=1,0,IF(J99=0,(G109*L109))) -> 0 | L109: =IF(F98>=1,35%,IF(I75=2,17.5%,IF(I75=3,26.25%,35%))) -> 0.35 | M109: =IF(N109=0,0,IF(Q99=0,0,(N109/N118)*I97)) -> 0 | N109: =IF(R83=4,0,R18) -> 0 | O109: =IF(Q99=0,0,IF(Q118>=I97,(N109-M109)*S109,0)) -> 0 | P109: =IF(Q99=0,0,IF(Q118<I97,(N109-Q109)*S109,0)) -> 0 | Q109: =IF(Q99=0,0,N109*H97) -> 0 | R109: =IF(Q99>=1,0,IF(Q99=0,(N109*S109))) -> 0 | S109: =IF(M98>=1,35%,IF(L75=2,17.5%,IF(L75=3,26.25%,35%))) -> 0.35 | T109: =IF(U109=0,0,IF(X99=0,0,(U109/U118)*I97)) -> 0 | U109: =IF(U83=4,0,T18) -> 0 | V109: =IF(X99=0,0,IF(X118>=I97,(U109-T109)*Z109,0)) -> 0 | W109: =IF(X99=0,0,IF(X118<I97,(U109-X109)*Z109,0)) -> 0 | X109: =IF(X99=0,0,U109*H97) -> 0 | Y109: =IF(X99>=1,0,IF(X99=0,(U109*Z109))) -> 0 | Z109: =IF(T98>=1,35%,IF(O75=2,17.5%,IF(O75=3,26.25%,35%))) -> 0.35 | AA109: =IF(AB109=0,0,IF(AE99=0,0,(AB109/AB118)*I97)) -> 0 | AB109: =IF(X83=4,0,V18) -> 0 | AC109: =IF(AE99=0,0,IF(AE118>=I97,(AB109-AA109)*AG109,0)) -> 0 | AD109: =IF(AE99=0,0,IF(AE118<I97,(AB109-AE109)*AG109,0)) -> 0 | AE109: =IF(AE99=0,0,AB109*H97) -> 0 | AF109: =IF(AE99>=1,0,IF(AE99=0,(AB109*AG109))) -> 0 | AG109: =IF(AA98>=1,35%,IF(R75=2,17.5%,IF(R75=3,26.25%,35%))) -> 0.35
D110: Campo | E110: =O20 -> 405 | F110: =IF(G110=0,0,IF(J99=0,0,(G110/G118)*I97)) -> 0 | G110: =F122 -> 0 | H110: =IF(J99=0,0,IF(J118>=I97,(G110-F110)*S110,0)) -> 0 | I110: =IF(J99=0,0,IF(J118<I97,(G110-J110)*L110,0)) -> 0 | J110: =IF(J99=0,0,G110*H97) -> 0 | K110: =IF(J99>=1,0,IF(J99=0,(G110*L110))) -> 0 | L110: 0.95 | M110: =IF(N110=0,0,IF(Q99=0,0,(N110/N118)*I97)) -> 0 | N110: =M122 -> 0 | O110: =IF(Q99=0,0,IF(Q118>=I97,(N110-M110)*S110,0)) -> 0 | P110: =IF(Q99=0,0,IF(Q118<I97,(N110-Q110)*S110,0)) -> 0 | Q110: =IF(Q99=0,0,N110*H97) -> 0 | R110: =IF(Q99>=1,0,IF(Q99=0,(N110*S110))) -> 0 | S110: =L110 -> 0.95 | T110: =IF(U110=0,0,IF(X99=0,0,(U110/U118)*I97)) -> 0 | U110: =T122 -> 0 | V110: =IF(X99=0,0,IF(X118>=I97,(U110-T110)*Z110,0)) -> 0 | W110: =IF(X99=0,0,IF(X118<I97,(U110-X110)*Z110,0)) -> 0 | X110: =IF(X99=0,0,U110*H97) -> 0 | Y110: =IF(X99>=1,0,IF(X99=0,(U110*Z110))) -> 0 | Z110: =S110 -> 0.95 | AA110: =IF(AB110=0,0,IF(AE99=0,0,(AB110/AB118)*I97)) -> 0 | AB110: =AA122 -> 0 | AC110: =IF(AE99=0,0,IF(AE118>=I97,(AB110-AA110)*AG110,0)) -> 0 | AD110: =IF(AE99=0,0,IF(AE118<I97,(AB110-AE110)*AG110,0)) -> 0 | AE110: =IF(AE99=0,0,AB110*H97) -> 0 | AF110: =IF(AE99>=1,0,IF(AE99=0,(AB110*AG110))) -> 0 | AG110: =Z110 -> 0.95
D111: Campo 408 | F111: =IF(G111=0,0,IF(J99=0,0,(G111/G118)*I97)) -> 0 | G111: =IF(O83=4,0,P21) -> 0 | H111: =IF(J99=0,0,IF(J118>=I97,(G111-F111)*S111,0)) -> 0 | I111: =IF(J99=0,0,IF(J118<I97,(G111-J111)*L111,0)) -> 0 | J111: =IF(J99=0,0,G111*H97) -> 0 | K111: =IF(J99>=1,0,IF(J99=0,(G111*L111))) -> 0 | L111: 0.75 | M111: =IF(N111=0,0,IF(Q99=0,0,(N111/N118)*I97)) -> 0 | N111: =IF(R83=4,0,R21) -> 0 | O111: =IF(Q99=0,0,IF(Q118>=I97,(N111-M111)*S111,0)) -> 0 | P111: =IF(Q99=0,0,IF(Q118<I97,(N111-Q111)*S111,0)) -> 0 | Q111: =IF(Q99=0,0,N111*H97) -> 0 | R111: =IF(Q99>=1,0,IF(Q99=0,(N111*S111))) -> 0 | S111: =L111 -> 0.75 | T111: =IF(U111=0,0,IF(X99=0,0,(U111/U118)*I97)) -> 0 | U111: =IF(U83=4,0,T21) -> 0 | V111: =IF(X99=0,0,IF(X118>=I97,(U111-T111)*Z111,0)) -> 0 | W111: =IF(X99=0,0,IF(X118<I97,(U111-X111)*Z111,0)) -> 0 | X111: =IF(X99=0,0,U111*H97) -> 0 | Y111: =IF(X99>=1,0,IF(X99=0,(U111*Z111))) -> 0 | Z111: =S111 -> 0.75 | AA111: =IF(AB111=0,0,IF(AE99=0,0,(AB111/AB118)*I97)) -> 0 | AB111: =IF(X83=4,0,V21) -> 0 | AC111: =IF(AE99=0,0,IF(AE118>=I97,(AB111-AA111)*AG111,0)) -> 0 | AD111: =IF(AE99=0,0,IF(AE118<I97,(AB111-AE111)*AG111,0)) -> 0 | AE111: =IF(AE99=0,0,AB111*H97) -> 0 | AF111: =IF(AE99>=1,0,IF(AE99=0,(AB111*AG111))) -> 0 | AG111: =Z111 -> 0.75
D112: Campo 409 | F112: =IF(G112=0,0,IF(J99=0,0,(G112/G118)*I97)) -> 0 | G112: =P22 -> 0 | H112: =IF(J99=0,0,IF(J118>=I97,(G112-F112)*S112,0)) -> 0 | I112: =IF(J99=0,0,IF(J118<I97,(G112-J112)*L112,0)) -> 0 | J112: =IF(J99=0,0,G112*H97) -> 0 | K112: =IF(J99>=1,0,IF(J99=0,(G112*L112))) -> 0 | L112: 1 | M112: =IF(N112=0,0,IF(Q99=0,0,(N112/N118)*I97)) -> 0 | N112: =R22 -> 0 | O112: =IF(Q99=0,0,IF(Q118>=I97,(N112-M112)*S112,0)) -> 0 | P112: =IF(Q99=0,0,IF(Q118<I97,(N112-Q112)*S112,0)) -> 0 | Q112: =IF(Q99=0,0,N112*H97) -> 0 | R112: =IF(Q99>=1,0,IF(Q99=0,(N112*S112))) -> 0 | S112: 1 | T112: =IF(U112=0,0,IF(X99=0,0,(U112/U118)*I97)) -> 0 | U112: =T22 -> 0 | V112: =IF(X99=0,0,IF(X118>=I97,(U112-T112)*Z112,0)) -> 0 | W112: =IF(X99=0,0,IF(X118<I97,(U112-X112)*Z112,0)) -> 0 | X112: =IF(X99=0,0,U112*H97) -> 0 | Y112: =IF(X99>=1,0,IF(X99=0,(U112*Z112))) -> 0 | Z112: 1 | AA112: =IF(AB112=0,0,IF(AE99=0,0,(AB112/AB118)*I97)) -> 0 | AB112: =V22 -> 0 | AC112: =IF(AE99=0,0,IF(AE118>=I97,(AB112-AA112)*AG112,0)) -> 0 | AD112: =IF(AE99=0,0,IF(AE118<I97,(AB112-AE112)*AG112,0)) -> 0 | AE112: =IF(AE99=0,0,AB112*H97) -> 0 | AF112: =IF(AE99>=1,0,IF(AE99=0,(AB112*AG112))) -> 0 | AG112: 1
D113: Campo 410 | F113: =IF(G113=0,0,IF(J99=0,0,(G113/G118)*I97)) -> 0 | G113: =P23 -> 0 | H113: =IF(J99=0,0,IF(J118>=I97,(G113-F113)*S113,0)) -> 0 | I113: =IF(J99=0,0,IF(J118<I97,(G113-J113)*L113,0)) -> 0 | J113: =IF(J99=0,0,G113*H97) -> 0 | K113: =IF(J99>=1,0,IF(J99=0,(G113*L113))) -> 0 | L113: 0.95 | M113: =IF(N113=0,0,IF(Q99=0,0,(N113/N118)*I97)) -> 0 | N113: =R23 -> 0 | O113: =IF(Q99=0,0,IF(Q118>=I97,(N113-M113)*S113,0)) -> 0 | P113: =IF(Q99=0,0,IF(Q118<I97,(N113-Q113)*S113,0)) -> 0 | Q113: =IF(Q99=0,0,N113*H97) -> 0 | R113: =IF(Q99>=1,0,IF(Q99=0,(N113*S113))) -> 0 | S113: 0.95 | T113: =IF(U113=0,0,IF(X99=0,0,(U113/U118)*I97)) -> 0 | U113: =T23 -> 0 | V113: =IF(X99=0,0,IF(X118>=I97,(U113-T113)*Z113,0)) -> 0 | W113: =IF(X99=0,0,IF(X118<I97,(U113-X113)*Z113,0)) -> 0 | X113: =IF(X99=0,0,U113*H97) -> 0 | Y113: =IF(X99>=1,0,IF(X99=0,(U113*Z113))) -> 0 | Z113: 0.95 | AA113: =IF(AB113=0,0,IF(AE99=0,0,(AB113/AB118)*I97)) -> 0 | AB113: =V23 -> 0 | AC113: =IF(AE99=0,0,IF(AE118>=I97,(AB113-AA113)*AG113,0)) -> 0 | AD113: =IF(AE99=0,0,IF(AE118<I97,(AB113-AE113)*AG113,0)) -> 0 | AE113: =IF(AE99=0,0,AB113*H97) -> 0 | AF113: =IF(AE99>=1,0,IF(AE99=0,(AB113*AG113))) -> 0 | AG113: 0.95
D114: Campo 411 | F114: =IF(G114=0,0,IF(J99=0,0,(G114/G118)*I97)) -> 0 | G114: =P24 -> 0 | H114: =IF(J99=0,0,IF(J118>=I97,(G114-F114)*S114,0)) -> 0 | I114: =IF(J99=0,0,IF(J118<I97,(G114-J114)*L114,0)) -> 0 | J114: =IF(J99=0,0,G114*H97) -> 0 | K114: =IF(J99>=1,0,IF(J99=0,(G114*L114))) -> 0 | L114: 0.95 | M114: =IF(N114=0,0,IF(Q99=0,0,(N114/N118)*I97)) -> 0 | N114: 0 | O114: =IF(Q99=0,0,IF(Q118>=I97,(N114-M114)*S114,0)) -> 0 | P114: =IF(Q99=0,0,IF(Q118<I97,(N114-Q114)*S114,0)) -> 0 | Q114: =IF(Q99=0,0,N114*H97) -> 0 | R114: =IF(Q99>=1,0,IF(Q99=0,(N114*S114))) -> 0 | S114: 0.95 | T114: =IF(U114=0,0,IF(X99=0,0,(U114/U118)*I97)) -> 0 | U114: 0 | V114: =IF(X99=0,0,IF(X118>=I97,(U114-T114)*Z114,0)) -> 0 | W114: =IF(X99=0,0,IF(X118<I97,(U114-X114)*Z114,0)) -> 0 | X114: =IF(X99=0,0,U114*H97) -> 0 | Y114: =IF(X99>=1,0,IF(X99=0,(U114*Z114))) -> 0 | Z114: 0.95 | AA114: =IF(AB114=0,0,IF(AE99=0,0,(AB114/AB118)*I97)) -> 0 | AB114: 0 | AC114: =IF(AE99=0,0,IF(AE118>=I97,(AB114-AA114)*AG114,0)) -> 0 | AD114: =IF(AE99=0,0,IF(AE118<I97,(AB114-AE114)*AG114,0)) -> 0 | AE114: =IF(AE99=0,0,AB114*H97) -> 0 | AF114: =IF(AE99>=1,0,IF(AE99=0,(AB114*AG114))) -> 0 | AG114: 0.95
B115: f) | D115: Campo 412 | F115: =IF(G115=0,0,IF(J99=0,0,(G115/G118)*I97)) -> 0 | G115: =P25 -> 0 | H115: =IF(J99=0,0,IF(J118>=I97,(G115-F115)*S115,0)) -> 0 | I115: =IF(J99=0,0,IF(J118<I97,(G115-J115)*L115,0)) -> 0 | J115: =IF(J99=0,0,G115*H97) -> 0 | K115: =IF(J99>=1,0,IF(J99=0,(G115*L115))) -> 0 | L115: =IF(F98>=1,10%,IF(I75=2,5%,IF(I75=3,7.5%,10%))) -> 0.1 | M115: =IF(N115=0,0,IF(Q99=0,0,(N115/N118)*I97)) -> 0 | N115: 0 | O115: =IF(Q99=0,0,IF(Q118>=I97,(N115-M115)*S115,0)) -> 0 | P115: =IF(Q99=0,0,IF(Q118<I97,(N115-Q115)*S115,0)) -> 0 | Q115: =IF(Q99=0,0,N115*H97) -> 0 | R115: =IF(Q99>=1,0,IF(Q99=0,(N115*S115))) -> 0 | S115: =IF(M98>=1,10%,IF(L75=2,5%,IF(L75=3,7.5%,10%))) -> 0.1 | T115: =IF(U115=0,0,IF(X99=0,0,(U115/U118)*I97)) -> 0 | U115: 0 | V115: =IF(X99=0,0,IF(X118>=I97,(U115-T115)*Z115,0)) -> 0 | W115: =IF(X99=0,0,IF(X118<I97,(U115-X115)*Z115,0)) -> 0 | X115: =IF(X99=0,0,U115*H97) -> 0 | Y115: =IF(X99>=1,0,IF(X99=0,(U115*Z115))) -> 0 | Z115: =IF(T98>=1,10%,IF(O75=2,5%,IF(O75=3,7.5%,10%))) -> 0.1 | AA115: =IF(AB115=0,0,IF(AE99=0,0,(AB115/AB118)*I97)) -> 0 | AB115: 0 | AC115: =IF(AE99=0,0,IF(AE118>=I97,(AB115-AA115)*AG115,0)) -> 0 | AD115: =IF(AE99=0,0,IF(AE118<I97,(AB115-AE115)*AG115,0)) -> 0 | AE115: =IF(AE99=0,0,AB115*H97) -> 0 | AF115: =IF(AE99>=1,0,IF(AE99=0,(AB115*AG115))) -> 0 | AG115: =IF(AA98>=1,10%,IF(R75=2,5%,IF(R75=3,7.5%,10%))) -> 0.1
D116: Campo 413 | F116: =IF(G116=0,0,IF(J99=0,0,(G116/G118)*I97)) -> 0 | G116: =P26 -> 0 | H116: =IF(J99=0,0,IF(J118>=I97,(G116-F116)*S116,0)) -> 0 | I116: =IF(J99=0,0,IF(J118<I97,(G116-J116)*L116,0)) -> 0 | J116: =IF(J99=0,0,G116*H97) -> 0 | K116: =IF(J99>=1,0,IF(J99=0,(G116*L116))) -> 0 | L116: 0.3 | M116: =IF(N116=0,0,IF(Q99=0,0,(N116/N118)*I97)) -> 0 | N116: 0 | O116: =IF(Q99=0,0,IF(Q118>=I97,(N116-M116)*S116,0)) -> 0 | P116: =IF(Q99=0,0,IF(Q118<I97,(N116-Q116)*S116,0)) -> 0 | Q116: =IF(Q99=0,0,N116*H97) -> 0 | R116: =IF(Q99>=1,0,IF(Q99=0,(N116*S116))) -> 0 | S116: =L116 -> 0.3 | T116: =IF(U116=0,0,IF(X99=0,0,(U116/U118)*I97)) -> 0 | U116: 0 | V116: =IF(X99=0,0,IF(X118>=I97,(U116-T116)*Z116,0)) -> 0 | W116: =IF(X99=0,0,IF(X118<I97,(U116-X116)*Z116,0)) -> 0 | X116: =IF(X99=0,0,U116*H97) -> 0 | Y116: =IF(X99>=1,0,IF(X99=0,(U116*Z116))) -> 0 | Z116: =S116 -> 0.3 | AA116: =IF(AB116=0,0,IF(AE99=0,0,(AB116/AB118)*I97)) -> 0 | AB116: 0 | AC116: =IF(AE99=0,0,IF(AE118>=I97,(AB116-AA116)*AG116,0)) -> 0 | AD116: =IF(AE99=0,0,IF(AE118<I97,(AB116-AE116)*AG116,0)) -> 0 | AE116: =IF(AE99=0,0,AB116*H97) -> 0 | AF116: =IF(AE99>=1,0,IF(AE99=0,(AB116*AG116))) -> 0 | AG116: =Z116 -> 0.3
D117: Campo 414 | F117: =IF(G117=0,0,IF(J99=0,0,(G117/G118)*I97)) -> 0 | G117: 0 | H117: =IF(J99=0,0,IF(J118>=I97,(G117-F117)*S117,0)) -> 0 | I117: =IF(J99=0,0,IF(J118<I97,(G117-J117)*L117,0)) -> 0 | J117: =IF(J99=0,0,G117*H97) -> 0 | K117: =IF(J99>=1,0,IF(J99=0,(G117*L117))) -> 0 | L117: 0.1 | M117: =IF(N117=0,0,IF(Q99=0,0,(N117/N118)*I97)) -> 0 | N117: 0 | O117: =IF(Q99=0,0,IF(Q118>=I97,(N117-M117)*S117,0)) -> 0 | P117: =IF(Q99=0,0,IF(Q118<I97,(N117-Q117)*S117,0)) -> 0 | Q117: =IF(Q99=0,0,N117*H97) -> 0 | R117: =IF(Q99>=1,0,IF(Q99=0,(N117*S117))) -> 0 | S117: =L117 -> 0.1 | T117: =IF(U117=0,0,IF(X99=0,0,(U117/U118)*I97)) -> 0 | U117: 0 | V117: =IF(X99=0,0,IF(X118>=I97,(U117-T117)*Z117,0)) -> 0 | W117: =IF(X99=0,0,IF(X118<I97,(U117-X117)*Z117,0)) -> 0 | X117: =IF(X99=0,0,U117*H97) -> 0 | Y117: =IF(X99>=1,0,IF(X99=0,(U117*Z117))) -> 0 | Z117: =S117 -> 0.1 | AA117: =IF(AB117=0,0,IF(AE99=0,0,(AB117/AB118)*I97)) -> 0 | AB117: 0 | AC117: =IF(AE99=0,0,IF(AE118>=I97,(AB117-AA117)*AG117,0)) -> 0 | AD117: =IF(AE99=0,0,IF(AE118<I97,(AB117-AE117)*AG117,0)) -> 0 | AE117: =IF(AE99=0,0,AB117*H97) -> 0 | AF117: =IF(AE99>=1,0,IF(AE99=0,(AB117*AG117))) -> 0 | AG117: =Z117 -> 0.1
B118: SOMA TOTAL→ | G118: =SUM(G101:G117) -> 0 | H118: =SUM(H101:I117,K101:K117) -> 0 | J118: =SUM(J101:J117) -> 0 | N118: =SUM(N101:N117) -> 0 | O118: =SUM(O101:P117,R101:R117) -> 0 | Q118: =SUM(Q101:Q117) -> 0 | U118: =SUM(U101:U117) -> 0 | V118: =SUM(V101:W116,Y101:Y117) -> 0 | X118: =SUM(X101:X117) -> 0 | AB118: =SUM(AB101:AB117) -> 0 | AC118: =SUM(AC101:AD116,AF101:AF117) -> 0 | AE118: =SUM(AE101:AE117) -> 0
B119: PROPRIEDADE INTELECTUAL
B120: =B20 -> Propriedade intelectual (não abrangida pelo art.º 58.º do EBF), industrial ou de prestação de informações
B121: Limites → | D121: 0.5 | E121: 10000 | F121: =IF(P20*D121<E121,P20*D121,IF(P20*D121>=E121,E121,)) -> 0 | M121: =IF(R20*D121<E121,R20*D121,IF(R20*D121>=E121,E121,)) -> 0 | T121: =IF(T20*D121<E121,T20*D121,IF(T20*D121>=E121,E121,)) -> 0 | AA121: =IF(V20*D121<E121,V20*D121,IF(V20*D121>=E121,E121,)) -> 0
B122: Prop. Intelectual → | F122: =IF(C87=2,P20-F121,P20) -> 0 | M122: =IF(F87=2,R20-M121,R20) -> 0 | T122: =IF(I87=2,T20-T121,T20) -> 0 | AA122: =IF(L87=2,V20-AA121,V20) -> 0
B123: Continente (RB) | D123: SOMA | E123: =SUM(H118+O118+V118+AC118) -> 0 | F123: =IF(X123=1,E123,) -> 0 | I123: T. Separado | W123: ='Anexo A'!X253 -> 1 | X123: =IF(X124=TRUE,4,IF(X125=TRUE,4,IF(X126=TRUE,1,'Anexo A'!S46))) -> 1
B124: Açores | D124: SOMA | E124: =IF(E123<0,0,E123) -> 0 | F124: =IF(X123=2,G464,) -> 0 | H124: SP A→ | I124: =IF(X123>=4,0,IF(W123=1,F96+T96+AA96,)) -> 0 | X124: ='Modelo 3'!D43 -> 0
B125: Madeira | D125: SOMA | E125: =IF(E123<0,0,E123) -> 0 | F125: =IF(X123=3,E125,) -> 0 | H125: SP B→ | I125: =IF(X123>=4,0,IF(W123=1,M96+T96+AA96,)) -> 0 | X125: ='Modelo 3'!E43 -> 0
B126: =IF(E123<0,0,SUM(F123+F124+F125)) -> 0 | D126: ← Rendimento bruto | X126: ='Modelo 3'!F43 -> 0
B128: Art.º 31.º n.º 13 do CIRS - Categoria B Profissionais Liberais e Alojamento Local | M128: =D130+171 -> 4275 | N128: =IF(F135>D131,M128-D130,) -> 0 | O128: Despesas ↓ | Q128: Capmo 403 | R128: Campo 417 | S128: Q,Profissionais
B129: T. Separada → | F129: =IF(S139=1,F136,0) -> 0 | H129: =IF(S139=1,H136,0) -> 0 | J129: =IF(S139=1,J136/2,0) -> 0 | L129: =IF(S139=1,L136/2,0) -> 0
B130: Ded. específica → | D130: ='Modelo 3'!J36 -> 4104 | F130: =N130 -> 4104 | H130: =N132 -> 4104 | J130: =N134 -> 4104 | L130: =N136+N137 -> 4104 | N130: =IF(P62+P63>=D130,P62+P63,D130) -> 4104 | O130: SP A | P130: =IF(F135<D131,0,IF(F135,F135*E131-F130)) -> 0 | Q130: =P16 -> 0 | R130: =P14 -> 0 | S130: =IF(P64>=N128,N128,P64) -> 0
B131: Limites → | D131: =D130/E131 -> 27360 | E131: =15% -> 0.15 | F131: =I97 -> 2500 | P131: =IF(P130<=0,0,P130) -> 0 | Q131: =IF(Q130>=D131,0,IF(Q130<=D131,1,)) -> 1 | R131: =IF(R130>=D131,0,IF(R130<=D131,1,)) -> 1
F132: Sujeito Passivo A | H132: Sujeito Passivo B | J132: Dependente 1 | L132: Dependente 2 | N132: =IF(R62+R63>=D130,R62+R63,D130) -> 4104 | O132: SP B | P132: =IF(H135<D131,0,IF(H135,H135*E131-H130)) -> 0 | Q132: =R16 -> 0 | R132: =R14 -> 0 | S132: =IF(R64>=N128,N128,R64) -> 0
D133: PL Campo 403 → | F133: =P16 -> 0 | G133: =L107 -> 0.75 | H133: =R16 -> 0 | I133: =S107 -> 0.75 | J133: =T16 -> 0 | K133: =Z107 -> 0.75 | L133: =V16 -> 0 | M133: =AG107 -> 0.75 | P133: =IF(P132<=0,0,P132) -> 0 | Q133: =IF(Q132>=D131,0,IF(Q132<=D131,1,)) -> 1 | R133: =IF(R132>=D131,0,IF(R132<=D131,1,)) -> 1
D134: AL Campo 417 → | F134: =P14 -> 0 | G134: =L109 -> 0.35 | H134: =R14 -> 0 | I134: =S109 -> 0.35 | J134: =T14 -> 0 | K134: =Z109 -> 0.35 | L134: =V14 -> 0 | M134: =AG109 -> 0.35 | N134: =IF(T62+T63>=D130,T62+T63,D130) -> 4104 | O134: Dep. 1 | P134: =IF(J135<D131,0,IF(J135,J135*E131-J130)) -> 0 | Q134: =T16 -> 0 | R134: =T14 -> 0 | S134: =IF(T64>=N128,N128,T64) -> 0
B135: Rendimento Bruto → | F135: =IF(F133+F134<=D131,0,IF(O83=4,0,(F133+F134)-G139-G140)) -> 0 | H135: =IF(H133+H134<=D131,0,IF(R83=4,0,(H133+H134)-I139-I140)) -> 0 | J135: =IF(J133+J134<=D131,0,IF(U83=4,0,(J133+J134)-K139-K140)) -> 0 | L135: =IF(L133+L134<=D131,0,IF(X83=4,0,(L133+L134)-M139-S87)) -> 0 | P135: =IF(P134<=0,0,P134) -> 0 | Q135: =IF(Q134>=D131,0,IF(Q134<=D131,1,)) -> 1 | R135: =IF(R134>=D131,0,IF(R134<=D131,1,)) -> 1
D136: SOMA TOTAL→ | F136: =IF(F135<=0,0,F138+G138) -> 0 | G136: =(F133-G139)*G133 -> 0 | H136: =IF(H135<=0,0,H138+I138) -> 0 | I136: =(H133-I139)*I133 -> 0 | J136: =IF(J135<=0,0,J138+K138) -> 0 | K136: =(J133-K139)*K133 -> 0 | L136: =IF(L135<=0,0,L138+M138) -> 0 | M136: =(L133-M139)*M133 -> 0 | N136: =IF(V62+V63>=D130,V62+V63,D130) -> 4104 | O136: Dep. 2 | P136: =IF(L135<D131,0,IF(L135,L135*E131-L130)) -> 0 | Q136: =V16 -> 0 | R136: =V14 -> 0 | S136: =IF(V64>=N128,N128,V64) -> 0
D137: D. regist linha 93 → | F137: =P65+S130 -> 0 | G137: =(F134-G140)*G134 -> 0 | H137: =R65+S132 -> 0 | I137: =(H134-I140)*I134 -> 0 | J137: =T65+S134 -> 0 | K137: =(J134-K140)*K134 -> 0 | L137: =V65+S136 -> 0 | M137: =(L134-M140)*M134 -> 0 | P137: =IF(P136<=0,0,P136) -> 0 | Q137: =IF(Q136>=D131,0,IF(Q136<=D131,1,)) -> 1 | R137: =IF(R136>=D131,0,IF(R136<=D131,1,)) -> 1
C138: SOMA → | D138: Desp. a justificar → | F138: =IF(P131>=F137,P131-F137,IF(P131>=F137,F137,)) -> 0 | G138: =SUM(G136:G137) -> 0 | H138: =IF(P133>=H137,P133-H137,IF(P133>=H137,H137,)) -> 0 | I138: =SUM(I136:I137) -> 0 | J138: =IF(P135>=J137,P135-J137,IF(P135>=J137,J137,)) -> 0 | K138: =SUM(K136:K137) -> 0 | L138: =IF(P137>=L137,P137-L137,IF(P137>=L137,L137,)) -> 0 | M138: =SUM(M136:M137) -> 0
B139: Deficientes → | D139: Campo 403→ | F139: =IF(F141>1,(G141/F141)*F131,0) -> 0 | G139: =IF(F139>=F131,F131,F139) -> 0 | H139: =IF(H141>1,(I141/H141)*F131,0) -> 0 | I139: =IF(H139>=F131,F131,H139) -> 0 | J139: =IF(J141>1,(K141/J141)*I97,0) -> 0 | K139: =IF(J139>=F131,F131,J139) -> 0 | L139: =IF(L141>1,(M141/L141)*I97,0) -> 0 | M139: =IF(L139>=F131,F131,L139) -> 0 | S139: ='Anexo A'!X253 -> 1 | T139: =IF(T140=TRUE,4,IF(T141=TRUE,4,IF(T142=TRUE,1,'Anexo A'!S46))) -> 1
D140: Alojamento Local→ | F140: =IF(F141>1,(G142/F141)*F131,0) -> 0 | G140: =IF(F140>=F131,F131,F140) -> 0 | H140: =IF(H141>1,(I142/H141)*F131,0) -> 0 | I140: =IF(H140>=F131,F131,H140) -> 0 | J140: =IF(J141>1,(K142/J141)*I97,0) -> 0 | K140: =IF(J140>=I97,I97,J140) -> 0 | L140: =IF(L141>1,(M142/L141)*I97,0) -> 0 | M140: =IF(L140>=F131,F131,L140) -> 0 | T140: ='Modelo 3'!D43 -> 0
F141: =SUM(G141:G142) -> 0 | G141: =IF(J99=1,P16,0) -> 0 | H141: =SUM(I141:I142) -> 0 | I141: =IF(J99=1,R16,0) -> 0 | J141: =SUM(K141:K142) -> 0 | K141: =IF(J99=1,T16,0) -> 0 | L141: =SUM(M141:M142) -> 0 | M141: =IF(J99=1,V16,0) -> 0 | T141: ='Modelo 3'!E43 -> 0
G142: =IF(J99=1,P14,0) -> 0 | I142: =IF(J99=1,R14,0) -> 0 | K142: =IF(J99=1,T14,0) -> 0 | M142: =IF(J99=1,V14,0) -> 0 | T142: ='Modelo 3'!F43 -> 0
B143: Continente (RB) | D143: SOMA | E143: =SUM(F136+H136+J136+L136) -> 0 | F143: =IF(T139=1,E143,) -> 0 | I143: T. Separado
B144: Açores | D144: SOMA | E144: =IF(E143<0,0,E143) -> 0 | F144: =IF(T139=2,E144,) -> 0 | H144: SP A→ | I144: =IF(T139>=4,0,IF(S139=1,F129+J129+L129,)) -> 0
B145: Madeira | D145: SOMA | E145: =IF(E143<0,0,E143) -> 0 | F145: =IF(T139=3,E145,) -> 0 | H145: SP B→ | I145: =IF(T139>=4,0,IF(S139=1,H129+J129+L129,)) -> 0
B146: =IF(E143<0,0,SUM(F143:G145)) -> 0 | D146: ← Rendimento bruto
B148: Art.º 31.º do CIRS - Regime simplificado - Descontos obrigatorios para a S. Social | S148: ='Anexo A'!X253 -> 1 | T148: =IF(T149=TRUE,4,IF(T150=TRUE,4,IF(T151=TRUE,1,'Anexo A'!S46))) -> 1
B149: T. Separada → | D149: =IF(S148=1,D158,0) -> 0 | F149: =IF(S148=1,F158,0) -> 0 | H149: =IF(S148=1,H158/2,0) -> 0 | J149: =IF(S148=1,J158/2,0) -> 0 | T149: ='Modelo 3'!D43 -> 0
B150: Rendimento Bruto → | D150: =G107+G109+G111+E173+E175+E177 -> 0 | F150: =N107+N109+N111+L173+L175+L177 -> 0 | H150: =U107+U109+U111 -> 0 | J150: =AB107+AB109+AB111 -> 0 | T150: ='Modelo 3'!E43 -> 0
B151: Taxa → | D151: 0.1 | E151: 0.35 | F151: 0.75 | O151: 0.35 | P151: ='Modelo 3'!S36 -> 0.25 | S151: =SUM(T10:U18,V10:W18,T20:U31,V20:W31)/2 -> 0 | T151: ='Modelo 3'!F43 -> 0
B152: Campos | D152: Sujeito Passivo A | F152: Sujeito Passivo B | H152: Dependente 1 | J152: Dependente 2
B153: Campos 403,404,408,452,455,458 b) | D153: =IF(D150<1,0,P36+P55) -> 0 | F153: =IF(F150<1,0,R36+R55) -> 0 | H153: =IF(H150<1,0,T36) -> 0 | J153: =IF(J150<1,0,V36) -> 0
B154: Campos 403,404,408,452,455,458 c) | D154: =P16*F151 -> 0 | F154: =R16*F151 -> 0 | H154: =T16*F151 -> 0 | J154: =V16*F151 -> 0
D155: =P18*E151 -> 0 | F155: =R18*E151 -> 0 | H155: =T18*E151 -> 0 | J155: =V18*E151 -> 0
C156: SOMA | D156: =SUM(D154:D155) -> 0 | F156: =SUM(F154:F155) -> 0 | H156: =SUM(H154:H155) -> 0 | J156: =SUM(J154:J155) -> 0
D157: =D153-(D150*D151) -> 0 | F157: =F153-(F150*D151) -> 0 | H157: =H153-(H150*D151) -> 0 | J157: =J153-(J150*D151) -> 0 | R157: Tributação Autónoma
B158: SOMA TOTAL→ | D158: =IF(D157<0,0,IF(D157>D156,D156,D157)) -> 0 | F158: =IF(F157<0,0,IF(F157>F156,F156,F157)) -> 0 | H158: =IF(H157<0,0,IF(H157>H156,H156,H157)) -> 0 | J158: =IF(J157<0,0,IF(J157>J156,J156,J157)) -> 0
B159: Continente (DE) | D159: SOMA | E159: =SUM(D158:K158) -> 0 | F159: =IF(T148=1,E159,) -> 0 | I159: T. Separado | Q159: Não residentes
B160: Açores | D160: SOMA | E160: =IF(E159<0,0,E159) -> 0 | F160: =IF(T148=2,E160,) -> 0 | H160: SP A→ | I160: =IF(T148>=4,0,IF(S148=1,D149+H149+J149,)) -> 0 | P160: SP A→ | Q160: =IF(T148>=4,T160,) -> 0 | S160: =SUM(P10:Q18,P20:Q27,P42:Q48)+S151 -> 0 | T160: =IF(U75=2,S160*O151*P151,IF(U75=1,S160*P151,IF(U75=3,S160*P151))) -> 0
B161: Madeira | D161: SOMA | E161: =IF(E159<0,0,E159) -> 0 | F161: =IF(T148=3,E161,) -> 0 | H161: SP B→ | I161: =IF(T148>=4,0,IF(S148=1,F149+H149+J149,)) -> 0 | P161: SP B→ | Q161: =IF(T148>=4,T161,) -> 0 | S161: =SUM(R10:S18,R20:S27,R42:S51)+S151 -> 0 | T161: =IF(U75=2,S161*O151*P151,IF(U75=1,S161*P151,IF(U75=3,S161*P151))) -> 0
B162: =IF(E159<0,0,SUM(F159+F160+F161)) -> 0 | D162: ← Dedução específica
B164: Artigos 3.º e 4.º do CIRS - Rendimentos Agrícolas, Silvícolas e Pecuárias | N164: SP A | O164: ='Anexo A'!O7+'Anexo A'!O22+'Anexo A'!O23+'Anexo A'!O24+'Anexo A'!O26+'Anexo E'!P8+'Anexo E'!P18+'Anexo F'!Q9+'Anexo F'!Q10+'Anexo G'!P8+'Anexo G'!P27 -> 0 | S164: ='Anexo A'!X253 -> 1 | T164: =IF(T165=TRUE,4,IF(T166=TRUE,4,IF(T167=TRUE,1,'Anexo A'!S46))) -> 1
B165: T. Separada → | D165: =IF(S164=1,F178,0) -> 0 | K165: =IF(S164=1,M178,0) -> 0 | N165: SP B | O165: ='Anexo A'!Q7+'Anexo A'!Q22+'Anexo A'!Q23+'Anexo A'!Q24+'Anexo A'!Q26+'Anexo E'!R8+'Anexo E'!R18+'Anexo F'!S9+'Anexo F'!S10+'Anexo G'!R8+'Anexo G'!R27 -> 0 | T165: ='Modelo 3'!D43 -> 0
B166: Isenção ato isolado → | D166: =D97 -> 1715.6 | F166: =G97 -> Limites → | G166: =H97 -> 0.15 | H166: =I97 -> 2500 | T166: ='Modelo 3'!E43 -> 0
B167: Isento até → | D167: =E167*F167*G167 -> 23160.6 | E167: 4.5 | F167: ='Modelo 3'!G36 -> 428.9 | G167: 12 | T167: ='Modelo 3'!F43 -> 0
B168: Soma Cat.A,B,E,F,G,H → | E168: =SUM(P10:Q18,P20:Q27,P42:Q48)+O164 -> 0 | L168: =SUM(R10:S18,R20:S27,R42:S48)+O165 -> 0
D169: Sujeito Passivo A | F169: Rendimento dos dedeficientes ↓ | H169: ='Modelo 3'!H20+'Modelo 3'!H21+'Modelo 3'!H22+'Modelo 3'!H23 -> 0 | K169: Sujeito Passivo B | M169: Rendimento dos dedeficientes ↓ | O169: ='Modelo 3'!I20+'Modelo 3'!I21+'Modelo 3'!I22+'Modelo 3'!I23 -> 0
B170: Campos | D170: Rendimento Bruto ↓ | F170: ≥ 2500 | G170: < 2500 | H170: SP A | I170: N/Defi. | J170: Taxa | K170: Rendimento Bruto ↓ | M170: ≥ 2500 | N170: < 2500 | O170: SP A | P170: N/Defi. | Q170: Taxa
B171: Ato isolado 451 → | D171: =IF(E168=0,0,IF(H169=0,0,(E171/E178*H166))) -> 0 | E171: =IF(P42<=D166,0,IF(E168>D167,P42,0)) -> 0 | F171: =IF(H169=0,0,IF(H178>=H166,(E171-D171)*J171,0)) -> 0 | G171: =IF(H169=0,0,IF(H178<H166,(E171-H171)*J171,0)) -> 0 | H171: =IF(H169=0,0,E171*G166) -> 0 | I171: =IF(H169>=1,0,IF(H169=0,(E171*J171))) -> 0 | J171: 0.15 | K171: =IF(L168=0,0,IF(O169=0,0,(L171/L178*H166))) -> 0 | L171: =IF(R42<=D166,0,IF(L168>D167,R42,0)) -> 0 | M171: =IF(O169=0,0,IF(O178>=H166,(L171-K171)*Q171,0)) -> 0 | N171: =IF(O169=0,0,IF(O178<H166,(L171-O171)*Q171,0)) -> 0 | O171: =IF(O169=0,0,L171*G166) -> 0 | P171: =IF(O169>=1,0,IF(O169=0,(L171*Q171))) -> 0 | Q171: =J171 -> 0.15
B172: Campo 451 → | C172: Campo 451 | D172: =IF(E168=0,0,IF(H169=0,0,(E172/E178*H166))) -> 0 | E172: =IF(E168>D167,P43,0) -> 0 | F172: =IF(H169=0,0,IF(H178>=H166,(E172-D172)*J172,0)) -> 0 | G172: =IF(H169=0,0,IF(H178<H166,(E172-H172)*J172,0)) -> 0 | H172: =IF(H169=0,0,E172*G166) -> 0 | I172: =IF(H169>=1,0,IF(H169=0,(E172*J172))) -> 0 | J172: 0.15 | K172: =IF(L168=0,0,IF(O169=0,0,(L172/L178*H166))) -> 0 | L172: =IF(L168>D167,R43,0) -> 0 | M172: =IF(O169=0,0,IF(O178>=H166,(L172-K172)*Q172,0)) -> 0 | N172: =IF(O169=0,0,IF(O178<H166,(L172-O172)*Q172,0)) -> 0 | O172: =IF(L172=0,0,L171*G166) -> 0 | P172: =IF(O169>=1,0,IF(O169=0,(L172*Q172))) -> 0 | Q172: =J172 -> 0.15
B173: Ato isolado 452 → | D173: =IF(E168=0,0,IF(H169=0,0,(E173/E178*H166))) -> 0 | E173: =IF(P44<=D166,0,IF(E168>D167,P44,0)) -> 0 | F173: =IF(H169=0,0,IF(H178>=H166,(E173-D173)*J173,0)) -> 0 | G173: =IF(H169=0,0,IF(H178<H166,(E173-H173)*J173,0)) -> 0 | H173: =IF(H169=0,0,E173*G166) -> 0 | I173: =IF(H169>=1,0,IF(H169=0,(E173*J173))) -> 0 | J173: 0.35 | K173: =IF(L168=0,0,IF(O169=0,0,(L173/L178*H166))) -> 0 | L173: =IF(R44<=D166,0,IF(L168>D167,R44,0)) -> 0 | M173: =IF(O169=0,0,IF(O178>=H166,(L173-K173)*Q173,0)) -> 0 | N173: =IF(O169=0,0,IF(O178<H166,(L173-O173)*Q173,0)) -> 0 | O173: =IF(O169=0,0,L173*G166) -> 0 | P173: =IF(O169>=1,0,IF(O169=0,(L173*Q173))) -> 0 | Q173: =J173 -> 0.35
B174: Campo 452 b) → | D174: =IF(E168=0,0,IF(H169=0,0,(E174/E178*H166))) -> 0 | E174: =IF(E168>D167,P45,0) -> 0 | F174: =IF(H169=0,0,IF(H178>=H166,(E174-D174)*J174,0)) -> 0 | G174: =IF(H169=0,0,IF(H178<H166,(E174-H174)*J174,0)) -> 0 | H174: =IF(H169=0,0,E174*G166) -> 0 | I174: =IF(H169>=1,0,IF(H169=0,(E174*J174))) -> 0 | J174: =IF(F98>=1,35%,IF(I75=2,17.5%,IF(I75=3,26.25%,35%))) -> 0.35 | K174: =IF(L168=0,0,IF(O169=0,0,(L174/L178*H166))) -> 0 | L174: =IF(L168>D167,R45,0) -> 0 | M174: =IF(O169=0,0,IF(O178>=H166,(L174-K174)*Q174,0)) -> 0 | N174: =IF(O169=0,0,IF(O178<H166,(L174-O174)*Q174,0)) -> 0 | O174: =IF(O169=0,0,L174*G166) -> 0 | P174: =IF(O169>=1,0,IF(O169=0,(L174*Q174))) -> 0 | Q174: =IF(M98>=1,35%,IF(L75=2,17.5%,IF(L75=3,26.25%,35%))) -> 0.35
B175: Campo 455 f) → | D175: =IF(E168=0,0,IF(H169=0,0,(E175/E178*H166))) -> 0 | E175: =IF(E168>D167,P46,0) -> 0 | F175: =IF(H169=0,0,IF(H178>=H166,(E175-D175)*J175,0)) -> 0 | G175: =IF(H169=0,0,IF(H178<H166,(E175-H175)*J175,0)) -> 0 | H175: =IF(H169=0,0,E175*G166) -> 0 | I175: =IF(H169>=1,0,IF(H169=0,(E175*J175))) -> 0 | J175: =IF(F98>=1,10%,IF(I75=2,5%,IF(I75=3,7.5%,10%))) -> 0.1 | K175: =IF(L168=0,0,IF(O169=0,0,(L175/L178*H166))) -> 0 | L175: =IF(L168>D167,R46,0) -> 0 | M175: =IF(O169=0,0,IF(O178>=H166,(L175-K175)*Q175,0)) -> 0 | N175: =IF(O169=0,0,IF(O178<H166,(L175-O175)*Q175,0)) -> 0 | O175: =IF(O169=0,0,L175*G166) -> 0 | P175: =IF(O169>=1,0,IF(O169=0,(L175*Q175))) -> 0 | Q175: =IF(M98>=1,10%,IF(L75=2,5%,IF(L75=3,7.5%,10%))) -> 0.1
B176: Campo 456 → | D176: =IF(E168=0,0,IF(H169=0,0,(E176/E178*H166))) -> 0 | E176: =IF(E168>D167,P47,0) -> 0 | F176: =IF(H169=0,0,IF(H178>=H166,(E176-D176)*J176,0)) -> 0 | G176: =IF(H169=0,0,IF(H178<H166,(E176-H176)*J176,0)) -> 0 | H176: =IF(H169=0,0,E176*G166) -> 0 | I176: =IF(H169>=1,0,IF(H169=0,(E176*J176))) -> 0 | J176: 0.3 | K176: =IF(L168=0,0,IF(O169=0,0,(L176/L178*H166))) -> 0 | L176: =IF(L168>D167,R47,0) -> 0 | M176: =IF(O169=0,0,IF(O178>=H166,(L176-K176)*Q176,0)) -> 0 | N176: =IF(O169=0,0,IF(O178<H166,(L176-O176)*Q176,0)) -> 0 | O176: =IF(O169=0,0,L176*G166) -> 0 | P176: =IF(O169>=1,0,IF(O169=0,(L176*Q176))) -> 0 | Q176: =J176 -> 0.3
B177: Campo 458 → | D177: =IF(E168=0,0,IF(H169=0,0,(E177/E178*H166))) -> 0 | E177: =IF(E168>D167,P48,0) -> 0 | F177: =IF(H169=0,0,IF(H178>=H166,(E177-D177)*J177,0)) -> 0 | G177: =IF(H169=0,0,IF(H178<H166,(E177-H177)*J177,0)) -> 0 | H177: =IF(H169=0,0,E177*G166) -> 0 | I177: =IF(H169>=1,0,IF(H169=0,(E177*J177))) -> 0 | J177: 0.1 | K177: =IF(L168=0,0,IF(O169=0,0,(L177/L178*H166))) -> 0 | L177: =IF(L168>D167,R48,0) -> 0 | M177: =IF(O169=0,0,IF(O178>=H166,(L177-K177)*Q177,0)) -> 0 | N177: =IF(O169=0,0,IF(O178<H166,(L177-O177)*Q177,0)) -> 0 | O177: =IF(O169=0,0,L177*G166) -> 0 | P177: =IF(O169>=1,0,IF(O169=0,(L177*Q177))) -> 0 | Q177: =J177 -> 0.1
B178: SOMA TOTAL→ | E178: =SUM(E171:E177) -> 0 | F178: =SUM(F171:G177,I171:I177) -> 0 | H178: =SUM(H171:H177) -> 0 | L178: =SUM(L171:L177) -> 0 | M178: =SUM(M171:N177,P171:P177) -> 0 | O178: =SUM(O171:O177) -> 0
B179: Continente (RB) | D179: SOMA | E179: =SUM(F178+M178) -> 0 | F179: =IF(T164=1,E179,) -> 0 | I179: T. Separado
B180: Açores | D180: SOMA | E180: =IF(E179<0,0,E179) -> 0 | F180: =IF(T164=2,E180,) -> 0 | H180: SP A→ | I180: =IF(T164>=4,0,IF(S164=1,D165,)) -> 0
B181: Madeira | D181: SOMA | E181: =IF(E179<0,0,E179) -> 0 | F181: =IF(T164=3,E181,) -> 0 | H181: SP B→ | I181: =IF(T164>=4,0,IF(S164=1,K165,)) -> 0
B182: =IF(E179<0,0,SUM(F179:G181)) -> 0 | D182: ← Rendimento bruto
B184: Reporte de prejuízos da categoria B - Prazo 12 anos | S184: ='Anexo A'!X253 -> 1 | T184: =IF(T185=TRUE,4,IF(T186=TRUE,4,IF(T187=TRUE,1,'Anexo A'!S46))) -> 1
B185: T. Separada → | D185: =IF(S184=1,D188,0) -> 0 | F185: =IF(S184=1,F188,0) -> 0 | H185: =IF(S184=1,H188/2,0) -> 0 | J185: =IF(S184=1,J188/2,0) -> 0 | T185: ='Modelo 3'!D43 -> 0
B186: Rendimento Bruto → | D186: =IF(B126+B146+B182>1,P32+P51,0) -> 0 | F186: =IF(B126+B146+B182>1,R32+R51,0) -> 0 | H186: =IF(B126+B146+B182>1,T32,0) -> 0 | J186: =IF(B126+B146+B182>1,V32,0) -> 0 | T186: ='Modelo 3'!E43 -> 0
D187: Sujeito Passivo A | F187: Sujeito Passivo B | H187: Dependente 1 | J187: Dependente 2 | T187: ='Modelo 3'!F43 -> 0
B188: SOMA TOTAL → | D188: =IF(D186>E188,E188,D186) -> 0 | E188: =H118+F136+F178 -> 0 | F188: =IF(F186>G188,G188,F186) -> 0 | G188: =O118+H136+M178 -> 0 | H188: =IF(H186>I188,I188,H186) -> 0 | I188: =V118+J136 -> 0 | J188: =IF(J186>K188,K188,J186) -> 0 | K188: =AC118+L136 -> 0
B189: Continente (RP) | D189: SOMA | E189: =SUM(D188+F188+H188+J188) -> 0 | F189: =IF(T184=1,E189,) -> 0 | I189: T. Separado
B190: Açores | D190: SOMA | E190: =IF(E189<0,0,E189) -> 0 | F190: =IF(T184=2,E190,) -> 0 | H190: SP A→ | I190: =IF(T184>=4,0,IF(S184=1,D185+H185+J185,)) -> 0
B191: Madeira | D191: SOMA | E191: =IF(E189<0,0,E189) -> 0 | F191: =IF(T184=3,E191,) -> 0 | H191: SP B→ | I191: =IF(T184>=4,0,IF(S184=1,F185+H185+J185,)) -> 0
B192: =IF(E189<0,0,SUM(F189+F190+F191)) -> 0 | D192: ← Reporte de Prejuízos Fiscais
B194: Retenção na fonte da categoria B | S194: ='Anexo A'!X253 -> 1 | T194: =IF(T195=TRUE,4,IF(T196=TRUE,4,IF(T197=TRUE,1,'Anexo A'!S46))) -> 1
B195: T. Separada → | D195: =IF(S194=1,D198,0) -> 0 | F195: =IF(S194=1,F198,0) -> 0 | H195: =IF(S194=1,H198/2,0) -> 0 | J195: =IF(S194=1,J198/2,0) -> 0 | T195: ='Modelo 3'!D43 -> 0
B196: Rendimento Bruto → | D196: =SUM(P28+P49) -> 0 | F196: =SUM(R28+R49) -> 0 | H196: =SUM(T28) -> 0 | J196: =SUM(V28) -> 0 | T196: ='Modelo 3'!E43 -> 0
D197: Sujeito Passivo A | F197: Sujeito Passivo B | H197: Dependente 1 | J197: Dependente 2 | T197: ='Modelo 3'!F43 -> 0
B198: SOMA TOTAL → | D198: =D196 -> 0 | F198: =F196 -> 0 | H198: =H196 -> 0 | J198: =J196 -> 0
B199: Continente (RF) | D199: SOMA | E199: =SUM(D198:K198) -> 0 | F199: =IF(T194=1,E199,) -> 0 | I199: T. Separado | L199: Não residentes | N199: =SUM(T28:W28,)/2 -> 0
B200: Açores | D200: SOMA | E200: =IF(E199<0,0,E199) -> 0 | F200: =IF(T194=2,E200,) -> 0 | H200: SP A→ | I200: =IF(T194>=4,0,IF(S194=1,D195+H195+J195,)) -> 0 | K200: SP A→ | L200: =IF(T194>=4,N200,) -> 0 | N200: =SUM(P28+P49)+N199 -> 0
B201: Madeira | D201: SOMA | E201: =IF(E199<0,0,E199) -> 0 | F201: =IF(T194=3,E201,) -> 0 | H201: SP B→ | I201: =IF(T194>=4,0,IF(S194=1,F195+H195+J195,)) -> 0 | K201: SP B→ | L201: =IF(T194>=4,N201,) -> 0 | N201: =SUM(R28+R49)+N199 -> 0
B202: =IF(E199<0,0,SUM(F199+F200+F201)) -> 0 | D202: ← Retenção na Fonte
B204: Pagamentos por Conta categoria B | S204: ='Anexo A'!X253 -> 1 | T204: =IF(T205=TRUE,4,IF(T206=TRUE,4,IF(T207=TRUE,1,'Anexo A'!S46))) -> 1
B205: T. Separada → | D205: =IF(S204=1,D208,0) -> 0 | F205: =IF(S204=1,F208,0) -> 0 | H205: =IF(S204=1,H208/2,0) -> 0 | J205: =IF(S204=1,J208/2,0) -> 0 | T205: ='Modelo 3'!D43 -> 0
B206: Rendimento Bruto → | D206: =SUM(P29+P50) -> 0 | F206: =SUM(R29+R50) -> 0 | H206: =SUM(T29) -> 0 | J206: =SUM(V29) -> 0 | T206: ='Modelo 3'!E43 -> 0
D207: Sujeito Passivo A | F207: Sujeito Passivo B | H207: Dependente 1 | J207: Dependente 2 | T207: ='Modelo 3'!F43 -> 0
B208: SOMA TOTAL → | D208: =D206 -> 0 | F208: =F206 -> 0 | H208: =H206 -> 0 | J208: =J206 -> 0
B209: Continente (PC) | D209: SOMA | E209: =SUM(D208:K208) -> 0 | F209: =IF(T204=1,E209,) -> 0 | I209: T. Separado | L209: Não residentes | N209: =SUM(T29+V29)/2 -> 0
B210: Açores | D210: SOMA | E210: =IF(E209<0,0,E209) -> 0 | F210: =IF(T204=2,E210,) -> 0 | H210: SP A→ | I210: =IF(T204>=4,0,IF(S204=1,D205+H205+J205,)) -> 0 | K210: SP A→ | L210: =IF(T204>=4,N210,) -> 0 | N210: =SUM(P29+P50)+N209 -> 0
B211: Madeira | D211: SOMA | E211: =IF(E209<0,0,E209) -> 0 | F211: =IF(T204=3,E211,) -> 0 | H211: SP B→ | I211: =IF(T204>=4,0,IF(S204=1,F205+H205+J205,)) -> 0 | K211: SP B→ | L211: =IF(T204>=4,N211,) -> 0 | N211: =SUM(R29+R50)+N209 -> 0
B212: =IF(E209<0,0,SUM(F209+F210+F211)) -> 0 | D212: ← Pagamento por Conta
B213: ,
B214: Art.º 74.º do CIRS - Rendimentos produzidos em anos anteriores Cat. B | M214: =Artigos!F51 -> 0 | S214: ='Anexo A'!X253 -> 1 | T214: =IF(Z219=TRUE,4,IF(Z220=TRUE,4,IF(Z221=TRUE,1,'Anexo A'!S46))) -> 1
B215: T. Separada → | D215: =IF(S214=1,D217,0) -> 0 | F215: =IF(S214=1,J217+L217,0) -> 0 | H215: =IF(S214=1,D218,0) -> 0 | J215: =IF(S214=1,J218+L218,0) -> 0 | M215: =Artigos!F69 -> 0
B216: Nº de Anos → | E216: =P31+1 -> 1 | G216: =R31+1 -> 1 | N216: Rendimento Bruto | P216: Dedução Específica | R216: Rendimento Coletável | T216: Rendi. Anos Anteriores | V216: TAXA | W216: Parcela a Abater | Y216: =D217*H217 -> 0
B217: Sujeito Passivo A → | D217: =IF(N217<1,0,(T217*R217)/N217*(E216-1)/E216) -> 0 | F217: =(R217-D217+0) -> 0 | H217: =(F217*V217)-W217 -> 0 | J217: =IF(S214=1,0,IF(N217<1,0,IF(R217<1,0,(H217*D217)/F217))) -> 0 | L217: =IF(Y216<=0,0,IF(S214=0,0,Y216/M214)) -> 0 | N217: =IF('Modelo 3'!F52=4,0,SUM(G101:G117,F135,E171:E177)) -> 0 | P217: =D158 -> 0 | R217: =IF('Modelo 3'!F7=4,0,IF(N217>P217,N217-P217,0)) -> 0 | T217: =P30 -> 0 | V217: =IF(S214=0,Artigos!B32,IF(S214=1,Artigos!B50,0)) -> 0 | W217: =IF(S214=0,Artigos!B33,IF(S214=1,Artigos!B51,0)) -> 0 | Y217: =D218*H218 -> 0
B218: Sujeito Passivo B → | D218: =IF(N218<1,0,(T218*R218)/N218*(G216-1)/G216) -> 0 | F218: =(R218-D218+0) -> 0 | H218: =(F218*V218)-W218 -> 0 | J218: =IF(S214=1,0,IF(N218<1,0,IF(R218<1,0,(H218*D218)/F218))) -> 0 | L218: =IF(Y217<=0,0,IF(S214=0,0,Y217/M215)) -> 0 | N218: =IF('Modelo 3'!F52=4,0,SUM(N101:N117,H135,L171:L177)) -> 0 | P218: =F158 -> 0 | R218: =IF('Modelo 3'!F7=4,0,IF(N218>P218,N218-P218,0)) -> 0 | T218: =R30 -> 0 | V218: =IF(S214=0,Artigos!B32,IF(S214=1,Artigos!B68,0)) -> 0 | W218: =IF(S214=0,Artigos!B33,IF(S214=1,Artigos!B69,0)) -> 0
B219: SOMA TOTAL → | D219: =SUM(D217:E218) -> 0 | L219: =SUM(J217:M218) -> 0 | Z219: ='Modelo 3'!D43 -> 0
B220: Continente | D220: SOMA | E220: =SUM(D219) -> 0 | G220: =IF(T214=1,E220,) -> 0 | I220: =SUM(L219) -> 0 | K220: =IF(T214=1,I220,) -> 0 | N220: T. Separado | Q220: T. Separado | Z220: ='Modelo 3'!E43 -> 0
... 5 more rows

Sheet Anexo E
B4: QUADRO 4A
B5: RENDIMENTOS SUJEITOS A TAXAS ESPECIAIS (art.º 72.º do CIRS)
B6: RENDIMENTOS DE CAPITAIS - [Artigo 5.º do Código do IRS] | O6: Campo | P6: Sujeito Passivo A | R6: Sujeito Passivo B
B7: Os sujeitos passivos optam pelo englobamento dos rendimentos da categoria E, DO QUADRO 4A ? | M7: Indique ali a | O7: ☞ | P7: Opção | R7: =P7 -> Opção
B8: Código dos rendimentos ➤ | E8: Clique aqui para indicar o código dos rendimentos | O8: 401
B9: Código dos rendimentos ➤ | E9: Clique aqui para indicar o código dos rendimentos | O9: 402
B10: Código dos rendimentos ➤ | E10: Clique aqui para indicar o código dos rendimentos | O10: 403
B11: Código dos rendimentos ➤ | E11: Clique aqui para indicar o código dos rendimentos | O11: 404
B12: Código dos rendimentos ➤ | E12: Clique aqui para indicar o código dos rendimentos | O12: 405
B13: Código dos rendimentos ➤ | E13: Clique aqui para indicar o código dos rendimentos | O13: 406
B15: QUADRO 4B
B16: RENDIMENTOS SUJEITOS A TAXAS LIBERATÓRIAS (art.º 71.º do CIRS)
B17: RENDIMENTOS DE CAPITAIS - [Artigo 5.º do Código do IRS] | O17: Campo | P17: Sujeito Passivo A | R17: Sujeito Passivo B
B18: Código dos rendimentos ➤ | E18: Clique aqui par indicar o código dos rendimentos | O18: 451
B19: Código dos rendimentos ➤ | E19: Clique aqui par indicar o código dos rendimentos | O19: 452
B20: Código dos rendimentos ➤ | E20: Clique aqui par indicar o código dos rendimentos | O20: 453
B21: Código dos rendimentos ➤ | E21: Clique aqui par indicar o código dos rendimentos | O21: 454
B22: Código dos rendimentos ➤ | E22: Clique aqui par indicar o código dos rendimentos | O22: 455
B23: Código dos rendimentos ➤ | E23: Clique aqui par indicar o código dos rendimentos | O23: 456
B24: Retenções na fonte de IRS
B25: Rendimentos de anos anteriores [Incluídos no Quadro 4A e 4B do Anexo E] | O25: Quadro 4A e 4B
B26: Indique o N.º de anos
B27: Perdas a reportar do exercício de 2017 a deduzir ao rendimento de 2018 [Veja a Demonstração de Liquidação de IRS do exercício de 2017, enviada pela AT]
B32: INICIO
B34: Opção pelo englobamento da cat. E | E34: SP A | G34: SP B
B35: Opção | C35: 1 | E35: =SUM(P8:Q13,P18:Q23) -> 0 | G35: =SUM(R8:S13,R18:S23) -> 0
B36: Sim | C36: 2
B37: Não | C37: =IF(D38=0,2,IF(D38>=1,3,)) -> 2
C38: =VLOOKUP(P7,B35:C37,2,FALSE) -> 1 | D38: =SUM(P8:Q13,R8:S13) -> 0
B40: =IF(B51+B61+L59+L60=0,"➤",IF(B51+B61+L59+L60>=1,"Tem",)) -> ➤
B42: CATEGORIA E
B43: Art.º 5.º do CIRS - Rendimentos da categoria E | R43: ='Anexo A'!R46 -> 1 | S43: =IF(S44=TRUE,4,IF(S45=TRUE,4,IF(S46=TRUE,4,'Anexo A'!S46))) -> 1
B44: T. Separada → | D44: =IF(R43=1,D47,0) -> 0 | F44: =IF(R43=1,F47,0) -> 0 | S44: ='Modelo 3'!D43 -> 0
B45: Rendimento Bruto → | D45: =SUM(P8:Q13,P18:Q23) -> 0 | F45: =SUM(R8:S13,R18:S23) -> 0 | S45: ='Modelo 3'!E43 -> 0
D46: Sujeito Passivo A | F46: Sujeito Passivo B | S46: ='Modelo 3'!F43 -> 0
B47: SOMA TOTAL → | D47: =IF(C38<=2,D45,) -> 0 | F47: =IF(C38<=2,F45,) -> 0
B48: Continente (RB) | D48: SOMA | E48: =SUM(D47:F47) -> 0 | F48: =IF(S43=1,E48,) -> 0 | I48: T. Separado
B49: Açores | D49: SOMA | E49: =IF(E48<0,0,E48) -> 0 | F49: =IF(S43=2,E49,) -> 0 | H49: SP A→ | I49: =IF(S43>=4,0,IF(R43=1,D44,)) -> 0
B50: Madeira | D50: SOMA | E50: =IF(E48<0,0,E48) -> 0 | F50: =IF(S43=3,E50,) -> 0 | H50: SP B→ | I50: =IF(S43>=4,0,IF(R43=1,F44,)) -> 0
B51: =IF(E48<0,0,SUM(F48+F49+F50)) -> 0 | D51: ← Rendimento bruto
B53: Art.º 5.º do CIRS - Rendimentos da categoria E Opção pela tributação autónoma | P53: ='Modelo 3'!P36 -> 0.28 | Q53: ='Modelo 3'!T36 -> 0.28 | R53: ='Anexo A'!R46 -> 1 | S53: =IF(S54=TRUE,4,IF(S55=TRUE,4,IF(S56=TRUE,4,'Anexo A'!S46))) -> 1
B54: T. Separada → | D54: =IF(R53=1,D57,0) -> 0 | F54: =IF(R53=1,F57,0) -> 0 | S54: ='Modelo 3'!D43 -> 0
B55: Rendimento Bruto → | D55: =SUM(P8:Q13) -> 0 | F55: =SUM(R8:S13) -> 0 | S55: ='Modelo 3'!E43 -> 0
D56: Sujeito Passivo A | F56: Sujeito Passivo B | S56: ='Modelo 3'!F43 -> 0
B57: SOMA TOTAL → | D57: =IF(C38=3,D55*P53,) -> 0 | F57: =IF(C38=3,F55*P53,) -> 0
B58: Continente (TA) | D58: SOMA | E58: =SUM(D57:G57) -> 0 | F58: =IF(S53=1,E58,) -> 0 | I58: T. Separado | L58: Não residentes
B59: Açores | D59: SOMA | E59: =IF(E58<0,0,E58) -> 0 | F59: =IF(S53=2,E59,) -> 0 | H59: SP A→ | I59: =IF(S53>=4,0,IF(R53=1,D54,)) -> 0 | K59: SP A→ | L59: =IF(S53>=4,O59,) -> 0 | N59: =SUM(D55) -> 0 | O59: =N59*Q53 -> 0
B60: Madeira | D60: SOMA | E60: =IF(E58<0,0,E58) -> 0 | F60: =IF(S53=3,E60,) -> 0 | H60: SP B→ | I60: =IF(S53>=4,0,IF(R53=1,F54,)) -> 0 | K60: SP B→ | L60: =IF(S53>=4,O60,) -> 0 | N60: =SUM(F55) -> 0 | O60: =N60*Q53 -> 0
B61: =IF(E58<0,0,SUM(F58+F59+F60)) -> 0 | D61: ← Tributação autónoma
B63: Reporte de prejuízos da categoria E | R63: ='Anexo A'!R46 -> 1 | S63: =IF(S64=TRUE,4,IF(S65=TRUE,4,IF(S66=TRUE,4,'Anexo A'!S46))) -> 1
B64: T. Separada → | D64: =IF(R63=1,D67,0) -> 0 | F64: =IF(R63=1,F67,0) -> 0 | S64: ='Modelo 3'!D43 -> 0
B65: Rendimento Bruto → | D65: =SUM(P8+P18,0) -> 0 | F65: =SUM(R8+R18) -> 0 | S65: ='Modelo 3'!E43 -> 0
D66: Sujeito Passivo A | F66: Sujeito Passivo B | S66: ='Modelo 3'!F43 -> 0
B67: SOMA TOTAL → | D67: =IF(D65>E67,E67,D65) -> 0 | E67: =P27 -> 0 | F67: =IF(F65>G67,G67,F65) -> 0 | G67: =R27 -> 0
B68: Continente (RP) | D68: SOMA | E68: =SUM(D67+F67) -> 0 | F68: =IF(S63=1,E68,) -> 0 | I68: T. Separado
B69: Açores | D69: SOMA | E69: =IF(E68<0,0,E68) -> 0 | F69: =IF(S63=2,E69,) -> 0 | H69: SP A→ | I69: =IF(S63>=4,0,IF(R63=1,D64,)) -> 0
B70: Madeira | D70: SOMA | E70: =IF(E68<0,0,E68) -> 0 | F70: =IF(S63=3,E70,) -> 0 | H70: SP B→ | I70: =IF(S63>=4,0,IF(R63=1,F64,)) -> 0
B71: =IF(E68<0,0,SUM(F68+F69+F70)) -> 0 | D71: ← Reporte de Prejuízos Fiscais
B73: Retenção na fonte da Categoria E | R73: ='Anexo A'!R46 -> 1 | S73: =IF(S74=TRUE,4,IF(S75=TRUE,4,IF(S76=TRUE,4,'Anexo A'!S46))) -> 1
B74: T. Separada → | D74: =IF(R73=1,D77,0) -> 0 | F74: =IF(R73=1,F77,0) -> 0 | S74: ='Modelo 3'!D43 -> 0
B75: Rendimento Bruto → | D75: =SUM(P24) -> 0 | F75: =SUM(R24) -> 0 | S75: ='Modelo 3'!E43 -> 0
D76: Sujeito Passivo A | F76: Sujeito Passivo B | S76: ='Modelo 3'!F43 -> 0
B77: SOMA TOTAL → | D77: =D75 -> 0 | F77: =F75 -> 0
B78: Continente (RF) | D78: SOMA | E78: =SUM(D77:G77) -> 0 | F78: =IF(S73=1,E78,) -> 0 | I78: T. Separado | L78: Não residentes
B79: Açores | D79: SOMA | E79: =IF(E78<0,0,E78) -> 0 | F79: =IF(S73=2,E79,) -> 0 | H79: SP A→ | I79: =IF(S73>=4,0,IF(R73=1,D74,)) -> 0 | K79: SP A→ | L79: =IF(S73>=4,N79,) -> 0 | N79: =SUM(D75) -> 0
B80: Madeira | D80: SOMA | E80: =IF(E78<0,0,E78) -> 0 | F80: =IF(S73=3,E80,) -> 0 | H80: SP B→ | I80: =IF(S73>=4,0,IF(R73=1,F74,)) -> 0 | K80: SP B→ | L80: =IF(S73>=4,N80,) -> 0 | N80: =SUM(F75) -> 0
B81: =IF(E78<0,0,SUM(F78+F79+F80)) -> 0 | D81: ← Retenção na Fonte
B83: Art.º 74.º do CIRS - Rendimentos produzidos em anos anteriores Cat. B | M83: =Artigos!F51 -> 0 | S83: ='Anexo A'!R46 -> 1 | T83: =IF(Z88=TRUE,4,IF(Z89=TRUE,4,IF(Z90=TRUE,4,'Anexo A'!S46))) -> 1
B84: T. Separada → | D84: =IF(S83=1,D86,0) -> 0 | F84: =IF(S83=1,J86+L86,0) -> 0 | H84: =IF(S83=1,D87,0) -> 0 | J84: =IF(S83=1,J87+L87,0) -> 0 | M84: =Artigos!F69 -> 0
B85: Nº de Anos → | E85: =P26+1 -> 1 | G85: =R26+1 -> 1 | N85: Rendimento Bruto | P85: Dedução Específica | R85: Rendimento Coletável | T85: Rendi. Anos Anteriores | V85: TAXA | W85: Parcela a Abater | Y85: =D86*H86 -> 0
B86: Sujeito Passivo A → | D86: =IF(N86<1,0,(T86*R86)/N86*(E85-1)/E85) -> 0 | F86: =(R86-D86+0) -> 0 | H86: =(F86*V86)-W86 -> 0 | J86: =IF(S83=1,0,IF(N86<1,0,IF(R86<1,0,(H86*D86)/F86))) -> 0 | L86: =IF(Y85<=0,0,IF(S83=0,0,Y85/M83)) -> 0 | N86: =IF('Modelo 3'!F52=4,0,E35) -> 0 | P86: 0 | R86: =IF('Modelo 3'!F52=4,0,IF(N86>P86,N86-P86,0)) -> 0 | T86: =SUM(P25) -> 0 | V86: =IF(S83=0,Artigos!B32,IF(S83=1,Artigos!B50,0)) -> 0 | W86: =IF(S83=0,Artigos!B33,IF(S83=1,Artigos!B51,0)) -> 0 | Y86: =D87*H87 -> 0
B87: Sujeito Passivo B → | D87: =IF(N87<1,0,(T87*R87)/N87*(G85-1)/G85) -> 0 | F87: =(R87-D87+0) -> 0 | H87: =(F87*V87)-W87 -> 0 | J87: =IF(S83=1,0,IF(N87<1,0,IF(R87<1,0,(H87*D87)/F87))) -> 0 | L87: =IF(Y86<=0,0,IF(S83=0,0,Y86/M84)) -> 0 | N87: =IF('Modelo 3'!F52=4,0,G35) -> 0 | P87: 0 | R87: =IF('Modelo 3'!F52=4,0,IF(N87>P87,N87-P87,0)) -> 0 | T87: =R25 -> 0 | V87: =IF(S83=0,Artigos!B32,IF(S83=1,Artigos!B68,0)) -> 0 | W87: =IF(S83=0,Artigos!B33,IF(S83=1,Artigos!B69,0)) -> 0
B88: SOMA TOTAL → | D88: =SUM(D86:E87) -> 0 | L88: =SUM(J86:M87) -> 0 | Z88: ='Modelo 3'!D43 -> 0
B89: Continente | D89: SOMA | E89: =SUM(D88) -> 0 | G89: =IF(T83=1,E89,) -> 0 | I89: =SUM(L88) -> 0 | K89: =IF(T83=1,I89,) -> 0 | N89: T. Separado | Q89: T. Separado | Z89: ='Modelo 3'!E43 -> 0
B90: Açores | D90: SOMA | E90: =IF(E89<0,0,E89) -> 0 | G90: =IF(T83=2,E90,) -> 0 | I90: =IF(I89<0,0,I89) -> 0 | K90: =IF(T83=2,I90,) -> 0 | M90: SP A→ | N90: =SUM(D84) -> 0 | P90: SP B→ | Q90: =SUM(H84) -> 0 | S90: ← Quociente dos rendimentos de anos anteriores | Z90: ='Modelo 3'!F43 -> 0
B91: Madeira | D91: SOMA | E91: =IF(E89<0,0,E89) -> 0 | G91: =IF(T83=3,E91,) -> 0 | I91: =IF(I89<0,0,I89) -> 0 | K91: =IF(T83=3,I91,) -> 0 | M91: SP A→ | N91: =SUM(F84) -> 0 | P91: SP B→ | Q91: =SUM(J84) -> 0 | S91: ← Imposto correspondente a rendimentos de anos anteriores
B92: =IF(E89<0,0,SUM(G89:H91)) -> 0 | D92: ← Quociente dos rendimentos de anos anteriores
B93: =IF(I89<0,0,SUM(K89:L91)) -> 0 | D93: ← Imposto correspondente a rendimentos de anos anteriores
B101: FIM

Sheet Anexo F
B4: QUADRO 4
B5: RENDIMENTOS, RENDAS ✚ ALOJAMENTO LOCAL OPÇÃO PELA CATEGORIA F
B6: RENDIMENTOS PREDIAIS - [Artigo 8.º do Código do IRS] | P6: Campo | Q6: Sujeito Passivo A | S6: Sujeito Passivo B
B7: Este imóvel está abrangido pelo previsto nos n.ºs 6 e 23 do art.º 71.º do EBF ? | P7: ☞ | Q7: Indique aqui | S7: Indique aqui
B8: Os sujeitos passivos optam pelo englobamento dos rendimentos da Categoria F ? | N8: Indique ali a | P8: ☞ | Q8: Opção | S8: =Q8 -> Opção
B9: Rendimentos prediais [Rendas] | P9: 4001
B10: Atividade de Alojamento local, na modalidade de moradia ou apartamento [Opção pelas regras da categoria F]
B11: Retenções na fonte de IRS
B12: Rendimentos de anos anteriores [Incluídos no Quadro 4 do Anexo F] | P12: Quadro 4
B13: Indique o N.º de anos
B14: Perdas a reportar do exercício de 2017 a deduzir ao rendimento de 2018 [Veja a Demonstração de Liquidação de IRS do exercício de 2017, enviada pela AT]
B16: QUADRO 5A
B17: GASTOS SUPORTADOS E PAGOS APÓS O INÍCIO DO ARRENDAMENTO ✚ ALOJAMENTO LOCAL OPÇÃO PELA CATEGORIA F | P17: Campo | Q17: Sujeito Passivo A | S17: Sujeito Passivo B
B18: Conservação e manutenção
B19: Condomínio
B20: Imposto municipal sobre imóveis IMI [Não insira nesta linha o Adicional ao IMI previsto no Art.º 135.º-I do CIMI]
B21: Imposto do selo
B22: Taxas autárquicas
B23: Outros
B28: INICIO
B30: Imóvel foi objeto de ações de reabilitação SP A | E30: Imóvel foi objeto de ações de reabilitação SP B | H30: Opção pelo englobamento da cat. F
B31: Indique aqui | C31: 1 | E31: Indique aqui | F31: 1 | H31: Opção | I31: 1
B32: Sim | C32: 2 | E32: Sim | F32: 2 | H32: Sim | I32: 2
B33: Não | C33: 3 | E33: Não | F33: 3 | H33: Não | I33: 3
C34: =VLOOKUP(Q7,B31:C33,2,FALSE) -> 1 | F34: =VLOOKUP(S7,E31:F33,2,FALSE) -> 1 | I34: =VLOOKUP(Q8,H31:I33,2,FALSE) -> 1
B36: =IF(B47+B60+L58+L59=0,"➤",IF(B47+B60+L58+L59>=1,"Tem",)) -> ➤
B38: CATEGORIA F
B39: Art.º 8.º do CIRS - Rendimentos da categoria F | M39: =IF(D43+F43>=1,IF('Modelo 3'!E40=TRUE,3,0)) -> FALSE | R39: ='Anexo A'!R46 -> 1 | S39: =IF(S40=TRUE,4,IF(S41=TRUE,4,IF(S42=TRUE,4,'Anexo A'!S46))) -> 1
B40: T. Separada → | D40: =IF(R39=1,D43,0) -> 0 | F40: =IF(R39=1,F43,0) -> 0 | S40: ='Modelo 3'!D43 -> 0
B41: Rendimento Bruto → | D41: =IF(C34=2,0,IF(I34=3,0,Q9+Q10)) -> 0 | F41: =IF(F34=2,0,IF(I34=3,0,S9+S10)) -> 0 | S41: ='Modelo 3'!E43 -> 0
D42: Sujeito Passivo A | F42: Sujeito Passivo B | S42: ='Modelo 3'!F43 -> 0
B43: SOMA TOTAL → | D43: =IF(D55+D56>=1,0,D41) -> 0 | F43: =IF(F55+F56>=1,0,F41) -> 0
B44: Continente (RB) | D44: SOMA | E44: =SUM(D43:F43) -> 0 | F44: =IF(S39=1,E44,) -> 0 | I44: T. Separado
B45: Açores | D45: SOMA | E45: =IF(E44<0,0,E44) -> 0 | F45: =IF(S39=2,E45,) -> 0 | H45: SP A→ | I45: =IF(S39>=4,0,IF(R39=1,D40,)) -> 0
B46: Madeira | D46: SOMA | E46: =IF(E44<0,0,E44) -> 0 | F46: =IF(S39=3,E46,) -> 0 | H46: SP B→ | I46: =IF(S39>=4,0,IF(R39=1,F40,)) -> 0
B47: =IF(E44<0,0,SUM(F44+F45+F46)) -> 0 | D47: ← Rendimento bruto
B49: Art.º 8.º do CIRS - Rendimentos da categoria F (Imóvel recuperado ou objeto de ações de reabilitação + Tributaçã Autónoma ) | R49: ='Anexo A'!R46 -> 1 | S49: =IF(S50=TRUE,4,IF(S51=TRUE,4,IF(S52=TRUE,4,'Anexo A'!S46))) -> 1
B50: T. Separada → | D50: =IF(R49=1,D55+D56,0) -> 0 | F50: =IF(R49=1,F55+F56,0) -> 0 | S50: ='Modelo 3'!D43 -> 0
B51: Rendimento Bruto → | D51: =Q9+Q10-D64 -> 0 | F51: =S9+S10-F64 -> 0 | S51: ='Modelo 3'!E43 -> 0
D52: =Q9+Q10-D64 -> 0 | F52: =S9+S10-F64 -> 0 | S52: ='Modelo 3'!F43 -> 0
B53: Taxa → | D53: ='Modelo 3'!M36 -> 0.05 | E53: ='Modelo 3'!P36 -> 0.28 | N53: ='Modelo 3'!T36 -> 0.28
D54: Sujeito Passivo A | F54: Sujeito Passivo B
B55: SOMA TOTAL → | D55: =IF(C34=2,D51*D53,0) -> 0 | F55: =IF(F34=2,F51*D53,0) -> 0
D56: =IF(D55>=1,0,IF(I34=3,D52*E53,)) -> 0 | F56: =IF(F55>=1,0,IF(I34=3,F52*E53,)) -> 0
B57: Continente (TA) | D57: SOMA | E57: =SUM(D55:F56) -> 0 | F57: =IF(S49=1,E57,) -> 0 | I57: T. Separado | L57: Não residentes
B58: Açores | D58: SOMA | E58: =IF(E57<0,0,E57) -> 0 | F58: =IF(S49=2,E58,) -> 0 | H58: SP A→ | I58: =IF(S49>=4,0,IF(R49=1,D50,)) -> 0 | K58: SP A→ | L58: =IF(S49>=4,O58,) -> 0 | N58: =SUM(Q9+Q10)-D66 -> 0 | O58: =(N58*N53) -> 0
B59: Madeira | D59: SOMA | E59: =IF(E57<0,0,E57) -> 0 | F59: =IF(S49=3,E59,) -> 0 | H59: SP B→ | I59: =IF(S49>=4,0,IF(R49=1,F50,)) -> 0 | K59: SP B→ | L59: =IF(S49>=4,O59,) -> 0 | N59: =SUM(S9+S10)-F66 -> 0 | O59: =(N59*N53) -> 0
B60: =IF(E57<0,0,SUM(F57+F58+F59)) -> 0 | D60: ← Tributação Autónoma
B62: Dedução específica da categoria F | R62: ='Anexo A'!R46 -> 1 | S62: =IF(S63=TRUE,4,IF(S64=TRUE,4,IF(S65=TRUE,4,'Anexo A'!S46))) -> 1
B63: T. Separada → | D63: =IF(R62=1,D66,0) -> 0 | F63: =IF(R62=1,F66,0) -> 0 | S63: ='Modelo 3'!D43 -> 0
B64: Rendimento Bruto → | D64: =SUM(Q18:R23) -> 0 | F64: =SUM(S18:T23) -> 0 | S64: ='Modelo 3'!E43 -> 0
D65: Sujeito Passivo A | F65: Sujeito Passivo B | S65: ='Modelo 3'!F43 -> 0
B66: SOMA TOTAL → | D66: =IF(D55+D56=0,D64,) -> 0 | F66: =IF(F55+F56=0,F64,) -> 0
B67: Continente (DE) | D67: SOMA | E67: =SUM(D66:F66) -> 0 | F67: =IF(S62=1,E67,) -> 0 | I67: T. Separado
B68: Açores | D68: SOMA | E68: =IF(E67<0,0,E67) -> 0 | F68: =IF(S62=2,E68,) -> 0 | H68: SP A→ | I68: =IF(S62>=4,0,IF(R62=1,D63,)) -> 0
B69: Madeira | D69: SOMA | E69: =IF(E67<0,0,E67) -> 0 | F69: =IF(S62=3,E69,) -> 0 | H69: SP B→ | I69: =IF(S62>=4,0,IF(R62=1,F63,)) -> 0
B70: =IF(E67<0,0,SUM(F67+F68+F69)) -> 0 | D70: ← Dedução específica
B72: Reporte de Prejuízos Fiscais | R72: ='Anexo A'!R46 -> 1 | S72: =IF(S73=TRUE,4,IF(S74=TRUE,4,IF(S75=TRUE,1,'Anexo A'!S46))) -> 1
B73: T. Separada → | D73: =IF(R72=1,D76,0) -> 0 | F73: =IF(R72=1,F76,0) -> 0 | S73: ='Modelo 3'!D43 -> 0
B74: Rendimento Bruto → | D74: =IF(D43>=1,Q14,) -> 0 | F74: =IF(F43>=1,S14,) -> 0 | S74: ='Modelo 3'!E43 -> 0
D75: Sujeito Passivo A | F75: Sujeito Passivo B | S75: ='Modelo 3'!F43 -> 0
B76: SOMA TOTAL → | D76: =IF(D74>E76,E76,D74) -> 0 | E76: =D43 -> 0 | F76: =IF(F74>G76,G76,F74) -> 0 | G76: =F43 -> 0
B77: Continente (RP) | D77: SOMA | E77: =SUM(D76+F76) -> 0 | F77: =IF(S72=1,E77,) -> 0 | I77: T. Separado
B78: Açores | D78: SOMA | E78: =IF(E77<0,0,E77) -> 0 | F78: =IF(S72=2,E78,) -> 0 | H78: SP A→ | I78: =IF(S72>=4,0,IF(R72=1,D73,)) -> 0
B79: Madeira | D79: SOMA | E79: =IF(E77<0,0,E77) -> 0 | F79: =IF(S72=3,E79,) -> 0 | H79: SP B→ | I79: =IF(S72>=4,0,IF(R72=1,F73,)) -> 0
B80: =IF(E77<0,0,SUM(F77+F78+F79)) -> 0 | D80: ← Reporte de Prejuízos Fiscais
B82: Retenção na fonte da Categoria F | R82: ='Anexo A'!R46 -> 1 | S82: =IF(S83=TRUE,4,IF(S84=TRUE,4,IF(S85=TRUE,1,'Anexo A'!S46))) -> 1
B83: T. Separada → | D83: =IF(R82=1,D86,0) -> 0 | F83: =IF(R82=1,F86,0) -> 0 | S83: ='Modelo 3'!D43 -> 0
B84: Rendimento Bruto → | D84: =Q11 -> 0 | F84: =S11 -> 0 | S84: ='Modelo 3'!E43 -> 0
D85: Sujeito Passivo A | F85: Sujeito Passivo B | S85: ='Modelo 3'!F43 -> 0
B86: SOMA TOTAL → | D86: =D84 -> 0 | F86: =F84 -> 0
B87: Continente (RF) | D87: SOMA | E87: =SUM(D86+F86) -> 0 | F87: =IF(S82=1,E87,)+L88+L89 -> 0 | I87: T. Separado | L87: Não residentes
B88: Açores | D88: SOMA | E88: =IF(E87<0,0,E87) -> 0 | F88: =IF(S82=2,E88,) -> 0 | H88: SP A→ | I88: =IF(S82>=4,0,IF(R82=1,D83,))+L88 -> 0 | K88: SP A→ | L88: =IF(S82>=4,N88,) -> 0 | N88: =Q11 -> 0
B89: Madeira | D89: SOMA | E89: =IF(E87<0,0,E87) -> 0 | F89: =IF(S82=3,E89,) -> 0 | H89: SP B→ | I89: =IF(S82>=4,0,IF(R82=1,F83,))+L89 -> 0 | K89: SP B→ | L89: =IF(S82>=4,N89,) -> 0 | N89: =S11 -> 0
B90: =IF(E87<0,0,SUM(F87+F88+F89)) -> 0 | D90: ← Retenção na Fonte
B92: Art.º 74.º do CIRS - Rendimentos produzidos em anos anteriores Cat. F | M92: =Artigos!F51 -> 0 | S92: ='Anexo A'!R46 -> 1 | T92: =IF(Z97=TRUE,4,IF(Z98=TRUE,4,IF(Z99=TRUE,1,'Anexo A'!S46))) -> 1
B93: T. Separada → | D93: =IF(S92=1,D95,0) -> 0 | F93: =IF(S92=1,J95+L95,0) -> 0 | H93: =IF(S92=1,D96,0) -> 0 | J93: =IF(S92=1,J96+L96,0) -> 0 | M93: =Artigos!F69 -> 0
B94: Nº de Anos → | E94: =Q13+1 -> 1 | G94: =S13+1 -> 1 | N94: Rendimento Bruto | P94: Dedução Específica | R94: Rendimento Coletável | T94: Rendi. Anos Anteriores | V94: TAXA | W94: Parcela a Abater | Y94: =D95*H95 -> 0
B95: Sujeito Passivo A → | D95: =IF(N95<1,0,(T95*R95)/N95*(E94-1)/E94) -> 0 | F95: =(R95-D95+0) -> 0 | H95: =(F95*V95)-W95 -> 0 | J95: =IF(S92=1,0,IF(N95<1,0,IF(R95<1,0,(H95*D95)/F95))) -> 0 | L95: =IF(Y94<=0,0,IF(S92=0,0,Y94/M92)) -> 0 | N95: =IF('Modelo 3'!F52=4,0,Q9+Q10) -> 0 | P95: =D64 -> 0 | R95: =IF('Modelo 3'!F52=4,0,IF(N95>P95,N95-P95,0)) -> 0 | T95: =SUM(Q12) -> 0 | V95: =IF(S92=0,Artigos!B32,IF(S92=1,Artigos!B50,0)) -> 0 | W95: =IF(S92=0,Artigos!B33,IF(S92=1,Artigos!B51,0)) -> 0 | Y95: =D96*H96 -> 0
B96: Sujeito Passivo B → | D96: =IF(N96<1,0,(T96*R96)/N96*(G94-1)/G94) -> 0 | F96: =(R96-D96+0) -> 0 | H96: =(F96*V96)-W96 -> 0 | J96: =IF(S92=1,0,IF(N96<1,0,IF(R96<1,0,(H96*D96)/F96))) -> 0 | L96: =IF(Y95<=0,0,IF(S92=0,0,Y95/M93)) -> 0 | N96: =IF('Modelo 3'!F52=4,0,S9+S10) -> 0 | P96: =F64 -> 0 | R96: =IF('Modelo 3'!F52=4,0,IF(N96>P96,N96-P96,0)) -> 0 | T96: =SUM(S12) -> 0 | V96: =IF(S92=0,Artigos!B32,IF(S92=1,Artigos!B68,0)) -> 0 | W96: =IF(S92=0,Artigos!B33,IF(S92=1,Artigos!B69,0)) -> 0
B97: SOMA TOTAL → | D97: =SUM(D95:E96) -> 0 | L97: =SUM(J95:M96) -> 0 | Z97: ='Modelo 3'!D43 -> 0
B98: Continente | D98: SOMA | E98: =SUM(D97) -> 0 | G98: =IF(T92=1,E98,) -> 0 | I98: =SUM(L97) -> 0 | K98: =IF(T92=1,I98,) -> 0 | N98: T. Separado | Q98: T. Separado | Z98: ='Modelo 3'!E43 -> 0
B99: Açores | D99: SOMA | E99: =IF(E98<0,0,E98) -> 0 | G99: =IF(T92=2,E99,) -> 0 | I99: =IF(I98<0,0,I98) -> 0 | K99: =IF(T92=2,I99,) -> 0 | M99: SP A→ | N99: =SUM(D93) -> 0 | P99: SP B→ | Q99: =SUM(H93) -> 0 | S99: ← Quociente dos rendimentos de anos anteriores | Z99: ='Modelo 3'!F43 -> 0
B100: Madeira | D100: SOMA | E100: =IF(E98<0,0,E98) -> 0 | G100: =IF(T92=3,E100,) -> 0 | I100: =IF(I98<0,0,I98) -> 0 | K100: =IF(T92=3,I100,) -> 0 | M100: SP A→ | N100: =SUM(F93) -> 0 | P100: SP B→ | Q100: =SUM(J93) -> 0 | S100: ← Imposto correspondente a rendimentos de anos anteriores
B101: =IF(E98<0,0,SUM(G98:H100)) -> 0 | D101: ← Quociente dos rendimentos de anos anteriores
B102: =IF(I98<0,0,SUM(K98:L100)) -> 0 | D102: ← Imposto correspondente a rendimentos de anos anteriores
B109: FIM

Sheet Anexo G
B4: QUADRO 4
B5: ALIENAÇÃO ONEROSA DE DIREITOS REAIS SOBRE BENS IMÓVEIS
B6: VENDA DE IMÓVEIS - [Artigo 10.º, nº 1, al. a), do Código do IRS] (Imóveis) | O6: Campo | P6: Sujeito Passivo A | R6: Sujeito Passivo B
B7: A aquisição é o ato ou contrato de aquisição do imóvel | H7: Indique ali o ano de aquisição | L7: ☞ | M7: Ano | N7: ='Modelo 3'!K118 -> 0 | O7: ☞ | P7: Se vendeu algum imóvel, indique o Tipo aqui:
B8: Realização [É o valor da venda, a declarar no Anexo G do QUADRO 4] | O8: 4001 | T8: =TEXT(B48,) -> 
B9: Aquisição [É o valor da compra ou avaliação, a declarar no Anexo G QUADRO 4] | N9: Veja aqui
B10: Despesas e encargos [Os encargos com a valorização dos bens, comprovadamente realizados nos últimos 12 anos art.º 51.º do CIRS]
B11: Valor total em dívida
B12: Valor que pretende reinvestir ou que já reinvestiu [Habitação própria e permanente]
B13: Valor do empréstimo a amortizar
B14: Perdas a reportar do exercício de 2017 a deduzir ao rendimento de 2018 [Veja a Demonstração de Liquidação de IRS do exercício de 2017, enviada pela AT]
B16: QUADRO 6
B17: ALIENAÇÃO ONEROSA DA PROPRIEDADE INTELECTUAL [art.º 10.º, n.º 1, al. c), do CIRS (Propriedade Intelectual) | O17: Campo | P17: Sujeito Passivo A | R17: Sujeito Passivo B
B18: Os sujeitos passivos optam pelo englobamento dos rendimentos da categoria G, inscritos no Quadro 6 ? | M18: Indique ali a | O18: ☞ | P18: Opção | R18: =P18 -> Opção
B19: Valor de realização [Venda] | O19: 60001
B20: Valor de aquisição [Compra]
B21: Despesas e encargos
B23: QUADRO 9 e 9A
B24: INCREMENTOS PATRIMONIAIS - [Artigo 10.º, nº 1, al. b), do Código do IRS] (Valores Mobiliários) | O24: Campo | P24: Sujeito Passivo A | R24: Sujeito Passivo B
B25: Indique ali o tipo de rendimento | O25: ☞ | P25: Indique aqui o tipo:
B26: Os sujeitos passivos optam pelo englobamento dos rendimentos da categoria G, inscritos no Quadro 9 ? | M26: Indique ali a | O26: ☞ | P26: Opção | R26: =P26 -> Opção
B27: Valor de realização [Venda] | O27: 9001
B28: Valor de aquisição [Compra]
B29: Despesas e encargos [Comissões alínea b) do art.º 51.º do CIRS]
B30: Incrementos patrimoniais relativos a anos anteriores | O30: Quadro 14A
B31: Indique o N.º de anos
B32: Perdas a reportar do exercício de 2017 a deduzir ao rendimento de 2018 [Veja a Demonstração de Liquidação de IRS do exercício de 2017, enviada pela AT]
B37: INICIO
B39: Venda de imóveis Anexo G Tipo | E39: Valores Mobiliários Anexo G SP A | H39: Opção pelo englobamento da cat. G Valores mobiliários SP A | K39: Opção pelo englobamento da cat. G Valores mobiliários SP A
B40: Se vendeu algum imóvel, indique o Tipo aqui: | C40: 1 | E40: Indique aqui o tipo: | F40: 1 | H40: Opção | I40: 1 | K40: Opção | L40: 1
B41: Habitação | C41: 2 | E41: Ações | F41: 2 | H41: Sim | I41: 2 | K41: Sim | L41: 2
B42: Terreno rústico | C42: 3 | E42: Quotas | F42: 3 | H42: Não | I42: 3 | K42: Não | L42: 3
B43: Terreno para construção | C43: 4 | E43: Obrigações e outros títulos de dívida | F43: 4 | I43: =VLOOKUP(P26,H40:I42,2,FALSE) -> 1 | L43: =VLOOKUP(P18,K40:L42,2,FALSE) -> 1
B44: Outros | C44: 5 | E44: Outros valores mobiliários | F44: 5
C45: =VLOOKUP(P7,B40:C44,2,FALSE) -> 1 | E45: Quotas-Mais valias art.º 43º n.º 3 do CIRS (Quadro 9A) | F45: 6
F46: =VLOOKUP(P25,E40:F45,2,FALSE) -> 1
B47: =IF(P8+R8+L98+L99+P19+R19+P27+R27=0,"➤",IF(P8+R8+L98+L99+P19+R19+P27+R27>=1,"Vendeu",)) -> ➤
B48: =IF(P8+R8>=1,"← Só está preparado para um imóvel",) -> 0
B50: CATEGORIA G | O50: =IF('Modelo 3'!E52=4,'Modelo 3'!D41,) -> 0 | P50: =IF('Modelo 3'!E52=4,'Modelo 3'!E41,) -> 0 | Q50: ='Modelo 3'!F41 -> 0 | R50: ='Modelo 3'!G41 -> 0 | S50: ='Modelo 3'!H41 -> 0 | T50: ='Modelo 3'!I41 -> 0
B51: Art.º 9.º , 10.º do CIRS - Rendimentos da categoria G+Mais valias+valor divida+valor reinvestido | R51: ='Anexo A'!R46 -> 1 | S51: =IF(U51=TRUE,4,IF(U52=TRUE,1,IF(U53=TRUE,4,'Anexo A'!S46))) -> 1 | U51: ='Modelo 3'!D43 -> 0
B52: T. Separada → | G52: =IF(R51=1,O60,0) -> 0 | I52: =IF(R51=1,R60,0) -> 0 | U52: ='Modelo 3'!E43 -> 0
B53: Taxa → | U53: ='Modelo 3'!F43 -> 0
D54: Mais valias | G54: Sujeito Passivo A | I54: Sujeito Passivo B | K54: Reinvestimento | M54: =SUM(G58) -> 0 | O54: Sujeito Passivo A | R54: Sujeito Passivo B
D55: Valor da Realização (Venda) | G55: =IF(M54>=1,P8,0) -> 0 | I55: =IF(M54>=1,R8,0) -> 0 | K55: Valor total em dívida | O55: =G55 -> 0 | P55: =P9 -> 0 | Q55: =IF(P55>=O55,0,(O55-(P55*G58)))-G57 -> 0 | R55: =I55 -> 0 | S55: =R9 -> 0 | T55: =IF(S55>=R55,0,(R55-(S55*I58)))-I57 -> 0
D56: Valor da Aquisição (Compra) | G56: =IF(M54>=1,P9,0) -> 0 | I56: =IF(M54>=1,R9,0) -> 0 | K56: Valor do empréstimo a amortizar | O56: =IF(M54>=0.001,P13,0) -> 0 | P56: =IF(O57<=1,O55,IF(O57>=1,O55-O56,)) -> 0 | Q56: =IF(O55=0,0,IF(O57=0,O56/P56,IF(O57>=1,O57/P56,0))) -> 0 | R56: =IF(M54>=0.001,R13,0) -> 0 | S56: =IF(R57<=1,R55,IF(R57>=1,R55-R56,)) -> 0 | T56: =IF(R55=0,0,IF(R57=0,R56/S56,IF(R57>=1,R57/S56,0))) -> 0
D57: Despesas/encargos | G57: =P10 -> 0 | I57: =R10 -> 0 | K57: Proporção reinvestida | O57: =IF(M54>=0.001%,P12,0) -> 0 | R57: =IF(M54>=0.001%,R12,0) -> 0
D58: Desvalorização da moeda | G58: =N7 -> 0 | I58: =N7 -> 0 | K58: Proporção da mais-valia reinvestida | O58: =Q55 -> 0 | R58: =T55 -> 0
D59: =IF(G60<=0%,"Menos valias imobiliárias",IF(G60>0.01%,"Mais valias imobiliárias;")) -> Mais valias imobiliárias; | G59: =(G55-G56*G58-G57) -> 0 | I59: =(I55-I56*I58-I57) -> 0 | K59: Mais-valia sujeita a imposto | O59: =IF(O58<1,0,O58) -> 0 | P59: =O59*Q56 -> 0 | Q59: =O59-P59 -> 0 | R59: =IF(R58<1,0,R58) -> 0 | S59: =R59*T56 -> 0 | T59: =R59-S59 -> 0
D60: Isenção | G60: 0.5 | I60: 0.5 | M60: SOMA TOTAL → | O60: =Q59*G60 -> 0 | R60: =T59*I60 -> 0
D61: Mais valia final → | G61: =IF(G59<0,0,G59*G60) -> 0 | I61: =IF(I59<0,0,I59*I60) -> 0
B62: Continente (RB) | D62: SOMA | E62: =SUM(O60+R60) -> 0 | F62: =IF(S51=1,E62,) -> 0 | I62: T. Separado
B63: Açores | D63: SOMA | E63: =IF(E62<0,0,E62) -> 0 | F63: =IF(S51=2,E63,) -> 0 | H63: SP A→ | I63: =IF(S51>=4,0,IF(R51=1,G52,)) -> 0
B64: Madeira | D64: SOMA | E64: =IF(E62<0,0,E62) -> 0 | F64: =IF(S51=3,E64,) -> 0 | H64: SP B→ | I64: =IF(S51>=4,0,IF(R51=1,I52,)) -> 0
B65: =IF(E62<0,0,SUM(F62+F63+F64)) -> 0 | D65: ← Rendimento bruto
B67: Art.-º 10.º, n.º 1, al. c), do CIRS - Alienação Onorosa da propriedade Intelectual | R67: ='Anexo A'!R46 -> 1 | S67: =IF(S68=TRUE,4,IF(S69=TRUE,1,IF(S70=TRUE,4,'Anexo A'!S46))) -> 1 | T67: 0.5
B68: T. Separada → | G68: =IF(R67=1,G73,0) -> 0 | I68: =IF(R67=1,I73,0) -> 0 | S68: ='Modelo 3'!D43 -> 0
G69: Sujeito Passivo A | I69: Sujeito Passivo B | S69: ='Modelo 3'!E43 -> 0
D70: Valor da Realização (Venda) | G70: =IF(L43=3,0,P19) -> 0 | I70: =IF(L43=3,0,R19) -> 0 | S70: ='Modelo 3'!F43 -> 0
D71: Valor da Aquisição (Compra) | G71: =IF(L43=3,0,P20) -> 0 | I71: =IF(L43=3,0,R20) -> 0
D72: Despesas/encargos | G72: =P21 -> 0 | I72: =R21 -> 0
B73: SOMA TOTAL → | D73: Mais valia final → | G73: =(G70-G71-G72)*T67 -> 0 | I73: =(I70-I71-I72)*T67 -> 0
B74: Continente (RB) | D74: SOMA | E74: =SUM(G73+I73) -> 0 | F74: =IF(S67=1,E74,) -> 0 | I74: T. Separado
B75: Açores | D75: SOMA | E75: =IF(E74<0,0,E74) -> 0 | F75: =IF(S67=2,E75,) -> 0 | H75: SP A→ | I75: =IF(S67>=4,0,IF(R67=1,G68,)) -> 0
B76: Madeira | D76: SOMA | E76: =IF(E74<0,0,E74) -> 0 | F76: =IF(S67=3,E76,) -> 0 | H76: SP B→ | I76: =IF(S67>=4,0,IF(R67=1,I68,)) -> 0
B77: =IF(E74<0,0,SUM(F74+F75+F76)) -> 0 | D77: ← Rendimento bruto
B79: Art.º 9.º , 10.º do CIRS - Rendimentos da categoria G+Mais valias de Ações | R79: ='Anexo A'!R46 -> 1 | S79: =IF(S80=TRUE,4,IF(S81=TRUE,1,IF(S82=TRUE,4,'Anexo A'!S46))) -> 1
B80: T. Separada → | G80: =IF(R79=1,G85,0) -> 0 | I80: =IF(R79=1,I85,0) -> 0 | S80: ='Modelo 3'!D43 -> 0
G81: Sujeito Passivo A | I81: Sujeito Passivo B | S81: ='Modelo 3'!E43 -> 0
D82: Valor da Realização (Venda) | G82: =IF(I43=3,0,P27) -> 0 | H82: =F46 -> 1 | I82: =IF(I43=3,0,R27) -> 0 | J82: =H82 -> 1 | S82: ='Modelo 3'!F43 -> 0
D83: Valor da Aquisição (Compra) | G83: =IF(I43=3,0,P28) -> 0 | I83: =IF(I43=3,0,R28) -> 0
D84: Despesas/encargos | G84: =P29 -> 0 | I84: =R29 -> 0
B85: SOMA TOTAL → | D85: Mais valia final → | G85: =IF(H82=6,IF(G82-G83-G84<0,0,G82-G83-G84)/2,IF(G82-G83-G84<0,0,G82-G83-G84)) -> 0 | I85: =IF(J82=6,IF(I82-I83-I84<0,0,I82-I83-I84)/2,IF(I82-I83-I84<0,0,I82-I83-I84)) -> 0
B86: Continente (RB) | D86: SOMA | E86: =SUM(G85+I85) -> 0 | F86: =IF(S79=1,E86,) -> 0 | I86: T. Separado
B87: Açores | D87: SOMA | E87: =IF(E86<0,0,E86) -> 0 | F87: =IF(S79=2,E87,) -> 0 | H87: SP A→ | I87: =IF(S79>=4,0,IF(R79=1,G80,)) -> 0
B88: Madeira | D88: SOMA | E88: =IF(E86<0,0,E86) -> 0 | F88: =IF(S79=3,E88,) -> 0 | H88: SP B→ | I88: =IF(S79>=4,0,IF(R79=1,I80,)) -> 0
B89: =IF(E86<0,0,SUM(F86+F87+F88)) -> 0 | D89: ← Rendimento bruto
B91: Art.º 9.º , 10.º do CIRS - Rendimentos da categoria G+Mais valias de Ações (Tributação Autónoma) | R91: ='Anexo A'!R46 -> 1 | S91: =IF(S92=TRUE,4,IF(S93=TRUE,1,IF(S94=TRUE,4,'Anexo A'!S46))) -> 1
B92: T. Separada → | D92: =IF(R91=1,D96,0) -> 0 | F92: =IF(R91=1,F96,0) -> 0 | H92: =IF(R91=1,H96,0) -> 0 | I92: =IF(R91=1,J96,0) -> 0 | S92: ='Modelo 3'!D43 -> 0
B93: Rendimento Bruto → | D93: =P27-P28-P29 -> 0 | F93: =R27-R28-R29 -> 0 | H93: =(P19-P20-P21) -> 0 | I93: =R19-R20-R21 -> 0 | S93: ='Modelo 3'!E43 -> 0
B94: Taxa → | D94: ='Modelo 3'!P36 -> 0.28 | N94: ='Modelo 3'!T36 -> 0.28 | S94: ='Modelo 3'!F43 -> 0
D95: Sujeito Passivo A | F95: Sujeito Passivo B | H95: Sujeito Passivo A | J95: Sujeito Passivo B
B96: SOMA TOTAL → | D96: =IF(I43=3,D93*D94,0) -> 0 | F96: =IF(I43=3,F93*D94,0) -> 0 | H96: =IF(L43=3,H93*D94,0) -> 0 | J96: =IF(L43=3,I93*D94,0) -> 0
B97: Continente (TA) | D97: SOMA | E97: =SUM(D96:J96) -> 0 | F97: =IF(S91=1,E97,) -> 0 | I97: T. Separado | L97: Não residentes
B98: Açores | D98: SOMA | E98: =IF(E97<0,0,E97) -> 0 | F98: =IF(S91=2,E98,) -> 0 | H98: SP A→ | I98: =IF(S91>=4,0,IF(R91=1,D92+H92,)) -> 0 | K98: SP A→ | L98: =IF(S91>=4,O98,) -> 0 | N98: =IF(G73+G59+G85<1,0,G73+G59+G85) -> 0 | O98: =N98*N94 -> 0
B99: Madeira | D99: SOMA | E99: =IF(E97<0,0,E97) -> 0 | F99: =IF(S91=3,E98,) -> 0 | H99: SP B→ | I99: =IF(S91>=4,0,IF(R91=1,F92+I92,)) -> 0 | K99: SP B→ | L99: =IF(S91>=4,O99,) -> 0 | N99: =IF(I73+I59+I85<1,0,I73+I59+I85) -> 0 | O99: =N99*N94 -> 0
B100: =IF(E97<0,0,SUM(F97+F98+F99)) -> 0 | D100: ← Tributação Autónoma
B102: Reporte de prejuízos da categoria G | R102: ='Anexo A'!R46 -> 1 | S102: =IF(S103=TRUE,4,IF(S104=TRUE,1,IF(S105=TRUE,4,'Anexo A'!S46))) -> 1
B103: T. Separada → | E103: =IF(R102=1,E107+E108,0) -> 0 | G103: =IF(R102=1,G107+G108,0) -> 0 | S103: ='Modelo 3'!D43 -> 0
B104: Rendimento Bruto → | D104: Imóveis → | E104: =IF(G59>=1,P14,) -> 0 | G104: =IF(I59>=1,R14,) -> 0 | S104: ='Modelo 3'!E43 -> 0
D105: Ações → | E105: =IF(G85>=1,P32,) -> 0 | G105: =IF(I85>=1,R32,) -> 0 | S105: ='Modelo 3'!F43 -> 0
E106: Sujeito Passivo A | G106: Sujeito Passivo B
B107: SOMA TOTAL → | E107: =IF(E104>F107,F107,E104) -> 0 | F107: =G61 -> 0 | G107: =IF(G104>H107,H107,G104) -> 0 | H107: =I61 -> 0
E108: =IF(E105>F108,F108,E105) -> 0 | F108: =G85 -> 0 | G108: =IF(G105>H108,H108,G105) -> 0 | H108: =I85 -> 0
B109: Continente (RP) | D109: SOMA | E109: =SUM(E107:E108,G107:G108) -> 0 | F109: =IF(S102=1,E109,) -> 0 | I109: T. Separado
B110: Açores | D110: SOMA | E110: =IF(E109<0,0,E109) -> 0 | F110: =IF(S91=2,E110,) -> 0 | H110: SP A→ | I110: =IF(S102>=4,0,IF(R102=1,E103,)) -> 0
B111: Madeira | D111: SOMA | E111: =IF(E109<0,0,E109) -> 0 | F111: =IF(S91<0,0,E111) -> 0 | H111: SP B→ | I111: =IF(S102>=4,0,IF(R102=1,G103,)) -> 0
B112: =IF(E109<0,0,SUM(F109+F110+F111)) -> 0 | D112: ← Reporte de prejuízos Fiscais
B114: Art.º 74.º do CIRS - Rendimentos produzidos em anos anteriores Cat. G | M114: =Artigos!F51 -> 0 | S114: ='Anexo A'!R46 -> 1 | T114: =IF(Z119=TRUE,4,IF(Z120=TRUE,1,IF(Z121=TRUE,4,'Anexo A'!S46))) -> 1
B115: T. Separada → | D115: =IF(S114=1,D117,0) -> 0 | F115: =IF(S114=1,J117+L117,0) -> 0 | H115: =IF(S114=1,D118,0) -> 0 | J115: =IF(S114=1,J118+L118,0) -> 0 | M115: =Artigos!F69 -> 0
B116: Nº de Anos → | E116: =P31+1 -> 1 | G116: =R31+1 -> 1 | N116: Rendimento Bruto | P116: Dedução Específica | R116: Rendimento Coletável | T116: Rendi. Anos Anteriores | V116: TAXA | W116: Parcela a Abater | Y116: =D117*H117 -> 0
B117: Sujeito Passivo A → | D117: =IF(N117<1,0,(T117*R117)/N117*(E116-1)/E116) -> 0 | F117: =(R117-D117+0) -> 0 | H117: =(F117*V117)-W117 -> 0 | J117: =IF(S114=1,0,IF(N117<1,0,IF(R117<1,0,(H117*D117)/F117))) -> 0 | L117: =IF(Y116<=0,0,IF(S114=0,0,Y116/M114)) -> 0 | N117: =IF('Modelo 3'!F52=4,0,G59+G85) -> 0 | P117: 0 | R117: =IF('Modelo 3'!F52=4,0,IF(N117>P117,N117-P117,0)) -> 0 | T117: =SUM(P30) -> 0 | V117: =IF(S114=0,Artigos!B32,IF(S114=1,Artigos!B50,0)) -> 0 | W117: =IF(S114=0,Artigos!B33,IF(S114=1,Artigos!B51,0)) -> 0 | Y117: =D118*H118 -> 0
B118: Sujeito Passivo B → | D118: =IF(N118<1,0,(T118*R118)/N118*(G116-1)/G116) -> 0 | F118: =(R118-D118+0) -> 0 | H118: =(F118*V118)-W118 -> 0 | J118: =IF(S114=1,0,IF(N118<1,0,IF(R118<1,0,(H118*D118)/F118))) -> 0 | L118: =IF(Y117<=0,0,IF(S114=0,0,Y117/M115)) -> 0 | N118: =IF('Modelo 3'!F52=4,0,I59+I85) -> 0 | P118: 0 | R118: =IF('Modelo 3'!F52=4,0,IF(N118>P118,N118-P118,0)) -> 0 | T118: =SUM(R30) -> 0 | V118: =IF(S114=0,Artigos!B32,IF(S114=1,Artigos!B68,0)) -> 0 | W118: =IF(S114=0,Artigos!B33,IF(S114=1,Artigos!B69,0)) -> 0
B119: SOMA TOTAL → | D119: =SUM(D117:E118) -> 0 | L119: =SUM(J117:M118) -> 0 | Z119: ='Modelo 3'!D43 -> 0
B120: Continente | D120: SOMA | E120: =SUM(D119) -> 0 | G120: =IF(T114=1,E120,) -> 0 | I120: =SUM(L119) -> 0 | K120: =IF(T114=1,I120,) -> 0 | N120: T. Separado | Q120: T. Separado | Z120: ='Modelo 3'!E43 -> 0
B121: Açores | D121: SOMA | E121: =IF(E120<0,0,E120) -> 0 | G121: =IF(T114=2,E121,) -> 0 | I121: =IF(I120<0,0,I120) -> 0 | K121: =IF(T114=2,I121,) -> 0 | M121: SP A→ | N121: =SUM(D115) -> 0 | P121: SP B→ | Q121: =SUM(H115) -> 0 | S121: ← Quociente dos rendimentos de anos anteriores | Z121: ='Modelo 3'!F43 -> 0
B122: Madeira | D122: SOMA | E122: =IF(E120<0,0,E120) -> 0 | G122: =IF(T114=3,E122,) -> 0 | I122: =IF(I120<0,0,I120) -> 0 | K122: =IF(T114=3,I122,) -> 0 | M122: SP A→ | N122: =SUM(F115) -> 0 | P122: SP B→ | Q122: =SUM(J115) -> 0 | S122: ← Imposto correspondente a rendimentos de anos anteriores
B123: =IF(E120<0,0,SUM(G120:H122)) -> 0 | D123: ← Quociente dos rendimentos de anos anteriores
B124: =IF(I120<0,0,SUM(K120:L122)) -> 0 | D124: ← Imposto correspondente a rendimentos de anos anteriores
B132: FIM

Sheet Anexo H
B4: QUADRO 6A
B5: PENSÕES DE ALIMENTOS
B6: DEDUÇÕES À COLETA [Artigo 83.º-A do Código doIRS] | N6: Campo | O6: Sujeito Passivo A | Q6: Sujeito Passivo B
B7: Os sujeitos passivos, estão obrigados a pagar pensões de alimentos a filhos por sentença ou acordo judicial ? | N7: ☞ | O7: Indique aqui | Q7: Indique aqui
B8: Pensões de alimentos - (art.º. 83.º-A do Código do IRS) | H8: [Indique ali o valor da pensão paga] | N8: ☞
B9: =TEXT(B78,) -> 
B10: =TEXT(B79,) -> 
B12: QUADRO 6B
B13: PLANOS DE POUPANÇA REFORMA (PPR) E REGIME PÚBLICO DE CAPITALIZAÇÃO
B14: DEDUÇÕES À COLETA | N14: Código | O14: Sujeito Passivo A | Q14: Sujeito Passivo B
B15: Os sujeitos passivos, têm Planos Poupança Reforma PPR'S ? | I15: Indique ali a idade dos sujeitos passivos | N15: ☞ | O15: Indique a idade | Q15: Indique a idade
B16: Planos individuais de poupança-reforma - (n.º 2 do artigo 21.º do EBF) Fundos de pensões, para regimes complementares de seg. social - (art.º 16.º do EBF) | N16: 601 602 | S16: =TEXT(B77,) -> 
B17: Os sujeito sassivos têm Regime Público de Capitalização ? | I17: Indique ali a idade dos sujeitos passivos | N17: ☞ | O17: Indique a idade | Q17: Indique a idade
B18: Valores aplicados em contas individuais geridas em regime público de capitalização - (art.º 17.º do EBF) | N18: 603
Y19: Dependetes em gurada conjuta
B20: BENEFÍCIOS FISCAIS E DESPESAS RELATIVAS A PESSOAS COM DEFICIÊNCIA | X20: 0.5 | Y20: Caso o acordo de regulação das responsabilidades parentais estabeleça uma partilha de despesas que não seja igualitária, indique ali a percentagem que foi fixada pelo Tribunal.
B21: DEDUÇÕES À COLETA | Q21: Código | R21: Sujeito Passivo A | T21: Sujeito Passivo B | V21: Dependentes e Afilhados civis | X21: Dependentes em Guarda Conjunta
B22: Contribuições, pagas por sujeitos passivos com deficiência, para reforma por velhice - (n.º 3 do art.º 87.º do Código do IRS) | Q22: 604
B23: Prémios de seguros de vida, que figurem como primeiros beneficiários suj. Pas. ou dependentes deficientes ≥ a 60% - (n.º 2 do artigo 87.º do Código do IRS) | Q23: 605
B24: Despesas com a educação e reabilitação do sujeito passivo ou dependentes deficientes (n.º 2 do artigo 87.º do Código do IRS | Q24: 606
B25: Encargos suportados com a reabilitação de imóveis arrendados ou localizados em áreas de reabilitação - (n.º 4 do art.º 71.º do EBF) | Q25: 607
B26: Donativos a igrejas e a instituições religiosas - (n.º 2 do art.º 63.º do EBF) [Majoração 130%] | Q26: 608
B27: Donativos concedidos no âmbito do mecenato ambiental, desportivo e educacional - (n.º 6 do art.º 62.º do EBF) [Majoração 120%] | Q27: 611
B28: Donativos concedidos no âmbito do mecenato ambiental, desportivo e educacional - (n.os 6 e 7 do artigo 62.º do EBF) [Majoração 120%] | Q28: 612
B29: Mecenato Social - Donativos atribuídos no âmbito do mecenato social - (n.º 3 do art.º 62.º do EBF) [Majoração 130%] | Q29: 613
B30: Donativos no âmbito do mecenato social, para apoio à infância - (n.º 4 e alínea c) do n.º 7 do art.º 62.º do EBF) [Majoração 140%] | Q30: 614
B31: Mecenato Familiar – Donativos concedidos no âmbito de mecenato familiar - (n.º 5 do art.º 62.º do EBF) [Majoração 150%] | Q31: 615
B32: Donativos ao Estado, de natureza cultural ambiental - (n.os 1 e 2 do artigo 62.º do EBF) [Majoração 120%] | Q32: 620
B33: Donativos ao Estado, de natureza cultural, ambiental, - (n.ºs 1 e 2 do artigo 62.º do EBF) [Majoração 130%] | Q33: 621
B34: Donativos ao Estado, de natureza social - (n.ºs 1 e 2 e alínea c) do n.º 7 do art.º 62.º do EBF) [Majoração 140%] | Q34: 622
B35: Donativos ao Estado, de natureza familiar - (n.º 5 do artigo 62.º B do EBF) [Majoração 150%] | Q35: 623
B37: QUADRO 6C | Y37: Dependetes em gurada conjuta
B38: DESPESAS GERAIS FAMILIARES, SAÚDE, FORMAÇÃO E EDUCAÇÃO, ENCARGOS COM IMÓVEIS, LARES, IVA, ADICIONAL AO IMI | X38: 0.5 | Y38: Caso o acordo de regulação das responsabilidades parentais estabeleça uma partilha de despesas que não seja igualitária, indique ali a percentagem que foi fixada pelo Tribunal.
B39: DEDUÇÕES À COLETA | Q39: Código | R39: Sujeito Passivo A | T39: Sujeito Passivo B | V39: Dependentes e Afilhados civis | X39: Dependentes em Guarda Conjunta
B40: Despesas gerais familiares - alínea a) do n.º 1, do art.º 78.º - B , do Código do IRS)
B41: Despesas de saúde - alínea a) do n.º 1 do artigo 78.º-C do Código do IRS) Prémios de seguros de saúde - alínea b) do n.º 1 do artigo 78.º-C do Código do IRS) | Q41: 651 652
B42: Despesas de formação e educação - refeições escolares - (artigo 78.º-D do Código do IRS) Despesas de educação isentas de IVA sujeitas à taxa reduzida - (artigo 78.º-D do Código do IRS) | Q42: 658 653
B43: Despesas com rendas de estudantes deslocados até aos 25 anos - (artigo 78.º-D do Código do IRS) [Desde qua a distância seja superior a 50 quilómetros da residência permanente do agregado familiar] | Q43: 659
B44: Rendas de habitação celebradas a coberto do RAU ou NRAU - alínea a ) do n.º 1 do artigo 78.º-E do Código do IRS) | Q44: 654
B45: Juros de dívidas, contraídos com a aquisição de habitação - alíneas b ) e c ) do n.º 1 do artigo 78.º-E do Código do IRS) [Só para contratos celebrados até 31-12-2011] | Q45: 655
B46: Encargos com lares, isentos de IVA ou sujeitos à taxa reduzida - n. os 1 e 2 do artigo 84.º do Código do IRS) | Q46: 657
B47: Dedução á coleta do IVA pela exigência de fatura (art.º 78.º - F , n.º 1, do Código do IRS)
B48: Dedução à coleta do IVA pela aquisição de passes de transportes públicos (art.º 78.º - F , n.º 3, do Código do IRS) [Nesta linha insira só o IVA dos passes]
B49: Dedução à coleta do Adicional ao Imposto Municipal Sobre Imóveis (AIMI) [alínea I) do n.º 1 do art.º 78.º do Código do IRS]
B52: QUADRO 8 | Q52: Código | R52: Sujeito Passivo A | T52: Sujeito Passivo B | V52: Sujeito Passivo A | X52: Sujeito Passivo B
B53: ACRÉSCIMOS POR INCUMPRIMENTO DE REQUISITOS | Q53: ☞ | R53: À coleta | T53: À coleta | V53: Ao rendimento | X53: Ao rendimento
B54: Por atribuição de rendimentos ou reembolso de certificados ou planos individuais de poupança-reforma (PPR), poupança-educação (PPE) ou poupança-reforma / educação (PPR/E) (art.º 16.º, n.º 3, e art. 21.º, n.º 4, do EBF | Q54: 803
B61: INICIO
B63: Pensões de alimentos SP A | E63: Pensões de alimentos SP B
B64: Indique aqui | C64: 1 | E64: Indique aqui | F64: 1
B65: Não | C65: 2 | E65: Não | F65: 2
B66: Sim | C66: 3 | E66: Sim | F66: 3
C67: =VLOOKUP(O7,B64:C66,2,FALSE) -> 1 | F67: =VLOOKUP(Q7,E64:F66,2,FALSE) -> 1
B69: Planos Poupança Reforma PPR'S SP A | E69: Planos Poupança Reforma PPR'S SP B | H69: Regime Público de Capitalização SP A | K69: Regime Público de Capitalização SP A
B70: Indique a idade | C70: 0 | E70: Indique a idade | F70: 0 | H70: Indique a idade | I70: 0 | K70: Indique a idade | L70: 0
B71: Inferior a 35 anos | C71: 1 | E71: Inferior a 35 anos | F71: 1 | H71: Inferior a 35 anos | I71: 1 | K71: Inferior a 35 anos | L71: 1
B72: Entre 35 e 50 anos | C72: 2 | E72: Entre 35 e 50 anos | F72: 2 | H72: Superior a 35 anos | I72: 2 | K72: Superior a 35 anos | L72: 2
B73: Superior a 50 anos | C73: 3 | E73: Superior a 50 anos | F73: 3 | I73: =VLOOKUP(O17,H70:I72,2,FALSE) -> 0 | L73: =VLOOKUP(Q17,K70:L72,2,FALSE) -> 0
C74: =VLOOKUP(O15,B70:C73,2,FALSE) -> 0 | F74: =VLOOKUP(Q15,E70:F73,2,FALSE) -> 0
B76: =IF(Simulação!I24=0,"➤",IF(Simulação!I24>=1,"Tem",)) -> ➤
B77: =IF(O16+Q16>=1,"Não são dedutíveis os valores aplicados pelos sujeitos passivos após a data da passagem à reforma.",) -> 0
B78: =IF(O8+Q8>=1,"NOTA: Se optar pela dedução à coleta de 20% do valor pago em pensões de alimentos, sem limite de valor, o pai/mãe que paga esta pensão, já não poderá beneficiar das restantes deduções relacionadas com o filho em guarda conjunta.",) -> 0
B79: =IF(O8+Q8>=1,"Uma invalida a outra.",) -> 0
B82: DEDUÇÕES À COLETA
B83: Art.º 78.º do CIRS - Despesa adicional ao imposto municipal sobre imóveis, nos termos do artigo 135.º-I do Código do Imposto Municipal sobre Imóveis. | R83: ='Modelo 3'!D38 -> 1 | S83: =IF(S84=TRUE,4,IF(S85=TRUE,1,IF(S86=TRUE,1,'Anexo A'!S46))) -> 1
B84: SP A + B Tributa. Conjunta | D84: =IF(R49+T49<=H84+I84,R49+T49,IF(R49+T49>H84+I84,H84+I84,)) -> 0 | E84: =IF(E85>=1,0,IF(Simulação!G66>1,Simulação!G74,)) -> 0 | F84: ='Anexo B'!P11+'Anexo B'!R11+'Anexo B'!P13+'Anexo B'!P14+'Anexo B'!P16+'Anexo B'!P18+'Anexo B'!R18+'Anexo B'!P20+'Anexo B'!R20+'Anexo B'!P21+'Anexo B'!R21+'Anexo B'!P23+'Anexo B'!P24+'Anexo B'!R24+'Anexo B'!P25+'Anexo B'!R25+'Anexo B'!P26+'Anexo B'!R26+'Anexo B'!P27+'Anexo B'!R27+'Anexo B'!P43+'Anexo B'!R43+'Anexo B'!P45+'Anexo B'!R45+'Anexo B'!P46+'Anexo B'!R46+'Anexo B'!P47+'Anexo B'!R47+'Anexo B'!P48+'Anexo B'!R48+'Anexo F'!Q9+'Anexo F'!S9+'Anexo F'!Q10+'Anexo F'!S10-'Anexo F'!B70 -> 0 | G84: =Simulação!G80 -> 0 | H84: =IF(E84=0,0,(F84*G84)/E84) -> 0 | I84: =IF(E84=0,0,'Anexo F'!B60) -> 0 | S84: ='Modelo 3'!D43 -> 0
B85: SP A Tributação Separada | D85: =IF(R49+T49<=H85+I85,R49+T49,IF(R49+T49>H85+I85,H85+I85,)) -> 0 | E85: =IF(Simulação!H66>1,Simulação!H74,) -> 0 | F85: ='Anexo B'!P11+'Anexo B'!P13+'Anexo B'!P14+'Anexo B'!P16+'Anexo B'!P18+'Anexo B'!P20+'Anexo B'!P21+'Anexo B'!P22+'Anexo B'!P23+'Anexo B'!P24+'Anexo B'!P25+'Anexo B'!P26+'Anexo B'!P27+'Anexo B'!P43+'Anexo B'!P45+'Anexo B'!P46+'Anexo B'!P47+'Anexo B'!P48+'Anexo F'!Q9+'Anexo F'!Q10-'Anexo F'!I68 -> 0 | G85: =Simulação!H80 -> 0 | H85: =IF(E85=0,0,(F85*G85)/E85) -> 0 | I85: =IF(E85=0,0,'Anexo F'!L58) -> 0 | S85: ='Modelo 3'!E43 -> 0
B86: SP B Tributação Separada | D86: =IF(R49+T49<=H86+I86,R49+T49,IF(R49+T49>H86+I86,H86+I86,)) -> 0 | E86: =IF(Simulação!I66>1,Simulação!I74,) -> 0 | F86: ='Anexo B'!R11+'Anexo B'!R13+'Anexo B'!R14+'Anexo B'!R16+'Anexo B'!R18+'Anexo B'!R20+'Anexo B'!R21+'Anexo B'!R22+'Anexo B'!R23+'Anexo B'!R24+'Anexo B'!R25+'Anexo B'!R26+'Anexo B'!R27+'Anexo B'!R43+'Anexo B'!R45+'Anexo B'!R46+'Anexo B'!R47+'Anexo B'!R48+'Anexo F'!S9+'Anexo F'!S10-'Anexo F'!I69 -> 0 | G86: =Simulação!I80 -> 0 | H86: =IF(E86=0,0,(F86*G86)/E86) -> 0 | I86: =IF(E86=0,0,'Anexo F'!L59) -> 0 | S86: ='Modelo 3'!F43 -> 0
B87: Continente | D87: SOMA | E87: =SUM(D84:D86) -> 0 | F87: =IF(S83=1,E87,) -> 0 | I87: T. Separado
B88: Açores | D88: SOMA | E88: =IF(E87<0,0,E87) -> 0 | F88: =IF(S83=2,E88,) -> 0 | H88: SP A→ | I88: =SUM(K88) -> 0 | K88: =IF(R83=0,0,IF(S83>=4,0,SUM(D85,))) -> 0
B89: Madeira | D89: SOMA | E89: =IF(E87<0,0,E87) -> 0 | F89: =IF(S83=3,E89,) -> 0 | H89: SP B→ | I89: =SUM(K89) -> 0 | K89: =IF(R83=0,0,IF(S83>=4,0,SUM(D86,))) -> 0
B90: =IF(E87<0,0,SUM(F87+F88+F89)) -> 0 | D90: ← Dedução à coleta (Azul)
B92: Art.º 78.º - A do CIRS - Deduções Pessoalizantes | R92: ='Modelo 3'!D38 -> 1 | S92: =IF(V92=TRUE,4,IF(V93=TRUE,1,IF(V94=TRUE,1,'Anexo A'!S46))) -> 1 | V92: ='Modelo 3'!D43 -> 0
B93: Limites → | D93: 600 | E93: 126 | L93: 300 | M93: 63 | T93: 525 | U93: 110 | V93: ='Modelo 3'!E43 -> 0
D94: Dependentes + 3 anos | F94: Dependente ≤ 3 anos | H94: Afilhados Civis + 3 anos | J94: Afilhados Civis ≤ 3 anos | L94: Depend. G. Conjunta +3 anos | N94: Depend. G. Conjunta ≤3 Anos | P94: A. Civis G. Conjunta+ 3 anos | R94: A. Civis G. Conjunta ≤ 3 anos | T94: Ascendentes | V94: ='Modelo 3'!F43 -> 0
B95: SOMA TOTAL → | D95: =D93*E95 -> 0 | E95: ='Modelo 3'!G16 -> 0 | F95: =(D93*G95)+E93*G95 -> 0 | G95: ='Modelo 3'!H16 -> 0 | H95: =D93*I95 -> 0 | I95: ='Modelo 3'!I16 -> 0 | J95: =(D93*K95)+E93*K95 -> 0 | K95: ='Modelo 3'!J16 -> 0 | L95: =IF(O8+Q8>=1,0,(L93*M95)) -> 0 | M95: ='Modelo 3'!G17 -> 0 | N95: =IF(O95=0,0,IF(O8+Q8>=1,0,((L93*O95)+M93))) -> 0 | O95: ='Modelo 3'!H17 -> 0 | P95: =IF(O8+Q8>=1,0,(L93*Q95)) -> 0 | Q95: ='Modelo 3'!I17 -> 0 | R95: =IF(S95=0,0,IF(O8+Q8>=1,0,((L93*S95)+M93))) -> 0 | S95: ='Modelo 3'!J17 -> 0 | T95: =IF(U95=1,T93+U93,IF(U95=2,T93,0)) -> 0 | U95: ='Modelo 3'!K16 -> 0
B96: Continente | D96: SOMA | E96: =SUM(D95+F95+H95+J95+L95+N95+P95+R95+T95) -> 0 | F96: =IF(S92=1,E96,) -> 0 | I96: T. Separado
B97: Açores | D97: SOMA | E97: =IF(E96<0,0,E96) -> 0 | F97: =IF(S92=2,E97,) -> 0 | H97: SP A→ | I97: =IF(S92>=4,0,SUM(K97)) -> 0 | K97: =IF(R92=0,0,E96/2) -> 0
B98: Madeira | D98: SOMA | E98: =IF(E97<0,0,E97) -> 0 | F98: =IF(S92=3,E98,) -> 0 | H98: SP B→ | I98: =IF(S92>=4,0,SUM(K98)) -> 0 | K98: =IF(R92=0,0,E96/2) -> 0
B99: =IF(E96<0,0,SUM(F96+F97+F98)) -> 0 | D99: ← Dedução à coleta (Azul)
B101: Art.º 78.º - B do CIRS - Dedução das despesas gerais familiares | R101: ='Modelo 3'!D38 -> 1 | S101: =IF(S102=TRUE,4,IF(S103=TRUE,1,IF(S104=TRUE,1,'Anexo A'!S46))) -> 1
B102: T. Separada → | D102: =D107 -> 0 | F102: =F107 -> 0 | H102: =H107 -> 0 | J102: =J107 -> 0 | L102: =L107 -> 0 | P102: F. Monoparental → | R102: ='Modelo 3'!G38 -> 0 | S102: ='Modelo 3'!D43 -> 0
B103: Taxas → | D103: =IF(R102=1,0,35%) -> 0.35 | H103: =IF(R102>=1,0,17.5%) -> 0.175 | J103: =IF(R102>=1,45%,) -> 0 | S103: ='Modelo 3'!E43 -> 0
B104: Limites → | D104: 500 | H104: =D104/2 -> 250 | J104: 335 | S104: ='Modelo 3'!F43 -> 0
B105: Despesas → | D105: =R40 -> 0 | F105: =T40 -> 0 | H105: =V40 -> 0 | J105: =SUM(R40+T40+V40+X40,0) -> 0 | L105: =X40 -> 0 | N105: =SUM(D102+F102) -> 0
D106: Sujeito Passivo A | F106: Sujeito Passivo B | H106: Dependentes | J106: F. Monoparental | L106: Guarda Conjunta | N106: =IF(N105<D104,D102+F102,D104) -> 0 | O106: =D104/2 -> 250
B107: SOMA TOTAL → | D107: =IF(D105*D103<D104,D105*D103,D104)+H107+L107 -> 0 | F107: =IF(F105*D103<D104,F105*D103,D104)+H107+L107 -> 0 | H107: =IF(H105*H103<H104,H105*H103,H104) -> 0 | J107: =IF(J105*J103<J104,J105*J103,J104) -> 0 | L107: =IF(L105*D103<D104,L105*D103,D104)*X38 -> 0
B108: Continente | D108: SOMA | E108: =N106+J102 -> 0 | F108: =IF(S101=1,E108,) -> 0 | I108: T. Separado
B109: Açores | D109: SOMA | E109: =IF(E108<0,0,E108) -> 0 | F109: =IF(S101=2,E109,) -> 0 | H109: SP A→ | I109: =IF(S101>=4,0,SUM(K109)) -> 0 | K109: =IF(R101=0,0,SUM(L109)) -> 0 | L109: =IF(D102>=O106,O106,D102) -> 0
B110: Madeira | D110: SOMA | E110: =IF(E108<0,0,E108) -> 0 | F110: =IF(S101=3,E110,) -> 0 | H110: SP B→ | I110: =IF(S101>=4,0,SUM(K110)) -> 0 | K110: =IF(R101=0,0,SUM(L110)) -> 0 | L110: =IF(F102>=O106,O106,F102) -> 0
B111: =IF(E108<0,0,SUM(F108+F109+F110)) -> 0 | D111: ← Dedução à coleta (Azul)
B113: Art.º 78.º - C do CIRS - Despesas de saúde + seguros vida | R113: ='Modelo 3'!D38 -> 1 | S113: =IF(S114=TRUE,4,IF(S115=TRUE,1,IF(S116=TRUE,1,'Anexo A'!S46))) -> 1
B114: T. Separada → | D114: =D119 -> 0 | F114: =F119 -> 0 | H114: =H119 -> 0 | J114: =J119 -> 0 | S114: ='Modelo 3'!D43 -> 0
B115: Taxas → | D115: 0.15 | H115: 0.075 | S115: ='Modelo 3'!E43 -> 0
B116: Limites → | D116: 1000 | H116: =D116/2 -> 500 | S116: ='Modelo 3'!F43 -> 0
B117: Despesas → | D117: =R41 -> 0 | F117: =T41 -> 0 | H117: =V41 -> 0 | J117: =IF(O8+Q8>=1,0,X41) -> 0 | L117: =SUM(D114+F114) -> 0
D118: Sujeito Passivo A | F118: Sujeito Passivo B | H118: Dependentes | J118: Guarda Conjunta | L118: =IF(L117<D116,D114+F114,D116) -> 0 | M118: =D116/2 -> 500
B119: SOMA TOTAL → | D119: =IF(D117*D115<D116,D117*D115,D116)+H119+J119 -> 0 | F119: =IF(F117*D115<D116,F117*D115,D116)+H119+J119 -> 0 | H119: =IF(H117*H115<H116,H117*H115,H116) -> 0 | J119: =IF(J117*D115<D116,J117*D115,D116)*X38 -> 0
B120: Continente | D120: SOMA | E120: =SUM(L118) -> 0 | F120: =IF(S113=1,E120,) -> 0 | I120: T. Separado
B121: Açores | D121: SOMA | E121: =IF(E120<0,0,E120) -> 0 | F121: =IF(S113=2,E121,) -> 0 | H121: SP A→ | I121: =IF(S113>=4,0,SUM(K121,)) -> 0 | K121: =IF(R113=0,0,SUM(L121)) -> 0 | L121: =IF(D114>=M118,M118,D114) -> 0
B122: Madeira | D122: SOMA | E122: =IF(E120<0,0,E120) -> 0 | F122: =IF(S113=3,E122,) -> 0 | H122: SP B→ | I122: =IF(S113>=4,0,SUM(K122,)) -> 0 | K122: =IF(R113=0,0,SUM(L122)) -> 0 | L122: =IF(F114>=M118,M118,F114) -> 0
B123: =IF(E120<0,0,SUM(F120+F121+F122)) -> 0 | D123: ← Dedução à Coleta (Vermelho)
B125: Art.º 78.º - D do CIRS - Despesas de formação e educação | R125: ='Modelo 3'!D38 -> 1 | S125: =IF(S126=TRUE,4,IF(S127=TRUE,1,IF(S128=TRUE,1,'Anexo A'!S46))) -> 1
B126: T. Separada → | D126: =D133 -> 0 | F126: =F133 -> 0 | H126: =H133+H134 -> 0 | J126: =J133+J134 -> 0 | S126: ='Modelo 3'!D43 -> 0
D127: =D134 -> 0 | F127: =F134 -> 0 | H127: =H134/2 -> 0 | J127: =J134*X38 -> 0 | S127: ='Modelo 3'!E43 -> 0
B128: Taxas → | D128: 0.3 | H128: 0.15 | S128: ='Modelo 3'!F43 -> 0
B129: Limites → | D129: 800 | E129: =IF(L131>=D129,200,IF(L131<D129,300,)) -> 300 | H129: =IF(R125=0,D129,IF(R125=1,D129/2)) -> 400
B130: Despesas Educação → | D130: =R42 -> 0 | F130: =T42 -> 0 | H130: =V42 -> 0 | J130: =IF(O8+Q8>=1,0,X42) -> 0
B131: Rendas Estud. Deslo. → | D131: =R43 -> 0 | F131: =T43 -> 0 | H131: =V43 -> 0 | J131: =X43 -> 0 | L131: =SUM(D126+F126) -> 0 | M131: =SUM(D127+F127) -> 0
D132: Sujeito Passivo A | F132: Sujeito Passivo B | H132: Dependentes | J132: Guarda Conjunta | L132: =IF(L131<D129,D126+F126,D129) -> 0 | M132: =IF(M131<E129,D127+F127,E129) -> 0 | N132: =D129/2 -> 400 | O132: =E129/2 -> 150
B133: SOMA TOTAL → | D133: =IF(D130*D128<D129,D130*D128,D129)+H133+J133 -> 0 | F133: =IF(F130*D128<D129,F130*D128,D129)+H133+J133 -> 0 | H133: =IF(H130*H128<H129,H130*H128,H129) -> 0 | J133: =IF(J130*D128<D129,J130*D128,D129)*X38 -> 0
D134: =IF(D131*D128<E129,D131*D128,E129)+H134+J134 -> 0 | F134: =IF(F131*D128<E129,F131*D128,E129)+H134+J134 -> 0 | H134: =IF(H131*D128<E129,H131*D128,E129)/2 -> 0 | J134: =IF(J131*D128<E129,J131*D128,E129)/2 -> 0
B135: Continente | D135: SOMA | E135: =SUM(L132)+M132 -> 0 | F135: =IF(S125=1,E135,) -> 0 | I135: T. Separado
B136: Açores | D136: SOMA | E136: =IF(E135<0,0,E135) -> 0 | F136: =IF(S125=2,E136,) -> 0 | H136: SP A→ | I136: =IF(S125>=4,0,SUM(K136)) -> 0 | K136: =IF(R125=0,0,SUM(L136+M136)) -> 0 | L136: =IF(D126>=N132,N132,D126) -> 0 | M136: =IF(D127>=O132,O132,D127) -> 0
B137: Madeira | D137: SOMA | E137: =IF(E135<0,0,E135) -> 0 | F137: =IF(S125=3,E137,) -> 0 | H137: SP B→ | I137: =IF(S125>=4,0,SUM(K137)) -> 0 | K137: =IF(R125=0,0,SUM(L137+M137)) -> 0 | L137: =IF(F126>=N132,N132,F126) -> 0 | M137: =IF(F127>=O132,O132,F127) -> 0
B138: =IF(E135<0,0,SUM(F135+F136+F137)) -> 0 | D138: ← Dedução à Coleta (Vermelho)
B140: Art.º 78.º - E do CIRS - Rendas de imóveis para habitação permanente | Q140: =Q153 -> 2 | R140: ='Modelo 3'!D38 -> 1 | S140: =IF(S141=TRUE,4,IF(S142=TRUE,1,IF(S143=TRUE,1,'Anexo A'!S46))) -> 1
B141: T. Separada → | D141: =D147 -> 0 | F141: =F147 -> 0 | H141: =H147 -> 0 | S141: ='Modelo 3'!D43 -> 0
B142: Taxas → | D142: 0.15 | H142: 0.075 | S142: ='Modelo 3'!E43 -> 0
B143: Limites → | D143: 502 | E143: 800 | F143: 30000 | G143: 7091 | H143: =F143-G143 -> 22909 | I143: =IF(Q140=1,IF(D144<=G143,E143,IF(D144>=F143,D143,D143+(E143-D143)*(F143-D144)/H143)),IF(Q140=2,IF(D144>F143,D143/2,IF(D144<=G143,E143/2,(D143+(E143-D143)*(F143-D144)/(F143-G143))/2)))) -> 400 | J143: =IF(D141<I143,D141,I143) -> 0 | K143: ← SP A | S143: ='Modelo 3'!F43 -> 0
B144: Rto.Coletável → | D144: =Simulação!H74 -> 0 | F144: =Simulação!I74 -> 0 | I144: =IF(Q140=1,IF(F144<=G143,E143,IF(F144>=F143,D143,D143+(E143-D143)*(F143-F144)/H143)),IF(Q140=2,IF(F144>F143,D143/2,IF(F144<=G143,E143/2,(D143+(E143-D143)*(F143-F144)/(F143-G143))/2)))) -> 400 | J144: =IF(F141<I144,F141,I144) -> 0 | K144: ← SP B
B145: Despesas → | D145: =R44+H145 -> 0 | F145: =T44+H145 -> 0 | H145: =V44/2 -> 0
D146: Sujeito Passivo A | F146: Sujeito Passivo B | H146: Dependentes | J146: =IF(Q140>=1,IF(L146<=7091,MIN(0.15*(D145+F145),800),IF(L146<=30000,MIN(0.15*(D145+F145),502+(800-502)*(30000-L146)/(30000-7091)),MIN(0.15*(D145+F145),502))),IF((L146)/1<=7091,MIN(0.15*(D145+D145),800),IF((L146)/1<=30000,MIN(0.15*(D145+F145),502+(800-502)*(30000-(L146)/1)/(30000-7091)),MIN(0.15*(D145+F145),502)))) -> 0 | K146: =IF(Q140>=1,IF(L146>F143,D143,IF(L146<=G143,E143,(D143+(E143-D143)*(F143-L146)/(F143-G143))))) -> 800 | L146: =Simulação!G74 -> 0
B147: SOMA TOTAL → | D147: =IF(D145*D142<D143,D145*D142,D143) -> 0 | F147: =IF(F145*D142<D143,F145*D142,D143) -> 0 | H147: =H145*H142 -> 0 | J147: Ver aqui↑ | K147: Quando houver alterações
B148: Continente | D148: SOMA | E148: =SUM(J146) -> 0 | F148: =IF(S140=1,E148,) -> 0 | I148: T. Separado
B149: Açores | D149: SOMA | E149: =IF(E148<0,0,E148) -> 0 | F149: =IF(S140=2,E149,) -> 0 | H149: SP A→ | I149: =IF(S140>=4,0,SUM(K149)) -> 0 | K149: =IF(R140=0,0,SUM(L149)) -> 0 | L149: =IF(B164>=1,0,IF(J146>=1,J143,)) -> 0
B150: Madeira | D150: SOMA | E150: =IF(E148<0,0,E148) -> 0 | F150: =IF(S140=3,E150,) -> 0 | H150: SP B→ | I150: =IF(S140>=4,0,SUM(K150)) -> 0 | K150: =IF(R140=0,0,SUM(L150)) -> 0 | L150: =IF(B164>=1,0,IF(J146>=1,J144,)) -> 0
B151: =IF(B164>1,0,IF(E148<0,0,SUM(F148+F149+F150))) -> 0 | D151: ← Dedução à Coleta (Vermelho)
B153: Art.º 78.º - E do CIRS - Juros de dívidas, contraídas com a aquisição de habitação | Q153: ='Modelo 3'!C59 -> 2 | R153: ='Modelo 3'!D38 -> 1 | S153: =IF(S154=TRUE,4,IF(S155=TRUE,1,IF(S156=TRUE,1,'Anexo A'!S46))) -> 1
B154: T. Separada → | D154: =D160 -> 0 | F154: =F160 -> 0 | H154: =H160 -> 0 | S154: ='Modelo 3'!D43 -> 0
B155: Taxas → | D155: 0.15 | H155: 0.075 | S155: ='Modelo 3'!E43 -> 0
B156: Limites → | D156: 296 | E156: 450 | F156: 30000 | G156: 7091 | H156: =F156-G156 -> 22909 | I156: =IF(Q153=1,IF(D157<=G156,E156,IF(D157>=F156,D156,D156+(E156-D156)*(F156-D157)/H156)),IF(Q153=2,IF(D157>F156,D156/2,IF(D157<=G156,E156/2,(D156+(E156-D156)*(F156-D157)/(F156-G156))/2)))) -> 225 | J156: =IF(D154<I156,D154,I156) -> 0 | K156: ← SP A | S156: ='Modelo 3'!F43 -> 0
B157: Rto.Coletável → | D157: =Simulação!H74 -> 0 | F157: =Simulação!I74 -> 0 | I157: =IF(Q153=1,IF(F157<=G156,E156,IF(F157>=F156,D156,D156+(E156-D156)*(F156-F157)/H156)),IF(Q153=2,IF(F157>F156,D156/2,IF(F157<=G156,E156/2,(D156+(E156-D156)*(F156-F157)/(F156-G156))/2)))) -> 225 | J157: =IF(F154<I157,F154,I157) -> 0 | K157: ← SP B
B158: Despesas → | D158: =R45+H158 -> 0 | F158: =T45+H158 -> 0 | H158: =V45/2 -> 0
D159: Sujeito Passivo A | F159: Sujeito Passivo B | H159: Dependentes | J159: =IF(Q153>=1,IF(L159<=7091,MIN(0.15*(D158+F158),450),IF(L159<=30000,MIN(0.15*(D158+F158),296+(450-296)*(30000-L159)/(30000-7091)),MIN(0.15*(D158+F158),296))),IF((L159)/1<=7091,MIN(0.15*(D158+F158),450),IF((L159)/1<=30000,MIN(0.15*(D158+F158),296+(450-296)*(30000-(L159)/1)/(30000-7091)),MIN(0.15*(D158+F158),296)))) -> 0 | K159: =IF(Q153>=1,IF(L159>F156,D156,IF(L159<=G156,E156,(D156+(E156-D156)*(F156-L159)/(F156-G156))))) -> 450 | L159: =Simulação!G74 -> 0
B160: SOMA TOTAL → | D160: =IF(D158*D155<D156,D158*D155,D156) -> 0 | F160: =IF(F158*D155<D156,F158*D155,D156) -> 0 | H160: =H158*H155 -> 0 | J160: Ver aqui↑ | K160: Quando houver alterações
B161: Continente | D161: SOMA | E161: =SUM(J159) -> 0 | F161: =IF(S153=1,E161,) -> 0 | I161: T. Separado
B162: Açores | D162: SOMA | E162: =IF(E161<0,0,E161) -> 0 | F162: =IF(S153=2,E162,) -> 0 | H162: SP A→ | I162: =IF(S153>=4,0,SUM(K162)) -> 0 | K162: =IF(R153=0,0,SUM(L162)) -> 0 | L162: =IF(J159>=1,J156,) -> 0
B163: Madeira | D163: SOMA | E163: =IF(E161<0,0,E161) -> 0 | F163: =IF(S153=3,E163,) -> 0 | H163: SP B→ | I163: =IF(S153>=4,0,SUM(K163)) -> 0 | K163: =IF(R153=0,0,SUM(L163)) -> 0 | L163: =IF(J159>=1,J157,) -> 0
B164: =IF(E161<0,0,SUM(F161+F162+F163)) -> 0 | D164: ← Dedução à Coleta (Vermelho)
B166: Art.º 78.º - F do CIRS - Dedução pela exigência de fatura IVA | R166: ='Modelo 3'!D38 -> 1 | S166: =IF(S167=TRUE,4,IF(S168=TRUE,1,IF(S169=TRUE,1,'Anexo A'!S46))) -> 1
B167: T. Separada → | D167: =D172+D173 -> 0 | F167: =F172+F173 -> 0 | H167: =H172 -> 0 | J167: =(J172) -> 0 | S167: ='Modelo 3'!D43 -> 0
B168: Taxas → | D168: 0.15 | H168: 0.075 | S168: ='Modelo 3'!E43 -> 0
B169: Limites → | D169: 250 | H169: 125 | S169: ='Modelo 3'!F43 -> 0
B170: Despesas → | D170: =R47 -> 0 | F170: =T47 -> 0 | H170: =V47 -> 0 | J170: =X47 -> 0 | L170: =SUM(D167+F167) -> 0
D171: Sujeito Passivo A | F171: Sujeito Passivo B | H171: Dependentes | J171: Guarda Conjunta | L171: =IF(L170<D169,D167+F167,D169) -> 0 | M171: =D169/2 -> 125
B172: SOMA TOTAL → | D172: =IF(D170*D168<D169,D170*D168,D169)+H172+J172 -> 0 | F172: =IF(F170*D168<D169,F170*D168,D169)+H172+J172 -> 0 | H172: =IF(H170*H168<H169,H170*H168,H169) -> 0 | J172: =IF(J170*D168<D169,J170*D168,D169)*X38 -> 0
D173: =R48+H173+J173 -> 0 | F173: =T48+H173+J173 -> 0 | H173: =V48*0.5 -> 0 | J173: =X48*X38 -> 0
B174: Continente | D174: SOMA | E174: =SUM(L171) -> 0 | F174: =IF(S166=1,E174,) -> 0 | I174: T. Separado
B175: Açores | D175: SOMA | E175: =IF(E174<0,0,E174) -> 0 | F175: =IF(S166=2,E175,) -> 0 | H175: SP A→ | I175: =IF(S166>=4,0,SUM(K175)) -> 0 | K175: =IF(R166=0,0,SUM(L175)) -> 0 | L175: =IF(D167>=M171,M171,D167) -> 0
B176: Madeira | D176: SOMA | E176: =IF(E174<0,0,E174) -> 0 | F176: =IF(S166=3,E176,) -> 0 | H176: SP B→ | I176: =IF(S166>=4,0,SUM(K176)) -> 0 | K176: =IF(R166=0,0,SUM(L176)) -> 0 | L176: =IF(F167>=M171,M171,F167) -> 0
B177: =IF(E174<0,0,SUM(F174+F175+F176)) -> 0 | D177: ← Dedução à Coleta (Vermelho)
B179: Art.º 83.º - A do CIRS - Pensões de alimentos pagas por decisão Judicial | R179: ='Modelo 3'!D38 -> 1 | S179: =IF(S180=TRUE,4,IF(S181=TRUE,1,IF(S182=TRUE,1,'Anexo A'!S46))) -> 1
B180: T. Separada → | D180: =D184 -> 0 | F180: =F184 -> 0 | S180: ='Modelo 3'!D43 -> 0
B181: Taxas → | D181: 0.2 | S181: ='Modelo 3'!E43 -> 0
B182: Valor da pensão → | D182: =O8 -> 0 | F182: =Q8 -> 0 | S182: ='Modelo 3'!F43 -> 0
D183: Sujeito Passivo A | F183: Sujeito Passivo B
B184: SOMA TOTAL → | D184: =D182*D181 -> 0 | F184: =F182*D181 -> 0
B185: Continente | D185: SOMA | E185: =SUM(D184:F184) -> 0 | F185: =IF(S179=1,E185,) -> 0 | I185: T. Separado
B186: Açores | D186: SOMA | E186: =IF(E185<0,0,E185) -> 0 | F186: =IF(S179=2,E186,) -> 0 | H186: SP A→ | I186: =SUM(K186) -> 0 | K186: =IF(R179=0,0,D184) -> 0
B187: Madeira | D187: SOMA | E187: =IF(E185<0,0,E185) -> 0 | F187: =IF(S179=3,E187,) -> 0 | H187: SP B→ | I187: =SUM(K187) -> 0 | K187: =IF(R179=0,0,F184) -> 0
B188: =IF(E185<0,0,SUM(F185+F186+F187)) -> 0 | D188: ← Dedução à Coleta (Vermelho)
B190: Art.º 84.º do CIRS - Encargos com lares | R190: ='Modelo 3'!D38 -> 1 | S190: =IF(S191=TRUE,4,IF(S192=TRUE,1,IF(S193=TRUE,1,'Anexo A'!S46))) -> 1
B191: T. Separada → | D191: =D196 -> 0 | F191: =F196 -> 0 | H191: =H196 -> 0 | J191: =J196 -> 0 | S191: ='Modelo 3'!D43 -> 0
B192: Taxas → | D192: 0.25 | H192: 0.125 | S192: ='Modelo 3'!E43 -> 0
B193: Limites → | D193: 403.75 | H193: =D193/2 -> 201.875 | S193: ='Modelo 3'!F43 -> 0
B194: Despesas → | D194: =R46 -> 0 | F194: =T46 -> 0 | H194: =V46 -> 0 | J194: =IF(O8+Q8>=1,0,X46) -> 0 | L194: =SUM(D191+F191) -> 0
D195: Sujeito Passivo A | F195: Sujeito Passivo B | H195: Dependentes | J195: Guarda Conjunta | L195: =IF(L194<D193,D191+F191,D193) -> 0 | M195: =D193/2 -> 201.875
B196: SOMA TOTAL → | D196: =IF(D194*D192<D193,D194*D192,D193)+H196+J196 -> 0 | F196: =IF(F194*D192<D193,F194*D192,D193)+H196+J196 -> 0 | H196: =IF(H194*H192<H193,H194*H192,H193) -> 0 | J196: =IF(J194*D192<D193,J194*D192,D193)*X38 -> 0
B197: Continente | D197: SOMA | E197: =SUM(L195) -> 0 | F197: =IF(S190=1,E197,) -> 0 | I197: T. Separado
B198: Açores | D198: SOMA | E198: =IF(E197<0,0,E197) -> 0 | F198: =IF(S190=2,E198,) -> 0 | H198: SP A→ | I198: =IF(S190>=4,0,SUM(K198)) -> 0 | K198: =IF(R190=0,0,SUM(L198)) -> 0 | L198: =IF(D191>=M195,M195,D191) -> 0
B199: Madeira | D199: SOMA | E199: =IF(E197<0,0,E197) -> 0 | F199: =IF(S190=3,E199,) -> 0 | H199: SP B→ | I199: =IF(S190>=4,0,SUM(K199)) -> 0 | K199: =IF(R190=0,0,SUM(L199)) -> 0 | L199: =IF(F191>=M195,M195,F191) -> 0
B200: =IF(E197<0,0,SUM(F197+F198+F199)) -> 0 | D200: ← Dedução à Coleta (Vermelho)
B202: Art.º 87.º do CIRS - Sujeitos Passivos, dependentes e Ascendentes com deficiência | R202: ='Modelo 3'!D38 -> 1 | S202: =IF(S203=TRUE,4,IF(S204=TRUE,1,IF(S205=TRUE,1,'Anexo A'!S46))) -> 1
B203: T. Separada → | D203: =D213 -> 0 | G203: =G213 -> 0 | J203: =J213/2 -> 0 | M203: =M213/2 -> 0 | P203: =IF(R202=0,0,P213/2) -> 0 | S203: ='Modelo 3'!D43 -> 0 | T203: SP A+B Conjunta
D204: Deficiente ≥ 60% | F204: =1900 -> 1900 | G204: Deficiente ≥ 60% | I204: =1900 -> 1900 | J204: Deficiente ≥ 60% | L204: =1187.5 -> 1187.5 | M204: Deficiente ≥ 60% | O204: =1187.5/2 -> 593.75 | S204: ='Modelo 3'!E43 -> 0 | T204: =E209+H209 -> 0 | U204: ≥ 60% | V204: ◄Art.º 87.º do CIRS, Dedução dos sujeitos passivos, deficientes, com grau de invalidez ≥ 60% e < 90 %;
D205: Deficiente ≥ 90% | F205: =1900 -> 1900 | G205: Deficiente ≥ 90% | I205: 1900 | J205: Deficiente ≥ 90% | L205: =1900 -> 1900 | M205: Deficiente ≥ 90% | O205: =1900/2 -> 950 | S205: ='Modelo 3'!F43 -> 0 | T205: =K209+N209+P213 -> 0 | U205: ≥ 60% | V205: ◄Art.º 87.º do CIRS, Dedução dos dependentes, afilhados civis, ascendentes, deficientes, com grau de invalidez ≥ 60% e < 90 %;
D206: Deficiente FA ≥ 60% | F206: =2375 -> 2375 | G206: Deficiente FA ≥ 60% | I206: =2375 -> 2375 | J206: Deficiente FA ≥ 60% | L206: =1187.5 -> 1187.5 | M206: Deficiente FA ≥ 60% | O206: =1187.5/2 -> 593.75 | T206: =E210+H210+K210+N210 -> 0 | U206: ≥ 90% | V206: ◄Art.º 87.º do CIRS, Deduão dos sujeito passivos, dependentes, afilhados civis, deficientes, com grau de invalidez ≥ 90%;
D207: Deficiente FA ≥ 90% | F207: 1900 | G207: Deficiente FA ≥ 90% | I207: 1900 | J207: Deficiente FA ≥ 90% | L207: =1900 -> 1900 | M207: Deficiente FA ≥ 90% | O207: =1900/2 -> 950 | Q207: =1187.5 -> 1187.5 | T207: =E211+H211+K211+N211 -> 0 | U207: FA ≥ 60% | V207: ◄Art.º 87.º do CIRS, Dedução dos sujeitos passivos, dependentes, afilhados civis, deficientes das Forças Armadas, com grau de invalidez ≥ 60% e < 90 %;
D208: Sujeito Passivo A | G208: Sujeito Passivo B | J208: Dependentes | M208: Guarda Conjunta | P208: Ascendentes | T208: =E212+H212+K212+N212 -> 0 | U208: FA ≥ 90% | V208: ◄Art.º 87.º do CIRS, Dedução dos sujeitos passivos, dependentes, afilhados civis, deficientes das Forças Armadas, com grau de invalidez ≥ 90%;
C209: ≥ 60% | E209: =IF(E211>=1,0,IF(F209=1,F204,)) -> 0 | F209: =IF(F210>=1,0,'Modelo 3'!H20) -> 0 | H209: =IF(H211>=1,0,IF(I209=1,I204,)) -> 0 | I209: =IF(I210>=1,0,'Modelo 3'!I20) -> 0 | K209: =IF(L209>=1,L204*L209,) -> 0 | L209: ='Modelo 3'!J20 -> 0 | N209: =IF(O209>=1,O204*O209,) -> 0 | O209: ='Modelo 3'!K20 -> 0 | P209: =Q207*Q209 -> 0 | Q209: ='Modelo 3'!K24 -> 0 | R209: SP A Separado | T209: SP A Separada | V209: =SUM(T204:T208) -> 0
C210: ≥ 90% | E210: =IF(E212>=1,0,IF(F210>=1,F204+F205,)) -> 0 | F210: =('Modelo 3'!H21) -> 0 | H210: =IF(H212>=1,0,IF(I210>=1,I204+I205,)) -> 0 | I210: ='Modelo 3'!I21 -> 0 | K210: =IF(L210>=1,L204+L205*L210,) -> 0 | L210: ='Modelo 3'!J21 -> 0 | N210: =IF(O210>=1,O204+O205*O210,) -> 0 | O210: ='Modelo 3'!K21 -> 0 | S210: ≥ 60% | T210: =IF(R202=0,0,E209) -> 0 | U210: ≥ 60%
C211: FA ≥ 60% | E211: =IF(F211=1,F206,) -> 0 | F211: =IF(F212=1,0,'Modelo 3'!H22) -> 0 | H211: =IF(I211=1,I206,) -> 0 | I211: =IF(I212>=1,0,'Modelo 3'!I22) -> 0 | K211: =IF(L211>=1,L206*L211,) -> 0 | L211: ='Modelo 3'!J22 -> 0 | N211: =IF(O211>=1,O206*O211,) -> 0 | O211: ='Modelo 3'!K22 -> 0 | S211: ≥ 90% | T211: =IF(R202=0,0,K209/2+N209/2)+P203 -> 0 | U211: ≥ 60%
C212: FA ≥ 90% | E212: =IF(F212>=1,F206+F207,) -> 0 | F212: =('Modelo 3'!H23) -> 0 | H212: =IF(I212>=1,I206+I207,) -> 0 | I212: ='Modelo 3'!I23 -> 0 | K212: =IF(L212>=1,(L206+L207)*L212,) -> 0 | L212: ='Modelo 3'!J23 -> 0 | N212: =IF(O212>=1,O206+O207*O212,) -> 0 | O212: ='Modelo 3'!K23 -> 0 | S212: FA ≥ 60% | T212: =IF(R202=0,0,E210+K210/2+N210/2) -> 0 | U212: ≥ 90%
B213: SOMA TOTAL → | D213: =MAX(E209:E212) -> 0 | G213: =MAX(H209:H212) -> 0 | J213: =SUM(K209:K212) -> 0 | M213: =SUM(N209:N212) -> 0 | P213: =SUM(P209:P212) -> 0 | S213: FA ≥ 90% | T213: =IF(R202=0,0,E211+K211/2+N211/2) -> 0 | U213: FA ≥ 60%
B214: Continente | D214: SOMA | E214: =SUM(D213:P213) -> 0 | F214: =IF(S202=1,E214,) -> 0 | I214: T. Separado | T214: =IF(R202=0,0,E212+K212/2+N212/2) -> 0 | U214: FA ≥ 90% | V214: =SUM(T210:T214) -> 0
B215: Açores | D215: SOMA | E215: =IF(E214<0,0,E214) -> 0 | F215: =IF(S202=2,E215,) -> 0 | H215: SP A→ | I215: =IF(S202>=4,0,SUM(K215)) -> 0 | K215: =IF(R202=0,0,D203+J203+M203+P203) -> 0 | M215: =E212+H212+K212+N212 -> 0 | T215: SP B Separado
B216: Madeira | D216: SOMA | E216: =IF(E214<0,0,E214) -> 0 | F216: =IF(S202=3,E216,) -> 0 | H216: SP B→ | I216: =IF(S202>=4,0,SUM(K216)) -> 0 | K216: =IF(R202=0,0,G203+J203+M203+P203) -> 0 | M216: =E210+H210+K210+N210 -> 0 | T216: =IF(R202=0,0,H209) -> 0
B217: =IF(E214<0,0,SUM(F214+F215+F216)) -> 0 | D217: ← Dedução à coleta (Azul) | T217: =IF(R202=0,0,K209/2+N209/2)+P203 -> 0 | U217: ≥ 60%
T218: =IF(R202=0,0,H210+K210/2+N210/2) -> 0 | U218: ≥ 90%
B219: Art.º 87.º do CIRS - Contribuições pagas para a reforma por velhice, dos sujeitos passivos com deficiência ≥ 60% | R219: ='Modelo 3'!D38 -> 1 | S219: =IF(S220=TRUE,4,IF(S221=TRUE,1,IF(S222=TRUE,1,'Anexo A'!S46))) -> 1 | T219: =IF(R202=0,0,H211+K211/2+N211/2) -> 0 | U219: FA ≥ 60%
B220: T. Separada → | D220: =D226 -> 0 | F220: =F226 -> 0 | H220: =H226 -> 0 | J220: =J226 -> 0 | S220: ='Modelo 3'!D43 -> 0 | T220: =IF(R202=0,0,H212+K212/2+N212/2) -> 0 | U220: FA ≥ 90% | V220: =SUM(T216:T220) -> 0
B221: Taxas → | D221: 0.25 | H221: 0.125 | S221: ='Modelo 3'!E43 -> 0
B222: Limites → | D222: =IF(D223=2,130,IF(D223=1,65,0)) -> 130 | H222: =D222/2 -> 65 | S222: ='Modelo 3'!F43 -> 0 | V222: =V214+V220 -> 0
B223: Quoficite Familiar → | D223: ='Modelo 3'!C59 -> 2
B224: despesas → | D224: =R22 -> 0 | F224: =T22 -> 0 | H224: =V22 -> 0 | J224: =IF(O8+Q8>=1,0,X22) -> 0 | L224: =SUM(D220+F220) -> 0
D225: Sujeito Passivo A | F225: Sujeito Passivo B | H225: Dependentes | J225: Guarda Conjunta | L225: =IF(L224<D222,D220+F220,D222) -> 0 | M225: =D222/2 -> 65
B226: SOMA TOTAL → | D226: =IF(D224*D221<D222,D224*D221,D222)+H226+J226 -> 0 | F226: =IF(F224*D221<D222,F224*D221,D222)+H226+J226 -> 0 | H226: =IF(H224*H221<H222,H224*H221,H222) -> 0 | J226: =IF(J224*D221<D222,J224*D221,D222)*X20 -> 0
B227: Continente | D227: SOMA | E227: =SUM(L225) -> 0 | F227: =IF(S219=1,E227,) -> 0 | I227: T. Separado
B228: Açores | D228: SOMA | E228: =IF(E227<0,0,E227) -> 0 | F228: =IF(S219=2,E228,) -> 0 | H228: SP A→ | I228: =IF(S219>=4,0,SUM(K228)) -> 0 | K228: =IF(R219=0,0,SUM(L228)) -> 0 | L228: =IF(D220>=M225,M225,D220) -> 0
... 109 more rows

Sheet Anexo J
B4: QUADRO 4A
B5: RENDIMENTOS, RETENÇÕES, CONTRIBUIÇÕES OBRIGATÓRIAS
B6: TRABALHO DEPENDENTE OBTIDO NO ESTRANGEIRO | K6: Campo | L6: Sujeito Passivo A | N6: Sujeito Passivo B
B7: Trabalho dependente obtido no estrangeiro | K7: A01
B8: Contribuições para a segurança social
B9: IRS pago no estrangeiro
B11: QUADRO 5A
B12: PENSÕES OBTIDAS NO ESTRANGEIRO | K12: Campo | L12: Sujeito Passivo A | N12: Sujeito Passivo B
B13: Pensões da categoria H obtidas no estrangeiro | K13: H01
B14: Contribuições para a segurança social
B15: IRS pago no estrangeiro.
B20: INICIO
B21: =IF(L7+N7+L13+N13=0,"➤",IF(L7+N7+L13+N13>=1,"Tem",)) -> ➤
B22: Anexo J - Cálculo do Crédito do Imposto | I22: Anexo J - Cálculo do Crédito do Imposto
B23: ='Modelo 3'!J36 -> 4104 | D23: =IF(D26=0,0,IF(L8<=B23,B23,IF(L8>B23,L8,))) -> 0 | F23: =IF(D34=0,0,IF(L8<=B23,B23,IF(L8>B23,L8,))) -> 0 | I23: ='Modelo 3'!J36 -> 4104 | K23: =IF(K26=0,0,IF(N8<=I23,I23,IF(N8>I23,N8,))) -> 0 | M23: =IF(K34=0,0,IF(N8<=I23,I23,IF(N8>I23,N8,))) -> 0
B24: Sujeito Passivo A: Cat. A | I24: Sujeito Passivo B: Cat. A
B25: R. Portugal | D25: R. Estrangeiro | F25: Soma | H25: ='Anexo A'!O7+'Anexo H'!V54+'Anexo H'!S258 -> 0 | I25: R. Portugal | K25: R. Estrangeiro | M25: Soma
B26: =IF(D26=0,0,SUM(H25)) -> 0 | D26: =SUM(L7) -> 0 | F26: =SUM(B26+D26) -> 0 | H26: ='Anexo A'!Q7+'Anexo H'!X54+'Anexo H'!S259 -> 0 | I26: =IF(K26=0,0,SUM(H26)) -> 0 | K26: =SUM(N7) -> 0 | M26: =SUM(I26+K26) -> 0
B27: =IF(B26=0,0,SUM(H25)) -> 0 | D27: =IF(D26<=D23,D26,D23) -> 0 | F27: =(D26-D27)/'Modelo 3'!C59 -> 0 | I27: =IF(I26=0,0,SUM(H26)) -> 0 | K27: =IF(K26<=K23,K26,K23) -> 0 | M27: =(K26-K27)/'Modelo 3'!C59 -> 0
B28: =IF(B26=0,0,SUM(B27)) -> 0 | D28: =IF(D26=0,0,IF(F27>D27,F27,IF(D26<D27,D26,IF(D26>=D27,D27,)))) -> 0 | F28: =SUM(B28:E28) -> 0 | I28: =IF(I26=0,0,SUM(I27)) -> 0 | K28: =IF(K26=0,0,IF(M27>K27,M27,IF(K26<K27,K26,IF(K26>=K27,K27,)))) -> 0 | M28: =SUM(I28:L28) -> 0
B29: IRS Pago no estrangeiro → | F29: =L9 -> 0 | I29: IRS Pago no estrangeiro → | M29: =N9 -> 0 | O29: =Simulação!G72 -> 0 | Q29: Rendimento coletável Sujeito passivo A + B
B30: =IFERROR(D26/F26,0) -> 0 | D30: =D26-D27*B30 -> 0 | F30: =IF(O29=0,0,IF(D30>1,D30/O29)*(O33-O34)) -> 0 | I30: =IFERROR(K26/M26,0) -> 0 | K30: =K26-K27*I30 -> 0 | M30: =IF(O29=0,0,IF(K30>1,K30/O29)*(O33-O34)) -> 0 | O30: =Simulação!H72 -> 0 | Q30: Rendimento coletável Sujeito passivo A
B31: =IFERROR(D26/F26,0) -> 0 | D31: =D26-D27*B31 -> 0 | F31: =IF(O30=0,0,IF(D31>1,D31/O30)*(O35-O36)) -> 0 | I31: =IFERROR(K26/M26,0) -> 0 | K31: =K26-K27*I31 -> 0 | M31: =IF(O30=0,0,IF(K31>1,K31/O30)*(O35-O36)) -> 0
B32: Sujeito Passivo A: Cat. H | I32: Sujeito Passivo B: Cat. H
B33: R. Portugal | D33: R. Estrangeiro | F33: Soma | H33: ='Anexo A'!O22+'Anexo A'!O23+'Anexo A'!O24+'Anexo A'!O26 -> 0 | I33: R. Portugal | K33: R. Estrangeiro | M33: Soma | O33: =Simulação!G82 -> 0 | Q33: Coleta total Sujeito passivo A + B
B34: =IF(D34=0,0,(SUM(H33))) -> 0 | D34: =SUM(L13) -> 0 | F34: =SUM(B34+D34) -> 0 | H34: ='Anexo A'!Q22+'Anexo A'!Q23+'Anexo A'!Q24+'Anexo A'!Q26 -> 0 | I34: =IF(K34=0,0,SUM(H34)) -> 0 | K34: =SUM(N13) -> 0 | M34: =SUM(I34+K34) -> 0 | O34: =Simulação!G83 -> 0 | Q34: Deduções à coleta Sujeito passivo A + B
B35: =IF(B34=0,0,SUM(H33)) -> 0 | D35: =IF(D34<=F23,D34,F23) -> 0 | F35: =(D34-D35)/'Modelo 3'!C59 -> 0 | I35: =IF(I34=0,0,SUM(H34)) -> 0 | K35: =IF(K34<=M23,K34,M23) -> 0 | M35: =(K34-K35)/'Modelo 3'!C59 -> 0 | O35: =Simulação!H82 -> 0 | Q35: Coleta total Sujeito passivo A
B36: =IF(B34=0,0,SUM(B35)) -> 0 | D36: =IF(D34=0,0,IF(F35>D35,F35,IF(D34<D35,D34,IF(D34>=D35,D35,)))) -> 0 | F36: =SUM(B36:E36) -> 0 | I36: =IF(I34=0,0,SUM(I35)) -> 0 | K36: =IF(K34=0,0,IF(M35>K35,M35,IF(K34<K35,K34,IF(K34>=K35,K35,)))) -> 0 | M36: =SUM(I36:L36) -> 0 | O36: =Simulação!H83 -> 0 | Q36: Deduções à coleta Sujeito passivo A
B37: IRS Pago no estrangeiro → | F37: =L15 -> 0 | I37: IRS Pago no estrangeiro → | M37: =N15 -> 0 | O37: =Simulação!I82 -> 0 | Q37: Coleta total Sujeito passivo B
B38: =IFERROR(D34/F34,0) -> 0 | D38: =D34-D35*B38 -> 0 | F38: =IF(O29=0,0,IF(D38>1,D38/O29)*(O33-O34)) -> 0 | I38: =IFERROR(K34/M34,0) -> 0 | K38: =K34-K35*I38 -> 0 | M38: =IF(O29=0,0,IF(K38>1,K38/O29)*(O33-O34)) -> 0 | O38: =Simulação!I83 -> 0 | Q38: Deduções à coleta Sujeito passivo B
B39: =IFERROR(D34/F34,0) -> 0 | D39: =D34-D35*B39 -> 0 | F39: =IF(O30=0,0,IF(D39>1,D39/O30)*(O35-O36)) -> 0 | I39: =IFERROR(K34/M34,0) -> 0 | K39: =K34-K35*I39 -> 0 | M39: =IF(O30=0,0,IF(K39>1,K39/O30)*(O35-O36)) -> 0
E40: SP A | F40: SP B | G40: SP A | H40: SP B
B41: Credito de imposto Cat. A → | E41: =IF(F29+F30<0,0,IF(F30>O33,O33-O34,IF(F30>F29,F29,IF(F29>F30,F30,0)))) -> 0 | F41: =IF(M29+M30<0,0,IF(M30>O33,O33-O34,IF(M30>M29,M29,IF(M29>M30,M30,0)))) -> 0 | G41: =IF(F29+F31<0,0,IF(F31>O35,O35-O36,IF(F31>F29,F29,IF(F29>F31,F31,0)))) -> 0 | H41: =IF(M29+M31<0,0,IF(M31>O37,O37-O38,IF(M31>M29,M29,IF(M29>M31,M31,0)))) -> 0
B42: Credito Imposto Cat. H → | E42: =IF(F37+F38<0,0,IF(F38>O33,O33-O34,IF(F38>F37,F37,IF(F37>F38,F38,0)))) -> 0 | F42: =IF(M37+M38<0,0,IF(M38>O33,O33-O34,IF(M38>M37,M37,IF(M37>M38,M38,0)))) -> 0 | G42: =IF(F37+F39<0,0,IF(F39>O35,O35-O36,IF(F39>F37,F37,IF(F37>F39,F39,0)))) -> 0 | H42: =IF(M37+M39<0,0,IF(M39>O37,O37-O38,IF(M39>M37,M37,IF(M37>M39,M39,0)))) -> 0
E43: =SUM(E41:E42) -> 0 | F43: =SUM(F41:F42) -> 0 | G43: =SUM(G41:G42) -> 0 | H43: =SUM(H41:H42) -> 0
D44: SOMA → | E44: =SUM(E43:F43) -> 0 | G44: =SUM(G43) -> 0 | H44: =SUM(H43) -> 0
B49: FIM

Sheet Deduções à Coleta
B4: =Simulação!I4 -> Sujeito Passivo A+B Casados, opção pela tributação conjunta | C4: =Simulação!J4 -> Sujeito Passivo A Casado, opção pela tributação separada | D4: =Simulação!K4 -> Sujeito Passivo B Casado, opção pela tributação separada
B5: ='Anexo H'!B123 -> 0 | C5: ='Anexo H'!I121 -> 0 | D5: ='Anexo H'!I122 -> 0 | E5: ◄Art.º 78.º - C do CIRS, Dedução das despesas de saúde + Prémios de Seguros de Saúde;
B6: ='Anexo H'!B138 -> 0 | C6: ='Anexo H'!I136 -> 0 | D6: ='Anexo H'!I137 -> 0 | E6: ◄Art.º 78.º - D do CIRS, Dedução das despesas de formação e educação;
B7: ='Anexo H'!B151 -> 0 | C7: ='Anexo H'!I149 -> 0 | D7: ='Anexo H'!I150 -> 0 | E7: ◄Art.º 78.º - E do CIRS, Dedução das rendas pagas para habitação própria e permanente;
B8: ='Anexo H'!B164 -> 0 | C8: ='Anexo H'!I162 -> 0 | D8: ='Anexo H'!I163 -> 0 | E8: ◄Art.º 78.º - E do CIRS, Dedução dos juros de dívida com a aquisição de habitação própria e permanente;
B9: ='Anexo H'!B177 -> 0 | C9: ='Anexo H'!I175 -> 0 | D9: ='Anexo H'!I176 -> 0 | E9: ◄Art.º 78.º - F do CIRS, Dedução do IVA suportado em fatura;
B10: ='Anexo H'!B188 -> 0 | C10: ='Anexo H'!I186 -> 0 | D10: ='Anexo H'!I187 -> 0 | E10: ◄Art.º 83.º - A do CIRS, Dedução das pensões de alimentos;
B11: ='Anexo H'!B200 -> 0 | C11: ='Anexo H'!I198 -> 0 | D11: ='Anexo H'!I199 -> 0 | E11: ◄Art.º 84.º do CIRS, Dedução das despesas com lares;
B12: ='Anexo H'!B278 -> 0 | C12: ='Anexo H'!I276 -> 0 | D12: ='Anexo H'!I277 -> 0 | E12: ◄Art.º 17.º do EBF, Dedução dos valores aplicados em regime público da capitalização;
B13: ='Anexo H'!B266 -> 0 | C13: ='Anexo H'!I264 -> 0 | D13: ='Anexo H'!I265 -> 0 | E13: ◄Art.º 21.º do EBF, Dedução dos PPR'S;
B14: ='Anexo H'!B290 -> 0 | C14: ='Anexo H'!I288 -> 0 | D14: ='Anexo H'!I289 -> 0 | E14: ◄Art.º 71.º do EBF, Dedução dos encargos com reabilitação de imóveis;
B15: ='Anexo H'!B308 -> 0 | C15: ='Anexo H'!I306 -> 0 | D15: ='Anexo H'!I307 -> 0 | E15: ◄Donativos a particulares;
B16: ='Anexo H'!B322 -> 0 | C16: ='Anexo H'!I320 -> 0 | D16: ='Anexo H'!I321 -> 0 | E16: ◄Donativos ao Estado.
B17: =SUM(B5:B16) -> 0 | C17: =SUM(C5:C16) -> 0 | D17: =SUM(D5:D16) -> 0 | E17: ◄SOMA
B18: ='Anexo H'!D341 -> Sem limite | C18: ='Anexo H'!G341 -> Sem limite | D18: ='Anexo H'!J341 -> Sem limite | E18: ◄ A soma das deduções à coleta das alíneas c) a h) e k) do n.º 1 do art.º 78.º do CIRS não pode exceder estes limites
B21: ='Anexo H'!D95+'Anexo H'!H95+'Anexo H'!L95+'Anexo H'!P95 -> 0 | C21: =IF('Modelo 3'!D38=0,0,B21/2) -> 0 | D21: =IF('Modelo 3'!D38=0,0,B21/2) -> 0 | E21: ◄Art.º 78.º - A do CIRS, Dedução dos dependentes e afilhados civis com mais de 3 anos ;
B22: ='Anexo H'!F95+'Anexo H'!J95+'Anexo H'!N95+'Anexo H'!R95 -> 0 | C22: =IF('Modelo 3'!D38=0,0,B22/2) -> 0 | D22: =IF('Modelo 3'!D38=0,0,B22/2) -> 0 | E22: ◄Art.º 78.º - A do CIRS, Dedução dos dependentes e afilhados civis até 3 anos;
B23: ='Anexo H'!T95 -> 0 | C23: =IF('Modelo 3'!D38=0,0,B23/2) -> 0 | D23: =IF('Modelo 3'!D38=0,0,B23/2) -> 0 | E23: ◄Art.º 78.º - A do CIRS, Dedução dos ascendentes;
B24: ='Anexo H'!B111 -> 0 | C24: ='Anexo H'!I109 -> 0 | D24: ='Anexo H'!I110 -> 0 | E24: ◄Art.º 78.º - B do CIRS, Dedução das despesas gerais familiares;
B25: ='Anexo H'!T204 -> 0 | C25: ='Anexo H'!T210 -> 0 | D25: ='Anexo H'!T216 -> 0 | E25: ◄Art.º 87.º do CIRS, Dedução dos sujeitos passivos, deficientes, com grau de invalidez ≥ 60% e < 90 %;
B26: ='Anexo H'!T205 -> 0 | C26: ='Anexo H'!T211 -> 0 | D26: ='Anexo H'!T217 -> 0 | E26: ◄Art.º 87.º do CIRS, Dedução dos dependentes, afilhados civis, ascendentes, deficientes, com grau de invalidez ≥ 60% e < 90 %;
B27: ='Anexo H'!T206 -> 0 | C27: ='Anexo H'!T212 -> 0 | D27: ='Anexo H'!T218 -> 0 | E27: ◄Art.º 87.º do CIRS, Deduão dos sujeito passivos, dependentes, afilhados civis, deficientes, com grau de invalidez ≥ 90%;
B28: ='Anexo H'!T207 -> 0 | C28: ='Anexo H'!T213 -> 0 | D28: ='Anexo H'!T219 -> 0 | E28: ◄Art.º 87.º do CIRS, Dedução dos sujeitos passivos, dependentes, afilhados civis, deficientes das Forças Armadas, com grau de invalidez ≥ 60% e < 90 %;
B29: ='Anexo H'!T208 -> 0 | C29: ='Anexo H'!T214 -> 0 | D29: ='Anexo H'!T220 -> 0 | E29: ◄Art.º 87.º do CIRS, Dedução dos sujeitos passivos, dependentes, afilhados civis, deficientes das Forças Armadas, com grau de invalidez ≥ 90%;
B30: ='Anexo H'!B230 -> 0 | C30: ='Anexo H'!I228 -> 0 | D30: ='Anexo H'!I229 -> 0 | E30: ◄Art.º 87.º do CIRS, Dedução das contribuições para reforma por velhice;
B31: ='Anexo H'!B242 -> 0 | C31: ='Anexo H'!I240 -> 0 | D31: ='Anexo H'!I241 -> 0 | E31: ◄Art.º 87.º do CIRS, Dedução dos prémios de seguros de vida dos SP e dependentes deficientes;
B32: ='Anexo H'!B253 -> 0 | C32: ='Anexo H'!I251 -> 0 | D32: ='Anexo H'!I252 -> 0 | E32: ◄Art.º 87.º do CIRS, Dedução das despesas de educação dos Suj. Pas. e dependentes deficientes;
B33: ='Anexo H'!B90 -> 0 | C33: ='Anexo H'!I88 -> 0 | D33: ='Anexo H'!I89 -> 0 | E33: ◄Art.º 78.º n.º 1 alínea l, do CIRS, + (Art.º 135.º-I do CIMI), Dedução do adicional ao imposto municipal sobre imóveis.
B34: =SUM(B21:B33) -> 0 | C34: =SUM(C21:C33) -> 0 | D34: =SUM(D21:D33) -> 0 | E34: ◄SOMA
B36: ='Anexo H'!D345 -> 0 | C36: ='Anexo H'!G345 -> 0 | D36: ='Anexo H'!J345 -> 0 | E36: ◄SOMA TOTAL

Sheet Artigos
B4: Modelo 3 - Taxa de Participação no IRS dos Municípios
B5: Modelo 3 - Desvalorização da Moeda
B6: Modelo 3 - Tabela da atividade do art.º 151.º do CIRS
B7: Modelo 3 - Rendimentos da cat. E
B9: Art.º 68.º do CIRS - Taxas Gerais
B10: Art.º 68.º - A do CIRS - Taxa adicional
B11: Art.º 70.º do CIRS - Mínimo de Existência
B16: INICIO
B18: Art.º 68.º do CIRS - Taxas Gerais | E18: Tributação conjunta | N18: ='Anexo A'!R46 -> 1 | O18: =IF(O19=TRUE,4,IF(O20=TRUE,1,IF(O21=TRUE,1,'Anexo A'!S46))) -> 1
B19: Rendimento Colectável | E19: Continente | G19: Açores | I19: Madeira | O19: ='Modelo 3'!D43 -> 0
B20: Escalões | C20: Mais de | D20: Até | E20: T. normal | F20: P. a abater | G20: T. normal | H20: P. a abater | I20: T. normal | J20: P. a abater | O20: ='Modelo 3'!E43 -> 0
B21: 1º Escalão | C21: 0 | D21: 7091 | E21: =IF(F33<=D21,14.5%) -> 0.145 | F21: 0 | G21: =IF(F33<=D21,10.15%) -> 0.1015 | H21: 0 | I21: =IF(F33<=D21,12.41%) -> 0.1241 | J21: 0 | O21: ='Modelo 3'!F43 -> 0
B22: 2º Escalão | C22: 7091 | D22: 10700 | E22: =IF(F33<=D22,23%) -> 0.23 | F22: 602.74 | G22: =IF(F33<=D22,17.25%) -> 0.1725 | H22: 503.46 | I22: =IF(F33<=D22,23%) -> 0.23 | J22: 750.94
B23: 3º Escalão | C23: 10700 | D23: 20261 | E23: =IF(F33<=D23,28.5%) -> 0.285 | F23: 1191.23 | G23: =IF(F33<=D23,21.38%) -> 0.2138 | H23: 945.35 | I23: =IF(F33<=D23,28.5%) -> 0.285 | J23: 1339.43
B24: 4º Escalão | C24: 20261 | D24: 25000 | E24: =IF(F33<=D24,35%) -> 0.35 | F24: 2508.11 | G24: =IF(F33<=D24,28%) -> 0.28 | H24: 2286.66 | I24: =IF(F33<=D24,35%) -> 0.35 | J24: 2656.42
B25: 5º Escalão | C25: 25000 | D25: 36856 | E25: =IF(F33<=D25,37%) -> 0.37 | F25: 3008.25 | G25: =IF(F33<=D25,29.6%) -> 0.296 | H25: 2686.75 | I25: =IF(F33<=D25,37%) -> 0.37 | J25: 3156.5
B26: 6º Escalão | C26: 36856 | D26: 80640 | E26: =IF(F33<=D26,45%) -> 0.45 | F26: 5956.67 | G26: =IF(F33<=D26,36%) -> 0.36 | H26: 5045.59 | I26: =IF(F33<=D26,45%) -> 0.45 | J26: 6104.83
B27: 7º Escalão | C27: > | D27: 80640 | E27: =IF(F33>D27,48%) -> FALSE | F27: 8376.08 | G27: =IF(F33>D27,38.4%) -> FALSE | H27: 6981 | I27: =IF(F33>D27,48%) -> FALSE | J27: 8524.45
E28: =IF(O18=1,IF(F32<=G34,0%,MIN(E21:E27))) -> 0 | F28: =IF(O18=1,IF(F32<=G34,0,IF(E21=14.5%,F21,IF(E22=23%,F22,IF(E23=28.5%,F23,IF(E24=35%,F24,IF(E25=37%,F25,IF(E26=45%,F26,IF(E27=48%,F27))))))))) -> 0 | G28: =IF(O18=2,IF(F32<=G34,0%,MIN(G21:G27))) -> FALSE | H28: =IF(O18=2,IF(F32<=G34,0,IF(G21=10.15%,H21,IF(G22=17.25%,H22,IF(G23=21.38%,H23,IF(G24=28%,H24,IF(G25=29.6%,H25,IF(G26=36%,H26,IF(G27=38.4%,H27))))))))) -> FALSE | I28: =IF(O18=3,IF(F32<=G34,0%,MIN(I21:I27))) -> FALSE | J28: =IF(O18=3,IF(F32<=G34,0,IF(I21=12.41%,J21,IF(I22=23%,J22,IF(I23=28.5%,J23,IF(I24=35%,J24,IF(I25=37%,J25,IF(I26=45%,J26,IF(I27=48%,J27))))))))) -> FALSE
B29: Continente | D29: =IF(O18=1,F28+H28+J28,) -> 0 | E29: =IF(O18=1,E28+G28+I28,) -> 0
B30: Açores | D30: =IF(O18=2,F28+H28+J28,) -> 0 | E30: =IF(O18=2,E28+G28+I28,) -> 0
B31: Madeira | D31: =IF(O18=3,F28+H28+J28,) -> 0 | E31: =IF(O18=3,E28+G28+I28,) -> 0
B32: =IF(E28+G28+I28<0,0,SUM(E29+E30+E31)) -> 0 | D32: ← Taxa Normal | F32: =Simulação!G72 -> 0 | H32: ← Rendimento Coletável
B33: =IF(F28+H28+J28<0,0,SUM(D29+D30+D31)) -> 0 | D33: ← Parcel a Abater | F33: =Simulação!G74 -> 0 | H33: ← Rendimento para o apuramento da taxa
G34: =N34 -> 0 | H34: N.º de Filhos → | J34: =SUM('Modelo 3'!G16+'Modelo 3'!G17+'Modelo 3'!H16+'Modelo 3'!H17+'Modelo 3'!I16+'Modelo 3'!I17+'Modelo 3'!J16+'Modelo 3'!J17) -> 0 | K34: =IF(J34>=5,0,IF(J34>=3,H85,)) -> 0 | L34: =IF(J34>=5,H86,) -> 0 | M34: =SUM(K34+L34) -> 0 | N34: =IF(N18=0,M34,IF(N18=1,M34*2)) -> 0
B36: Art.º 68.º do CIRS - Taxas Gerais | E36: Tributação separada, Sujeito passivo A | O36: =IF(O37=TRUE,4,IF(O38=TRUE,1,IF(O39=TRUE,1,'Anexo A'!S46))) -> 1
B37: Rendimento Colectável | E37: Continente | G37: Açores | I37: Madeira | O37: ='Modelo 3'!D43 -> 0
B38: Escalões | C38: Mais de | D38: Até | E38: T. normal | F38: P. a abater | G38: T. normal | H38: P. a abater | I38: T. normal | J38: P. a abater | O38: ='Modelo 3'!E43 -> 0
B39: 1º Escalão | C39: =C21 -> 0 | D39: =D21 -> 7091 | E39: =IF(F51<=D39,14.5%) -> 0.145 | F39: 0 | G39: =IF(F51<=D39,10.15%) -> 0.1015 | H39: 0 | I39: =IF(F51<=D39,12.41%) -> 0.1241 | J39: 0 | O39: ='Modelo 3'!F43 -> 0
B40: 2º Escalão | C40: =C22 -> 7091 | D40: =D22 -> 10700 | E40: =IF(F51<=D40,23%) -> 0.23 | F40: 602.74 | G40: =IF(F51<=D40,17.25%) -> 0.1725 | H40: 503.46 | I40: =IF(F51<=D40,23%) -> 0.23 | J40: 750.94
B41: 3º Escalão | C41: =C23 -> 10700 | D41: 20261 | E41: =IF(F51<=D41,28.5%) -> 0.285 | F41: 1191.23 | G41: =IF(F51<=D41,21.38%) -> 0.2138 | H41: 945.35 | I41: =IF(F51<=D41,28.5%) -> 0.285 | J41: 1339.43
B42: 4º Escalão | C42: 20261 | D42: 25000 | E42: =IF(F51<=D42,35%) -> 0.35 | F42: 2508.11 | G42: =IF(F51<=D42,28%) -> 0.28 | H42: 2286.66 | I42: =IF(F51<=D42,35%) -> 0.35 | J42: 2656.42
B43: 5º Escalão | C43: 25000 | D43: 36856 | E43: =IF(F51<=D43,37%) -> 0.37 | F43: 3008.25 | G43: =IF(F51<=D43,29.6%) -> 0.296 | H43: 2686.75 | I43: =IF(F51<=D43,37%) -> 0.37 | J43: 3156.5
B44: 6º Escalão | C44: 36856 | D44: 80640 | E44: =IF(F51<=D44,45%) -> 0.45 | F44: 5956.67 | G44: =IF(F51<=D44,36%) -> 0.36 | H44: 5045.59 | I44: =IF(F51<=D44,45%) -> 0.45 | J44: 6104.83
B45: 7º Escalão | C45: > | D45: 80640 | E45: =IF(F51>D45,48%) -> FALSE | F45: 8376.08 | G45: =IF(F51>D45,38.4%) -> FALSE | H45: 6981 | I45: =IF(F51>D45,48%) -> FALSE | J45: 8524.45
E46: =IF(O36=1,IF(F50<=G52,0%,MIN(E39:E45))) -> 0 | F46: =IF(O36=1,IF(F50<=G52,0,IF(E39=14.5%,F39,IF(E40=23%,F40,IF(E41=28.5%,F41,IF(E42=35%,F42,IF(E43=37%,F43,IF(E44=45%,F44,IF(E45=48%,F45))))))))) -> 0 | G46: =IF(O36=2,IF(F50<=G52,0%,MIN(G39:G45))) -> FALSE | H46: =IF(O36=2,IF(F50<=G52,0,IF(G39=10.15%,H39,IF(G40=17.25%,H40,IF(G41=21.38%,H41,IF(G42=28%,H42,IF(G43=29.6%,H43,IF(G44=36%,H44,IF(G45=38.4%,H45))))))))) -> FALSE | I46: =IF(O36=3,IF(F50<=G52,0%,MIN(I39:I45))) -> FALSE | J46: =IF(O36=3,IF(F50<=G52,0,IF(I39=12.41%,J39,IF(I40=23%,J40,IF(I41=28.5%,J41,IF(I42=35%,J42,IF(I43=37%,J43,IF(I44=45%,J44,IF(I45=48%,J45))))))))) -> FALSE
B47: Continente | D47: =IF(O36=1,F46+H46+J46,) -> 0 | E47: =IF(O36=1,E46+G46+I46,) -> 0
B48: Açores | D48: =IF(O36=2,F46+H46+J46,) -> 0 | E48: =IF(O36=2,E46+G46+I46,) -> 0
B49: Madeira | D49: =IF(O36=3,F46+H46+J46,) -> 0 | E49: =IF(O36=3,E46+G46+I46,) -> 0
B50: =IF(E46+G46+I46<0,0,SUM(E47+E48+E49)) -> 0 | D50: ← Taxa Normal | F50: =Simulação!H72 -> 0 | H50: ← Rendimento Coletável
B51: =IF(F46+H46+J46<0,0,SUM(D47+D48+D49)) -> 0 | D51: ← Parcel a Abater | F51: =Simulação!H74 -> 0 | H51: ← Rendimento para o apuramento da taxa
G52: =M52 -> 0 | H52: N.º de Filhos → | J52: =SUM(J34) -> 0 | K52: =IF(J52>=5,0,IF(J52>=3,H85,)) -> 0 | L52: =IF(J52>=5,H86,) -> 0 | M52: =SUM(K52+L52) -> 0
B54: Art.º 68.º do CIRS - Taxas Gerais | E54: Tributação separada, Sujeito passivo B | O54: =IF(O55=TRUE,4,IF(O56=TRUE,1,IF(O57=TRUE,1,'Anexo A'!S46))) -> 1
B55: Rendimento Colectável | E55: Continente | G55: Açores | I55: Madeira | O55: ='Modelo 3'!D43 -> 0
B56: Escalões | C56: Mais de | D56: Até | E56: T. normal | F56: P. a abater | G56: T. normal | H56: P. a abater | I56: T. normal | J56: P. a abater | O56: ='Modelo 3'!E43 -> 0
B57: 1º Escalão | C57: =C39 -> 0 | D57: =D39 -> 7091 | E57: =IF(F69<=D57,14.5%) -> 0.145 | F57: 0 | G57: =IF(F69<=D57,10.15%) -> 0.1015 | H57: 0 | I57: =IF(F69<=D57,12.41%) -> 0.1241 | J57: 0 | O57: ='Modelo 3'!F43 -> 0
B58: 2º Escalão | C58: =C40 -> 7091 | D58: =D40 -> 10700 | E58: =IF(F69<=D58,23%) -> 0.23 | F58: 602.74 | G58: =IF(F69<=D58,17.25%) -> 0.1725 | H58: 503.46 | I58: =IF(F69<=D58,23%) -> 0.23 | J58: 750.94
B59: 3º Escalão | C59: =C41 -> 10700 | D59: 20261 | E59: =IF(F69<=D59,28.5%) -> 0.285 | F59: 1191.23 | G59: =IF(F69<=D59,21.38%) -> 0.2138 | H59: 945.35 | I59: =IF(F69<=D59,28.5%) -> 0.285 | J59: 1339.43
B60: 4º Escalão | C60: =C42 -> 20261 | D60: 25000 | E60: =IF(F69<=D60,35%) -> 0.35 | F60: 2508.11 | G60: =IF(F69<=D60,28%) -> 0.28 | H60: 2286.66 | I60: =IF(F69<=D60,35%) -> 0.35 | J60: 2656.42
B61: 5º Escalão | C61: =C43 -> 25000 | D61: 36856 | E61: =IF(F69<=D61,37%) -> 0.37 | F61: 3008.25 | G61: =IF(F69<=D61,29.6%) -> 0.296 | H61: 2686.75 | I61: =IF(F69<=D61,37%) -> 0.37 | J61: 3156.5
B62: 6º Escalão | C62: =C44 -> 36856 | D62: 80640 | E62: =IF(F69<=D62,45%) -> 0.45 | F62: 5956.67 | G62: =IF(F69<=D62,36%) -> 0.36 | H62: 5045.59 | I62: =IF(F69<=D62,45%) -> 0.45 | J62: 6104.83
B63: 7º Escalão | C63: =C45 -> > | D63: 80640 | E63: =IF(F69>D63,48%) -> FALSE | F63: 8376.08 | G63: =IF(F69>D63,38.4%) -> FALSE | H63: 6981 | I63: =IF(F69>D63,48%) -> FALSE | J63: 8524.45
E64: =IF(O54=1,IF(F68<=G70,0%,MIN(E57:E63))) -> 0 | F64: =IF(O54=1,IF(F68<=G70,0,IF(E57=14.5%,F57,IF(E58=23%,F58,IF(E59=28.5%,F59,IF(E60=35%,F60,IF(E61=37%,F61,IF(E62=45%,F62,IF(E63=48%,F63))))))))) -> 0 | G64: =IF(O54=2,IF(F68<=G70,0%,MIN(G57:G63))) -> FALSE | H64: =IF(O54=2,IF(F68<=G70,0,IF(G57=10.15%,H57,IF(G58=17.25%,H58,IF(G59=21.38%,H59,IF(G60=28%,H60,IF(G61=29.6%,H61,IF(G62=36%,H62,IF(G63=38.4%,H63))))))))) -> FALSE | I64: =IF(O54=3,IF(F68<=G70,0%,MIN(I57:I63))) -> FALSE | J64: =IF(O54=3,IF(F68<=G70,0,IF(I57=12.41%,J57,IF(I58=23%,J58,IF(I59=28.5%,J59,IF(I60=35%,J60,IF(I61=37%,J61,IF(I62=45%,J62,IF(I63=48%,J63))))))))) -> FALSE
B65: Continente | D65: =IF(O54=1,F64+H64+J64,) -> 0 | E65: =IF(O54=1,E64+G64+I64,) -> 0
B66: Açores | D66: =IF(O54=2,F64+H64+J64,) -> 0 | E66: =IF(O54=2,E64+G64+I64,) -> 0
B67: Madeira | D67: =IF(O54=3,F64+H64+J64,) -> 0 | E67: =IF(O54=3,E64+G64+I64,) -> 0
B68: =IF(E64+G64+I64<0,0,SUM(E65+E66+E67)) -> 0 | D68: ← Taxa Normal | F68: =Simulação!I72 -> 0 | H68: ← Rendimento Coletável
B69: =IF(F64+H64+J64<0,0,SUM(D65+D66+D67)) -> 0 | D69: ← Parcel a Abater | F69: =Simulação!I74 -> 0 | H69: ← Rendimento para o apuramento da taxa
G70: =M70 -> 0 | H70: N.º de Filhos → | J70: =SUM(J34) -> 0 | K70: =IF(J70>=5,0,IF(J70>=3,H85,)) -> 0 | L70: =IF(J70>=5,H86,) -> 0 | M70: =SUM(K70+L70) -> 0
B72: Art.º 68.º - A do CIRS - Taxa adicional | N72: ='Anexo A'!R46 -> 1 | O72: =IF(O73=TRUE,4,IF(O74=TRUE,1,IF(O75=TRUE,1,'Anexo A'!S46))) -> 1
B73: Taxas → | D73: =SUM(F73+H73) -> 0 | E73: =SUM(G73+I73) -> 0 | F73: =IF(O72=1,IF(D76>=D74,2.5%,IF(O72=1,IF(E76>=D74,2.5%,IF(O72=1,IF(F76>=D74,2.5%,)))))) -> 0 | G73: =IF(O72=1,IF(D76>=E74,5%,IF(O72=1,IF(E76>=E74,5%,IF(O72=1,IF(F76>=E74,5%,)))))) -> 0 | H73: =IF(O72=2,IF(D76>=D74,2%,IF(O72=2,IF(E76>=D74,2%,IF(O72=2,IF(F76>=D74,2%,)))))) -> FALSE | I73: =IF(O72=2,IF(D76>=E74,4%,IF(O72=2,IF(E76>=E74,4%,IF(O72=2,IF(F76>=E74,4%,)))))) -> FALSE | O73: ='Modelo 3'!D43 -> 0
B74: Limites → | D74: 80000 | E74: 250000 | F74: =E74-D74 -> 170000 | O74: ='Modelo 3'!E43 -> 0
D75: SP A+B | E75: SP A | F75: SP B | K75: SP A+B | L75: SP A | M75: SP B | O75: ='Modelo 3'!F43 -> 0
B76: R.Coletavel → | D76: =Simulação!I15 -> 0 | E76: =Simulação!J15 -> 0 | F76: =Simulação!K15 -> 0 | K76: =D78+G78 -> 0 | L76: =E78+H78 -> 0 | M76: =F78+I78 -> 0
D77: 0.025 | G77: 0.05
B78: SOMA TOTAL → | D78: =IF(D76<D74,0,IF(D76<E74,(D76-D74)*D73,IF(D76>D74,(E74-D74)*D73))) -> 0 | E78: =IF(E76<D74,0,IF(E76<E74,(E76-D74)*D73,IF(E76>D74,(E74-D74)*D73))) -> 0 | F78: =IF(F76<D74,0,IF(F76<E74,(F76-D74)*D73,IF(F76>D74,(E74-D74)*D73))) -> 0 | G78: =IF(D76>E74,(D76-E74)*E73,) -> 0 | H78: =IF(E76>E74,(E76-E74)*E73,) -> 0 | I78: =IF(F76>E74,(F76-E74)*E73,) -> 0
B79: Continente | D79: SOMA | E79: =IF(N72=0,K76,SUM(L76:M76)) -> 0 | F79: =IF(O72=1,E79,) -> 0 | I79: T. Separado
B80: Açores | D80: SOMA | E80: =IF(E79<0,0,E79) -> 0 | F80: =IF(O72=2,E80,) -> 0 | H80: SP A→ | I80: =IF(O72>=4,0,SUM(K80,)) -> 0 | K80: =IF(E76=0,0,IF(N72=0,0,SUM(L76,))) -> 0
B81: Madeira | D81: SOMA | E81: =IF(E79<0,0,E79) -> 0 | F81: =IF(O72=3,E81,) -> 0 | H81: SP B→ | I81: =IF(O72>=4,0,SUM(K81,)) -> 0 | K81: =IF(F76=0,0,IF(N72=0,0,SUM(M76,))) -> 0
B82: =IF(E79<0,0,SUM(F79:G81)) -> 0 | D82: ← Soma-se à Importância Apurada
B84: Art.º 70.º do CIRS - Mínimo de Existência | I84: Não são aplicadas as taxas estabelecidas no artigo 68.º: ↓
B85: Limites → | D85: =E85*F85*G85 -> 9006.9 | E85: 14 | F85: ='Modelo 3'!G36 -> 428.9 | G85: 1.5 | H85: =IF(G86=2,11320/2,IF(G86=4,11320/2,IF(G86=6,11320/2,11320))) -> 5660 | I85: ← A quem tenha três ou quatro dependentes cujo montante seja igual ou inferior a € 11 320;
G86: ='Modelo 3'!C59 -> 2 | H86: =IF(G86=2,15560/2,IF(G86=4,15560/2,IF(G86=6,15560/2,15560))) -> 7780 | I86: ← A quem tenha cinco ou mais dependentes cujo montante seja igual ou inferior a € 15 560.
C87: =IF(E94>=D87,0,(Simulação!G66-Simulação!G83-F87-F90)) -> 0
D88: Sujeito Passivo A + B | H88: Sujeito Passivo A | L88: Sujeito Passivo B | O88: =N72 -> 1
B89: Cat. A + cat. H + R.Verdes | D89: =IF(Simulação!G72=0,0,SUM('Anexo A'!O7+'Anexo A'!Q7+'Anexo A'!O22+'Anexo A'!O23+'Anexo A'!O24+'Anexo A'!O26+'Anexo A'!Q22+'Anexo A'!Q23+'Anexo A'!Q24+'Anexo A'!Q26+'Anexo B'!P16+'Anexo B'!R16+'Anexo J'!L7+'Anexo J'!N7+'Anexo J'!L13+'Anexo J'!N13)+E95) -> 0 | E89: =I89+M89 -> 18013.8 | F89: =J89+N89 -> 0 | H89: =SUM('Anexo A'!O7+'Anexo A'!O22+'Anexo A'!O23+'Anexo A'!O24+'Anexo A'!O26+'Anexo B'!P16+'Anexo J'!L7+'Anexo J'!L13)+F95 -> 0 | I89: =D85 -> 9006.9 | J89: =IF(H94>=I89,H94-I89,IF(H94<I89,0,)) -> 0 | L89: =SUM('Anexo A'!Q7+'Anexo A'!Q22+'Anexo A'!Q23+'Anexo A'!Q24+'Anexo A'!Q26+'Anexo B'!R16+'Anexo J'!N7+'Anexo J'!N13)+F95 -> 0 | M89: =D85 -> 9006.9 | N89: =IF(L94>=M89,L94-M89,IF(L94<M89,0,)) -> 0
B90: Cat. B | D90: =SUM('Anexo B'!P10+'Anexo B'!P11+'Anexo B'!P12+'Anexo B'!P13+'Anexo B'!P14+'Anexo B'!P15+'Anexo B'!P17+'Anexo B'!P18+'Anexo B'!R10+'Anexo B'!R11+'Anexo B'!R12+'Anexo B'!R13+'Anexo B'!R14+'Anexo B'!R15+'Anexo B'!R17+'Anexo B'!R18+'Anexo B'!P20+'Anexo B'!P21+'Anexo B'!P22+'Anexo B'!P23+'Anexo B'!P24+'Anexo B'!P25+'Anexo B'!P26+'Anexo B'!P27+'Anexo B'!R20+'Anexo B'!R21+'Anexo B'!R22+'Anexo B'!R23+'Anexo B'!R24+'Anexo B'!R25+'Anexo B'!R26+'Anexo B'!R27) -> 0 | F90: =(Simulação!G66-Simulação!G80) -> 0 | H90: =SUM('Anexo B'!P10+'Anexo B'!P11+'Anexo B'!P12+'Anexo B'!P13+'Anexo B'!P14+'Anexo B'!P15+'Anexo B'!P17+'Anexo B'!P18+'Anexo B'!P20+'Anexo B'!P21+'Anexo B'!P22+'Anexo B'!P23+'Anexo B'!P24+'Anexo B'!P25+'Anexo B'!P26+'Anexo B'!P27) -> 0 | J90: =Simulação!H66-Simulação!H80 -> 0 | L90: =SUM('Anexo B'!R10+'Anexo B'!R11+'Anexo B'!R12+'Anexo B'!R13+'Anexo B'!R14+'Anexo B'!R15+'Anexo B'!R17+'Anexo B'!R18+'Anexo B'!R20+'Anexo B'!R21+'Anexo B'!R22+'Anexo B'!R23+'Anexo B'!R24+'Anexo B'!R25+'Anexo B'!R26+'Anexo B'!R27) -> 0 | N90: =Simulação!I66-Simulação!I80 -> 0
B91: Cat. E | D91: =SUM('Anexo E'!P8+'Anexo E'!R8+'Anexo E'!P18+'Anexo E'!R18) -> 0 | F91: =IF(E94>=D89,0,(Simulação!G66-Simulação!G83-F89-F90)) -> 0 | H91: =SUM('Anexo E'!P8+'Anexo E'!P18) -> 0 | J91: =IF(I94>=H89,0,(Simulação!H66-Simulação!H83-J89-J90)) -> 0 | L91: =SUM('Anexo E'!R8+'Anexo E'!R18) -> 0 | N91: =IF(M94>=L89,0,(Simulação!I66-Simulação!I83-N89-N90)) -> 0
B92: Cat. F | D92: =SUM('Anexo F'!Q9+'Anexo F'!S9+'Anexo F'!Q10+'Anexo F'!S10) -> 0 | H92: =SUM('Anexo F'!Q9+'Anexo F'!Q10) -> 0 | L92: =SUM('Anexo F'!S9+'Anexo F'!S10) -> 0
B93: Cat. G | D93: =SUM('Anexo G'!B65+'Anexo G'!B89) -> 0 | H93: =SUM('Anexo G'!I63+'Anexo G'!I87) -> 0 | L93: =SUM('Anexo G'!I64+'Anexo G'!I88) -> 0
B94: SOMA → | D94: =IF(D90+D91+D92+D93>D89,0,SUM(D89:D93)) -> 0 | E94: =SUM(D90:D93) -> 0 | F94: =IF(O72>=4,0,IF(F91<=0,0,SUM(F91))) -> 0 | H94: =IF(H90+H91+H92+H93>H89,0,SUM(H89:H93)) -> 0 | I94: =SUM(H90:H93) -> 0 | J94: =IF(O72>=4,0,IF(J91<=0,0,SUM(J91))) -> 0 | L94: =IF(L90+L91+L92+L93>L89,0,SUM(L89:L93)) -> 0 | M94: =SUM(L90:L93) -> 0 | N94: =IF(O72>=4,0,IF(N91<=0,0,SUM(N91))) -> 0
B95: Rendimento dos dependentes | E95: =SUM('Anexo A'!S7+'Anexo A'!U7+'Anexo A'!W7+'Anexo A'!Y7+'Anexo A'!S22+'Anexo A'!S23+'Anexo A'!S24+'Anexo A'!S26+'Anexo A'!U22+'Anexo A'!U23+'Anexo A'!U24+'Anexo A'!U26+'Anexo A'!W22+'Anexo A'!W23+'Anexo A'!W24+'Anexo A'!W26+'Anexo A'!Y22+'Anexo A'!Y23+'Anexo A'!Y24+'Anexo B'!T16+'Anexo B'!V16) -> 0 | F95: =IF(O88=1,E95/2,E95) -> 0
B98: =E85*F85*G85 -> 9006.9 | C98: Mínimo de existência
B99: ='Modelo 3'!E36*E85 -> 8120 | C99: O valor do mínimo de existência não pode ser inferior a este
B100: Cálculo é: | C100: Rendimento Bruto - Valor apurado | F100: =Simulação!I8-Simulação!I21 -> 0 | G100: - limite artigo 70º | I100: =IF(E94>=D89,0,(Simulação!I8-Simulação!I24)-F89-F90) -> 0 | J100: =J94 -> 0 | K100: =N94 -> 0 | L100: =J100+K100 -> 0
C101: Rendimento ilíquido - limite artigo 70º - beneficio municipal= coleta liquida
B107: FIM

Sheet Simulação
I3: =IF('Modelo 3'!D38>=1,"Opção pela entrega em Separado",IF('Modelo 3'!K38>=1,"Opção pela entrega em conjunto"," ")) -> Opção pela entrega em Separado
B4: =B44 -> Residência: Continente | I4: =TEXT(B46,) -> Sujeito Passivo A+B Casados, opção pela tributação conjunta | J4: =TEXT(B47,) -> Sujeito Passivo A Casado, opção pela tributação separada | K4: =TEXT(B48,) -> Sujeito Passivo B Casado, opção pela tributação separada
B6: Descrição
I7: Valores | J7: Valores | K7: Valores
B8: 01 - Rendimento global | I8: =G66 -> 0 | J8: =H66 -> 0 | K8: =I66 -> 0
B9: 02 - Deduções específicas | I9: =G68 -> 0 | J9: =H68 -> 0 | K9: =I68 -> 0
B10: 03 - Perdas a recuperar | I10: =G69 -> 0 | J10: =H69 -> 0 | K10: =I69 -> 0
B11: 04 - Abatimentos | I11: 0 | J11: 0 | K11: 0
B12: 05 - Quociente dos rendimentos de anos anteriores | I12: =G71 -> 0 | J12: 0 | K12: 0
B13: 06 - Rendimento coletável | I13: 0 | J13: 0 | K13: 0
B14: 07 - Coeficiente conjugal | G14: =TEXT(A484,) ->  | I14: 0 | J14: 0 | K14: 0
B15: 08 - Rendimento coletável corrigido | F15: Valor para o apuramento da TAXA ➤ | I15: 0 | J15: 0 | K15: 0
B16: =TEXT(B45,) -> 09 - Taxa de IRS para o Continente | H16: Escalões ➤ | I16: =TEXT(B49,) ->  | J16: =TEXT(B51,) ->  | K16: =TEXT(B53,) -> 
I17: =G75 -> 0 | J17: 0 | K17: 0
B18: 10 - Importância apurada | I18: 0 | J18: 0 | K18: 0
B19: 11 - Parcela a abater | I19: 0 | J19: 0 | K19: 0
B20: 12 - Imposto de rendimentos de anos anteriores | I20: 0 | J20: 0 | K20: 0
B21: 13 - Valor apurado | I21: =G80 -> 0 | J21: 0 | K21: 0
B22: 14 - Imposto relativo a tributações autónomas | I22: =G81 -> 0 | J22: =H81 -> 0 | K22: 0
B23: 15 - Coleta total | I23: 0 | J23: 0 | K23: 0
B24: 16 - Deduções à coleta | I24: =G83 -> 0 | J24: =H83 -> 0 | K24: 0
B25: 17 - Crédito de imposto | I25: =G84 -> 0 | J25: 0 | K25: 0
B26: 18 - Benefício Municipal | I26: =G87 -> 0 | J26: 0 | K26: 0
B27: 19 - Coleta líquida | I27: =G89 -> 0 | J27: =H89 -> 0 | K27: 0
B28: 20 - Pagamentos por conta | I28: 0 | J28: 0 | K28: 0
B29: 21 - Retenções na fonte | I29: 0 | J29: 0 | K29: 0
B30: 22 - Imposto apurado (SP A+B Tributação Conjunta) | G30: =B95 -> NÃO RECEBE, NEM PAGA ➤ | I30: =G93 -> 0
B31: 23 - Imposto apurado (SP A Tributação Separada) | H31: =B96 -> NÃO RECEBE, NEM PAGA ➤ | J31: =H93 -> 0
B32: 24 - Imposto apurado (SP B Tributação Separada) | I32: =B97 -> NÃO RECEBE, NEM PAGA ➤ | K32: =I93 -> 0
I34: =TEXT(B57,) ->  | J34: =TEXT(B58,) ->  | K34: =TEXT(B59,) -> 
B35: =TEXT(B56,) ->  | D35: =TEXT(B55,) ->  | I35: =H56 ->  | J35: =I56 ->  | K35: =J56 -> 
B41: INICIO
B43: ='Modelo 3'!F52 -> 1 | C43: ='Modelo 3'!C58 -> 2
B44: =IF(B43<>"",IF(B43=1,"Residência: Continente ",IF(B43=2,"Residência: Região Autónoma dos Açores",IF(B43=3,"Residência: Região Autónoma da Madeira",IF(B43=4,"Residência: País da comunidade europeia",IF(B43=5,"Residência: País fora da comunidade europeia",)))))) -> Residência: Continente
B45: =IF(B43=1,"09 - Taxa de IRS para o Continente",IF(B43=2,"09 - Taxa de IRS para a R. A. dos Açores",IF(B43=3,"09 - Taxa de IRS para a R. A. da Madeira",IF(B43>=4,"09 - Taxa de IRS",)))) -> 09 - Taxa de IRS para o Continente
B46: =IF(C43=1,"Sujeito Passivo A+B Casados, opção pela tributação conjunta",IF(C43=2,"Sujeito Passivo A+B Casados, opção pela tributação conjunta",IF(C43=3,"Sujeito Passivo A+B Unidos de Facto, opção pela tributação conjunta",IF(C43=4,"Sujeito Passivo A+B Unidos de Facto, opção pela tributação conjunta",IF(C43=5,"Sujeito Passivo A+B Viúvo(a), opção pela tributação conjunta",IF(C43=6,"Sujeito Passivo A+B Viúvo(a), opção pela tributação conjunta",IF(C43=7,"Sujeito Passivo A Viúvo(a)",IF(C43=8,"Sujeito Passivo A Solteiro(a)",IF(C43=9,"Sujeito Passivo A Divorciado(a)",IF(C43=10,"Sujeito Passivo A Separado(a) Judicialmente",IF(C43=11,"Sujeito Passivo A Separado(a) de Facto",))))))))))) -> Sujeito Passivo A+B Casados, opção pela tributação conjunta
B47: =IF(C43=2,"Sujeito Passivo A Casado, opção pela tributação separada",IF(C43=4,"Sujeito Passivo A Unido de Facto, opção pela tributação separada",IF(C43=6,"Sujeito Passivo A Viúvo(a), opção pela tributação separada",))) -> Sujeito Passivo A Casado, opção pela tributação separada
B48: =IF(C43=2,"Sujeito Passivo B Casado, opção pela tributação separada",IF(C43=4,"Sujeito Passivo B Unido de Facto, opção pela tributação separada",IF(C43=6,"Sujeito Passivo B Falecido(a), opção pela tributação separada",))) -> Sujeito Passivo B Casado, opção pela tributação separada
B49: =IF(B50=1,"1º Escalão",IF(B50=2,"2º Escalão",IF(B50=3,"3º Escalão",IF(B50=4,"4º Escalão",IF(B50=5,"5º Escalão",IF(B50=6,"6º Escalão",IF(B50=7,"7º Escalão",))))))) -> 0 | H49: =Artigos!E28 -> 0 | I49: =Artigos!G28 -> FALSE | J49: =Artigos!I28 -> FALSE
B50: =IF(H49=14.5%,1,IF(H49=23%,2,IF(H49=28.5%,3,IF(H49=35%,4,IF(H49=37%,5,IF(H49=45%,6,IF(H49=48%,7,IF(I49=10.15%,1,IF(I49=17.25%,2,IF(I49=21.38%,3,IF(I49=28%,4,IF(I49=29.6%,5,IF(I49=36%,6,IF(I49=38.4%,7,IF(J49=12.41%,1,IF(J49=23%,2,IF(J49=28.5%,3,IF(J49=35%,4,IF(J49=37%,5,IF(J49=45%,6,IF(J49=48%,7,))))))))))))))))))))) -> 0 | H50: =Artigos!E46 -> 0 | I50: =Artigos!G46 -> FALSE | J50: =Artigos!I46 -> FALSE
B51: =IF(B52=1,"1º Escalão",IF(B52=2,"2º Escalão",IF(B52=3,"3º Escalão",IF(B52=4,"4º Escalão",IF(B52=5,"5º Escalão",IF(B52=6,"6º Escalão",IF(B52=7,"7º Escalão",))))))) -> 0 | H51: =Artigos!E64 -> 0 | I51: =Artigos!G64 -> FALSE | J51: =Artigos!I64 -> FALSE
B52: =IF(H50=14.5%,1,IF(H50=23%,2,IF(H50=28.5%,3,IF(H50=35%,4,IF(H50=37%,5,IF(H50=45%,6,IF(H50=48%,7,IF(H50=10.15%,1,IF(I50=17.25%,2,IF(I50=21.38%,3,IF(I50=28%,4,IF(I50=29.6%,5,IF(I50=36%,6,IF(I50=38.4%,7,IF(J50=12.41%,1,IF(J50=23%,2,IF(J50=28.5%,3,IF(J50=35%,4,IF(J50=37%,5,IF(J50=45%,6,IF(J50=48%,7,))))))))))))))))))))) -> 0
B53: =IF(B54=1,"1º Escalão",IF(B54=2,"2º Escalão",IF(B54=3,"3º Escalão",IF(B54=4,"4º Escalão",IF(B54=5,"5º Escalão",IF(B54=6,"6º Escalão",IF(B54=7,"7º Escalão",))))))) -> 0
B54: =IF(H51=14.5%,1,IF(H51=23%,2,IF(H51=28.5%,3,IF(H51=35%,4,IF(H51=37%,5,IF(H51=45%,6,IF(H51=48%,7,IF(I51=10.15%,1,IF(I51=17.25%,2,IF(I51=21.38%,3,IF(I51=28%,4,IF(I51=29.6%,5,IF(I51=36%,6,IF(I51=38.4%,7,IF(J51=12.41%,1,IF(J51=23%,2,IF(J51=28.5%,3,IF(J51=35%,4,IF(J51=37%,5,IF(J51=45%,6,IF(J51=48%,7,))))))))))))))))))))) -> 0
B55: =IF(Artigos!F94+Artigos!J94+Artigos!N94>=1," Mínimo de existência a aplicar prevista no art.º 70.º do CIRS ➤",) -> 0 | H55: =G86 -> 0 | I55: =H86 -> 0 | J55: =I86 -> 0
B56: =IF(Artigos!F94+Artigos!J94+Artigos!N94>=1,"AJUSTES À COLETA: ",) -> 0 | H56: =IF(H55=0,"",H55) ->  | I56: =IF(I55=0,"",I55) ->  | J56: =IF(J55=0,"",J55) -> 
B57: =IF(H55>=1,"S. Passiva A+B ▼",) -> 0
B58: =IF(I55>=1,"S. Passiva A ▼",) -> 0
B59: =IF(J55>=1,"S. Passiva B ▼",) -> 0
B62: DEMONSTRAÇÃO DETALHADA DO CÁLCULO
B63: Sujeito passivo A + B | H63: S. Passivo A | I63: S. Passivo B | J63: =IF('Anexo A'!R46=1,3,) -> 3 | K63: ='Modelo 3'!D38 -> 1
B64: Quociente Conjugal → | E64: ='Modelo 3'!C59 -> 2 | F64: =IF(G66>1,E64,) -> 0 | G64: Q. Conjugal → | H64: 1 | I64: ← Q. Conjugal | J64: SOMA Anexo A | M64: SOMA Anexo B | P64: SOMA Anexo E | S64: SOMA Anexo F | V64: SOMA Anexo G
B65: Descrição | G65: Valores | H65: Valores | I65: Valores | J65: SP A+B Conjunta | K65: SP A Separado | L65: SP B Separado | M65: SP A+B Conjunta | N65: SP A Separado | O65: SP B Separado | P65: SP A+B Conjunta | Q65: SP A Separado | R65: SP B Separado | S65: SP A+B Conjunta | T65: SP A Separado | U65: SP B Separado | V65: SP A+B Conjunta | W65: SP A Separado | X65: SP B Separado
B66: 01 - Rendimento global | G66: =J66+M66+P66+S66+V66 -> 0 | H66: =K66+N66+Q66+T66+W66 -> 0 | I66: =L66+O66+R66+U66+X66 -> 0 | J66: ='Anexo A'!B55+'Anexo A'!B178+'Anexo A'!B188+'Anexo A'!B198 -> 0 | K66: =IF(J63=3,'Anexo A'!K53+'Anexo A'!J176+'Anexo A'!J186+'Anexo A'!J196,) -> 0 | L66: =IF(J63=3,'Anexo A'!K54+'Anexo A'!J177+'Anexo A'!J187+'Anexo A'!J197,) -> 0 | M66: ='Anexo B'!B126+'Anexo B'!B146+'Anexo B'!B182 -> 0 | N66: =IF(J63=3,'Anexo B'!I124+'Anexo B'!I144+'Anexo B'!I180,) -> 0 | O66: =IF(J63=3,'Anexo B'!I125+'Anexo B'!I145+'Anexo B'!I181,) -> 0 | P66: ='Anexo E'!B51 -> 0 | Q66: =IF(J63=3,'Anexo E'!I49,) -> 0 | R66: =IF(J63=3,'Anexo E'!I50,) -> 0 | S66: ='Anexo F'!B47 -> 0 | T66: =IF(J63=3,'Anexo F'!I45,) -> 0 | U66: =IF(J63=3,'Anexo F'!I46,) -> 0 | V66: ='Anexo G'!B65+'Anexo G'!B89+'Anexo G'!B77 -> 0 | W66: =IF(J63=3,'Anexo G'!I63+'Anexo G'!I87+'Anexo G'!I75,) -> 0 | X66: =IF(J63=3,'Anexo G'!I64+'Anexo G'!I88+'Anexo G'!I76,) -> 0
B67: 02 - Deduções específicas | G67: =J67+M67+S67 -> 0 | H67: =K67+N67+T67 -> 0 | I67: =L67+O67+U67 -> 0 | J67: ='Anexo A'!B70+'Anexo A'!B81+'Anexo A'!B93+'Anexo A'!B103+'Anexo A'!B114+'Anexo A'!B125+'Anexo A'!B220+'Anexo A'!B232 -> 0 | K67: =IF(J63=3,'Anexo A'!K68+'Anexo A'!K79+'Anexo A'!K91+'Anexo A'!K101+'Anexo A'!K112+'Anexo A'!K123+'Anexo A'!J218+'Anexo A'!J230,) -> 0 | L67: =IF(J63=3,'Anexo A'!K69+'Anexo A'!K80+'Anexo A'!K92+'Anexo A'!K102+'Anexo A'!K113+'Anexo A'!K124+'Anexo A'!J219+'Anexo A'!J231,) -> 0 | M67: ='Anexo B'!B162 -> 0 | N67: =IF(J63=3,'Anexo B'!I160,) -> 0 | O67: =IF(J63=3,'Anexo B'!I161,) -> 0 | S67: ='Anexo F'!B70 -> 0 | T67: =IF(J63=3,'Anexo F'!I68,) -> 0 | U67: =IF(J63=3,'Anexo F'!I69,) -> 0
G68: =IF(G67>=G66,G66,IF(G67<G66,G67,0)) -> 0 | H68: =IF(H67>=H66,H66,IF(H67<H66,H67,0)) -> 0 | I68: =IF(I67>=I66,I66,IF(I67<I66,I67,0)) -> 0
B69: 03 - Perdas a recuperar (Prejuízos) | G69: =M69+P69+S69+V69 -> 0 | H69: =N69+Q69+T69+W69 -> 0 | I69: =O69+R69+U69+X69 -> 0 | M69: ='Anexo B'!B192 -> 0 | N69: =IF(J63=3,'Anexo B'!I190,) -> 0 | O69: =IF(J63=3,'Anexo B'!I191,) -> 0 | P69: ='Anexo E'!B71 -> 0 | Q69: =IF(J63=3,'Anexo E'!I69,) -> 0 | R69: =IF(J63=3,'Anexo E'!I70,) -> 0 | S69: ='Anexo F'!B80 -> 0 | T69: =IF(J63=3,'Anexo F'!I78,) -> 0 | U69: =IF(J63=3,'Anexo F'!I79,) -> 0 | V69: ='Anexo G'!B112 -> 0 | W69: =IF(J63=3,'Anexo G'!I110,) -> 0 | X69: =IF(J63=3,'Anexo G'!I111,) -> 0
B70: 04 - Abatimentos | G70: 0 | H70: 0 | I70: 0
B71: 05 - Quociente rendimentos de anos anteriores | G71: =J71+M71+P71+S71+V71 -> 0 | H71: =K71+N71+Q71+T71+W71 -> 0 | I71: =L71+O71+R71+U71+X71 -> 0 | J71: ='Anexo A'!B166+'Anexo A'!B261 -> 0 | K71: =IF(J63=3,'Anexo A'!N164+'Anexo A'!N259,) -> 0 | L71: =IF(J63=3,'Anexo A'!Q164+'Anexo A'!Q259,) -> 0 | M71: ='Anexo B'!B223 -> 0 | N71: =IF(J63=3,'Anexo B'!N221,) -> 0 | O71: =IF(J63=3,'Anexo B'!Q221,) -> 0 | P71: ='Anexo E'!B92 -> 0 | Q71: =IF(J63=3,'Anexo E'!N90,) -> 0 | R71: =IF(J63=3,'Anexo E'!Q90,) -> 0 | S71: ='Anexo F'!B101 -> 0 | T71: =IF(J63=3,'Anexo F'!N99,) -> 0 | U71: =IF(J63=3,'Anexo F'!Q99,) -> 0 | V71: ='Anexo G'!B123 -> 0 | W71: =IF(J63=3,'Anexo G'!N121,) -> 0 | X71: =IF(J63=3,'Anexo G'!Q121,) -> 0
B72: 06 - Rendimento coletável | G72: =G66-G68-G69-G70-G71 -> 0 | H72: =H66-H68-H69-H70-H71 -> 0 | I72: =I66-I68-I69-I70-I71 -> 0
B73: 07 - Coeficiente conjugal | G73: =IFERROR(G72/E64,0) -> 0 | H73: =IFERROR(H72/H64,0) -> 0 | I73: =IFERROR(I72/H64,0) -> 0
B74: 08 - Rendimento coletável corrigido (Ap. Taxa) | G74: =G73 -> 0 | H74: =H73 -> 0 | I74: =I73 -> 0
B75: 09 - Taxa de IRS para o Continente | G75: =Artigos!B32 -> 0 | H75: =Artigos!B50 -> 0 | I75: =Artigos!B68 -> 0
B76: 10 - Importância apurada | G76: =(G75*G74)+Artigos!D78+Artigos!G78 -> 0 | H76: =(H75*H74)+Artigos!I80 -> 0 | I76: =(I75*I74)+Artigos!I81 -> 0
B77: 11 - Parcela a abater | G77: =Artigos!B33 -> 0 | H77: =Artigos!B51 -> 0 | I77: =Artigos!B69 -> 0
B78: 12 - Imposto de rendimentos de anos anteriores | G78: =J78+M78+P78+S78+V78 -> 0 | H78: =K78+N78+Q78+T78+W78 -> 0 | I78: =L78 -> 0 | J78: ='Anexo A'!B167+'Anexo A'!B262 -> 0 | K78: =IF(J63=3,'Anexo A'!N165+'Anexo A'!N260,) -> 0 | L78: =IF(J63=3,'Anexo A'!Q165+'Anexo A'!Q260,) -> 0 | M78: ='Anexo B'!B224 -> 0 | N78: =IF(J63=3,'Anexo B'!N222,) -> 0 | O78: =IF(J63=3,'Anexo B'!Q222,) -> 0 | P78: ='Anexo E'!B93 -> 0 | Q78: =IF(J63=3,'Anexo E'!N91,) -> 0 | R78: =IF(J63=3,'Anexo E'!Q91,) -> 0 | S78: ='Anexo F'!B102 -> 0 | T78: =IF(J63=3,'Anexo F'!N100,) -> 0 | U78: =IF(J63=3,'Anexo F'!Q100,) -> 0 | V78: ='Anexo G'!B124 -> 0 | W78: =IF(J63=3,'Anexo G'!N122,) -> 0 | X78: =IF(J63=3,'Anexo G'!Q122,) -> 0
B79: 13 - Valor apurado × | G79: =IF(G76=0,0,(G76-G77)*E64+G78) -> 0 | H79: =IF(H76=0,0,(H76-H77)*H64+H78) -> 0 | I79: =IF(I76=0,0,(I76-I77)*H64+I78) -> 0
G80: =IF(G68>=G66,0,SUM(G79)) -> 0 | H80: =IF(H68>=H66,0,SUM(H79)) -> 0 | I80: =IF(I68>=I66,0,SUM(I79)) -> 0
B81: 14 - Imposto relativo a tributações autónomas | G81: =J81+M81+P81+S81+V81 -> 0 | H81: =K81+N81+Q81+T81+W81 -> 0 | I81: =L81+O81+R81+U81+X81 -> 0 | J81: ='Anexo A'!B137+'Anexo A'!N135+'Anexo A'!N136+'Anexo A'!B209+'Anexo A'!M207+'Anexo A'!M208 -> 0 | K81: =IF(J63=3,'Anexo A'!K135+'Anexo A'!N135+'Anexo A'!J207+'Anexo A'!M207,) -> 0 | L81: =IF(J63=3,'Anexo A'!K136+'Anexo A'!N136+'Anexo A'!J208+'Anexo A'!M208,) -> 0 | M81: ='Anexo B'!Q160+'Anexo B'!Q161 -> 0 | N81: =IF(J63=3,'Anexo B'!Q160,) -> 0 | O81: =IF(J63=3,'Anexo B'!Q161,) -> 0 | P81: ='Anexo E'!B61+'Anexo E'!L59+'Anexo E'!L60 -> 0 | Q81: =IF(J63=3,'Anexo E'!I59+'Anexo E'!L59,) -> 0 | R81: =IF(J63=3,'Anexo E'!I60+'Anexo E'!L60,) -> 0 | S81: ='Anexo F'!B60+'Anexo F'!L58+'Anexo F'!L59 -> 0 | T81: =IF(J63=3,'Anexo F'!I58+'Anexo F'!L58,) -> 0 | U81: =IF(J63=3,'Anexo F'!I59+'Anexo F'!L59,) -> 0 | V81: ='Anexo G'!B100+'Anexo G'!L98+'Anexo G'!L99 -> 0 | W81: =IF(J63=3,'Anexo G'!I98+'Anexo G'!L98,) -> 0 | X81: =IF(J63=3,'Anexo G'!I99+'Anexo G'!L99,) -> 0
B82: 15 - Coleta total | G82: =G80+G81 -> 0 | H82: =H80+H81 -> 0 | I82: =I80+I81 -> 0
B83: 16 - Deduções à coleta | G83: ='Deduções à Coleta'!B36 -> 0 | H83: ='Deduções à Coleta'!C36 -> 0 | I83: ='Deduções à Coleta'!D36 -> 0
B84: 17 - Crédito de imposto | G84: ='Anexo J'!E44 -> 0 | H84: ='Anexo J'!G44 -> 0 | I84: ='Anexo J'!H44 -> 0
B85: 18 - Correções à coleta (art.º 70.º) | G85: =IF('Modelo 3'!F52>=4,0,G82-G83-G84-G81-'Anexo H'!B330) -> 0 | H85: =IF(H66=0,0,IF('Modelo 3'!F52>=4,0,H82-H83-H84-H81-'Anexo H'!B331)) -> 0 | I85: =IF(I66=0,0,IF('Modelo 3'!F52>=4,0,I82-I83-I84-I81-'Anexo H'!B332)) -> 0
G86: =Artigos!F94 -> 0 | H86: =Artigos!J94 -> 0 | I86: =Artigos!N94 -> 0
B87: 19 - Benefício Municipal | G87: =IF(G89=0,0,'Anexo H'!B330) -> 0 | H87: =IF(H89=0,0,'Anexo H'!B331) -> 0 | I87: =IF(I89=0,0,'Anexo H'!B332) -> 0
B88: 20 - Coleta líquida | G88: =IF(G82-G83<G81,G81,(G82-G83-G84-G86)) -> 0 | H88: =IF(H82-H83<H81,H81,(H82-H83-H84-H86)) -> 0 | I88: =IF(I82-I83<I81,I81,(I82-I83-I84-I86)) -> 0
G89: =IF(G88<0,0,G88)-'Anexo H'!R56+'Anexo H'!R54+'Anexo H'!T54 -> 0 | H89: =IF(H88<0,0,H88)-'Anexo H'!R56+'Anexo H'!R54 -> 0 | I89: =IF(I88<0,0,I88)-'Anexo H'!R56+'Anexo H'!T54 -> 0
B90: 21 - Pagamentos por conta | G90: =M90 -> 0 | H90: =N90 -> 0 | I90: =O90 -> 0 | M90: ='Anexo B'!B212+'Anexo B'!L210+'Anexo B'!L211 -> 0 | N90: =IF(J63=3,'Anexo B'!I210+'Anexo B'!L210,) -> 0 | O90: =IF(J63=3,'Anexo B'!I211+'Anexo B'!L211,) -> 0
B91: 22 - Retenções na fonte | G91: =J91+M91+P91+S91 -> 0 | H91: =K91+N91+Q91+T91 -> 0 | I91: =L91+O91+R91+U91 -> 0 | J91: ='Anexo A'!B147+'Anexo A'!B242 -> 0 | K91: =IF(J63=3,'Anexo A'!K145+'Anexo A'!N145+'Anexo A'!J240+'Anexo A'!N240,) -> 0 | L91: =IF(J63=3,'Anexo A'!K146+'Anexo A'!N146+'Anexo A'!J241+'Anexo A'!N241,) -> 0 | M91: ='Anexo B'!B202 -> 0 | N91: =IF(J63=3,'Anexo B'!I200+'Anexo B'!L200,) -> 0 | O91: =IF(J63=3,'Anexo B'!I201+'Anexo B'!L201,) -> 0 | P91: ='Anexo E'!B81 -> 0 | Q91: =IF(J63=3,'Anexo E'!I79+'Anexo E'!L79,) -> 0 | R91: =IF(J63=3,'Anexo E'!I80+'Anexo E'!L80,) -> 0 | S91: ='Anexo F'!B90 -> 0 | T91: =IF(J63=3,'Anexo F'!I88+'Anexo F'!L88,) -> 0 | U91: =IF(J63=3,'Anexo F'!I89+'Anexo F'!L89,) -> 0
B92: 23 - Imposto apurado | G92: =(G89-G90-G91)-G87 -> 0 | H92: =(H89-H90-H91)-H87 -> 0 | I92: =(I89-I90-I91)-I87 -> 0
G93: =ABS(SUM(G92)) -> 0 | H93: =ABS(SUM(H92)) -> 0 | I93: =ABS(SUM(I92)) -> 0
B95: =IF(G66<>1,IF(G92>G100,"VALOR A PAGAR ➤",IF(G92<-G99,"VALOR A RECEBER ➤",IF(G92<=G100,"NÃO RECEBE, NEM PAGA ➤")))) -> NÃO RECEBE, NEM PAGA ➤
B96: =IF(H66<>1,IF(H92>G100,"VALOR A PAGAR ➤",IF(H92<-G99,"VALOR A RECEBER ➤",IF(H92<=G100,"NÃO RECEBE, NEM PAGA ➤")))) -> NÃO RECEBE, NEM PAGA ➤
B97: =IF(I66<>1,IF(I92>G100,"VALOR A PAGAR ➤",IF(I92<-G99,"VALOR A RECEBER ➤",IF(I92<=G100,"NÃO RECEBE, NEM PAGA ➤",)))) -> NÃO RECEBE, NEM PAGA ➤
B99: Art.º 95.º do CIRS | C99: LIMITE DE REEMBOLSO DE IRS < | G99: 9.99
C100: LIMITE DE COBRANÇA DE IRS > | G100: 24.99
B104: FIM

Sheet Folha para Imprimir
B1: Demonstração detalhada do cálculo do IRS, exercício de 2018, para imprimir | P1: Se pretender imprimir a demonstração, clique em ficheiro no canto superior esquerdo do computador > Imprimir página 1 de 1.
P2: Nota: Quando forem a imprimir têm que mudar na impressora para folha na horizontal.
B3: =Simulação!B4 -> Residência: Continente | J3: =Simulação!I4 -> Sujeito Passivo A+B Casados, opção pela tributação conjunta | L3: =Simulação!J4 -> Sujeito Passivo A Casado, opção pela tributação separada | N3: =Simulação!K4 -> Sujeito Passivo B Casado, opção pela tributação separada
B5: =Simulação!B6 -> Descrição
J6: =Simulação!I7 -> Valores | L6: =Simulação!J7 -> Valores | N6: =Simulação!K7 -> Valores
B7: =Simulação!B8 -> 01 - Rendimento global | J7: =Simulação!I8 -> 0 | L7: =Simulação!J8 -> 0 | N7: =Simulação!K8 -> 0
B8: =Simulação!B9 -> 02 - Deduções específicas | J8: =Simulação!I9 -> 0 | L8: =Simulação!J9 -> 0 | N8: =Simulação!K9 -> 0
B9: =Simulação!B10 -> 03 - Perdas a recuperar | J9: =Simulação!I10 -> 0 | L9: =Simulação!J10 -> 0 | N9: =Simulação!K10 -> 0
B10: =Simulação!B11 -> 04 - Abatimentos | J10: =Simulação!I11 -> 0 | L10: =Simulação!J11 -> 0 | N10: =Simulação!K11 -> 0
B11: =Simulação!B12 -> 05 - Quociente dos rendimentos de anos anteriores | J11: =Simulação!I12 -> 0 | L11: =Simulação!J12 -> 0 | N11: =Simulação!K12 -> 0
B12: =Simulação!B13 -> 06 - Rendimento coletável | J12: =Simulação!I13 -> 0 | L12: =Simulação!J13 -> 0 | N12: =Simulação!K13 -> 0
B13: =Simulação!B14 -> 07 - Coeficiente conjugal | J13: =Simulação!I14 -> 0 | L13: =Simulação!J14 -> 0 | N13: =Simulação!K14 -> 0
B14: =Simulação!B15 -> 08 - Rendimento coletável corrigido | F14: =Simulação!F15 -> Valor para o apuramento da TAXA ➤ | J14: =Simulação!I15 -> 0 | L14: =Simulação!J15 -> 0 | N14: =Simulação!K15 -> 0
B15: =Simulação!B16 -> 09 - Taxa de IRS para o Continente | J15: =Simulação!I17 -> 0 | L15: =Simulação!J17 -> 0 | N15: =Simulação!K17 -> 0
B16: =Simulação!B18 -> 10 - Importância apurada | J16: =Simulação!I18 -> 0 | L16: =Simulação!J18 -> 0 | N16: =Simulação!K18 -> 0
B17: =Simulação!B19 -> 11 - Parcela a abater | J17: =Simulação!I19 -> 0 | L17: =Simulação!J19 -> 0 | N17: =Simulação!K19 -> 0
B18: =Simulação!B20 -> 12 - Imposto de rendimentos de anos anteriores | J18: =Simulação!I20 -> 0 | L18: =Simulação!J20 -> 0 | N18: =Simulação!K20 -> 0
B19: =Simulação!B21 -> 13 - Valor apurado | J19: =Simulação!I21 -> 0 | L19: =Simulação!J21 -> 0 | N19: =Simulação!K21 -> 0
B20: =Simulação!B22 -> 14 - Imposto relativo a tributações autónomas | J20: =Simulação!I22 -> 0 | L20: =Simulação!J22 -> 0 | N20: =Simulação!K22 -> 0
B21: =Simulação!B23 -> 15 - Coleta total | J21: =Simulação!I23 -> 0 | L21: =Simulação!J23 -> 0 | N21: =Simulação!K23 -> 0
B22: =Simulação!B24 -> 16 - Deduções à coleta | J22: =Simulação!I24 -> 0 | L22: =Simulação!J24 -> 0 | N22: =Simulação!K24 -> 0
B23: =Simulação!B25 -> 17 - Crédito de imposto | J23: =Simulação!I25 -> 0 | L23: =Simulação!J25 -> 0 | N23: =Simulação!K25 -> 0
B24: =Simulação!B26 -> 18 - Benefício Municipal | J24: =Simulação!I26 -> 0 | L24: =Simulação!J26 -> 0 | N24: =Simulação!K26 -> 0
B25: =Simulação!B27 -> 19 - Coleta líquida | J25: =Simulação!I27 -> 0 | L25: =Simulação!J27 -> 0 | N25: =Simulação!K27 -> 0
B26: =Simulação!B28 -> 20 - Pagamentos por conta | J26: =Simulação!I28 -> 0 | L26: =Simulação!J28 -> 0 | N26: =Simulação!K28 -> 0
B27: =Simulação!B29 -> 21 - Retenções na fonte | J27: =Simulação!I29 -> 0 | L27: =Simulação!J29 -> 0 | N27: =Simulação!K29 -> 0
B28: 22 - Imposto apurado (SP A+B Tributação Conjunta) | G28: =Simulação!G30 -> NÃO RECEBE, NEM PAGA ➤ | H28: =Simulação!G30 -> NÃO RECEBE, NEM PAGA ➤ | J28: =Simulação!I30 -> 0
B29: =Simulação!B31 -> 23 - Imposto apurado (SP A Tributação Separada) | I29: =Simulação!H31 -> NÃO RECEBE, NEM PAGA ➤ | L29: =Simulação!J31 -> 0
B30: =Simulação!B32 -> 24 - Imposto apurado (SP B Tributação Separada) | K30: =Simulação!I32 -> NÃO RECEBE, NEM PAGA ➤ | N30: =Simulação!K32 -> 0
